Workbook

Sheet Main
B10: 2021-08-24
B12: Sheet No. | C12: Template Name | D12: Summary
B13: 1 | C13: Future Intra | D13: For Intraday trading in F&O segment
B14: 2 | C14: Cash Intra | D14: For Intraday trading in cash market segment
B15: 3 | C15: Mid-cap Intra | D15: For Intraday trading in Mid-cap stocks
B16: 4 | C16: Bulk Deals | D16: Reveals Bulk Deals carried on NSE & BSE
B17: 5 | C17: Call Tracker
K27: `

Sheet Future Intra
M5: Back to Main Page
A6: FOR INTRA DAY TRADING | L6: =Main!B10 -> 2021-08-24
A9: Sr.no | B9: Sector | C9: Scrip | D9: Expiry Date | E9: CLOSE RATE | F9: Pivot Point | G9: Supports | J9: Resistances
E10: Point | F10: Point | G10: S1 | H10: S2 | I10: S3 | J10: R1 | K10: R2 | L10: R3 | M10: HIGH | N10: LOW | O10: OI | P10: % Change in OI
A11: 1 | B11: Index | C11: BANKNIFTY | D11: 2021-08-26 | E11: 35159.20 | F11: 35136.73 | G11: 34872.47 | H11: 34585.73 | I11: 34321.47 | J11: 35423.47 | K11: 35687.73 | L11: 35974.47 | M11: 35401 | N11: 34850 | O11: 2107700 | P11: -6.87%
A12: 2 | B12: Index | C12: NIFTY | D12: 2021-08-26 | E12: 16494.25 | F12: 16484.07 | G12: 16402.18 | H12: 16310.12 | I12: 16228.23 | J12: 16576.13 | K12: 16658.02 | L12: 16750.08 | M12: 16565.95 | N12: 16392 | O12: 13610150 | P12: -2.41%
A13: 3 | B13: Index | C13: FINNIFTY | D13: 2021-08-26 | E13: 17234.05 | F13: 17196.38 | G13: 16902.77 | H13: 16571.48 | I13: 16277.87 | J13: 17527.67 | K13: 17821.28 | L13: 18152.57 | M13: 17490 | N13: 16865.1 | O13: 4440 | P13: -10.48%
A14: 4 | B14: Chemical | C14: AARTIIND | D14: 2021-08-26 | E14: 911.15 | F14: 916.17 | G14: 890.88 | H14: 870.62 | I14: 845.33 | J14: 936.43 | K14: 961.72 | L14: 981.98 | M14: 941.45 | N14: 895.9 | O14: 2957150 | P14: -10.10%
A15: 5 | B15: Textile | C15: ABFRL | D15: 2021-08-26 | E15: 193.85 | F15: 196.32 | G15: 189.63 | H15: 185.42 | I15: 178.73 | J15: 200.53 | K15: 207.22 | L15: 211.43 | M15: 203 | N15: 192.1 | O15: 10584600 | P15: 0.32%
A16: 6 | B16: Cement | C16: ACC | D16: 2021-08-26 | E16: 2259.45 | F16: 2268.03 | G16: 2220.52 | H16: 2181.58 | I16: 2134.07 | J16: 2306.97 | K16: 2354.48 | L16: 2393.42 | M16: 2315.55 | N16: 2229.1 | O16: 3040000 | P16: -0.31%
A17: 7 | B17: Others | C17: ADANIENT | D17: 2021-08-26 | E17: 1395.90 | F17: 1395.53 | G17: 1362.07 | H17: 1328.23 | I17: 1294.77 | J17: 1429.37 | K17: 1462.83 | L17: 1496.67 | M17: 1429 | N17: 1361.7 | O17: 17513000 | P17: 2.29%
A18: 8 | B18: Others | C18: ADANIPORTS | D18: 2021-08-26 | E18: 668.80 | F18: 674.33 | G18: 658.52 | H18: 648.23 | I18: 632.42 | J18: 684.62 | K18: 700.43 | L18: 710.72 | M18: 690.15 | N18: 664.05 | O18: 88221250 | P18: -0.40%
A19: 9 | B19: Pharma | C19: ALKEM | D19: 2021-08-26 | E19: 3808.95 | F19: 3814.12 | G19: 3773.83 | H19: 3738.72 | I19: 3698.43 | J19: 3849.23 | K19: 3889.52 | L19: 3924.63 | M19: 3854.4 | N19: 3779 | O19: 501200 | P19: -1.80%
A20: 10 | B20: Automobile | C20: AMARAJABAT | D20: 2021-08-26 | E20: 679.70 | F20: 686.02 | G20: 669.53 | H20: 659.37 | I20: 642.88 | J20: 696.18 | K20: 712.67 | L20: 722.83 | M20: 702.5 | N20: 675.85 | O20: 9720000 | P20: 0.47%
A21: 11 | B21: Cement | C21: AMBUJACEM | D21: 2021-08-26 | E21: 390.75 | F21: 389.70 | G21: 382.35 | H21: 373.95 | I21: 366.60 | J21: 398.10 | K21: 405.45 | L21: 413.85 | M21: 397.05 | N21: 381.3 | O21: 17769000 | P21: -4.93%
A22: 12 | B22: Pharma | C22: APLLTD | D22: 2021-08-26 | E22: 734.15 | F22: 732.63 | G22: 722.42 | H22: 710.68 | I22: 700.47 | J22: 744.37 | K22: 754.58 | L22: 766.32 | M22: 742.85 | N22: 720.9 | O22: 2158200 | P22: -7.93%
A23: 13 | B23: Others | C23: APOLLOHOSP | D23: 2021-08-26 | E23: 4748.15 | F23: 4772.35 | G23: 4704.80 | H23: 4661.45 | I23: 4593.90 | J23: 4815.70 | K23: 4883.25 | L23: 4926.60 | M23: 4839.9 | N23: 4729 | O23: 2585000 | P23: -2.69%
A24: 14 | B24: Automobile | C24: APOLLOTYRE | D24: 2021-08-26 | E24: 205.65 | F24: 207.68 | G24: 202.17 | H24: 198.68 | I24: 193.17 | J24: 211.17 | K24: 216.68 | L24: 220.17 | M24: 213.2 | N24: 204.2 | O24: 15005000 | P24: 5.69%
A25: 15 | B25: Automobile | C25: ASHOKLEY | D25: 2021-08-26 | E25: 117.85 | F25: 118.05 | G25: 114.85 | H25: 111.85 | I25: 108.65 | J25: 121.05 | K25: 124.25 | L25: 127.25 | M25: 121.25 | N25: 115.05 | O25: 39091500 | P25: 0.38%
A26: 16 | B26: Others | C26: ASTRAL | D26: 2021-08-26 | E26: 2020.90 | F26: 2025.68 | G26: 1966.57 | H26: 1912.23 | I26: 1853.12 | J26: 2080.02 | K26: 2139.13 | L26: 2193.47 | M26: 2084.8 | N26: 1971.35 | O26: 325050 | P26: -4.68%
A27: 17 | B27: FMCG | C27: ASIANPAINT | D27: 2021-08-26 | E27: 3074.95 | F27: 3094.40 | G27: 3033.35 | H27: 2991.75 | I27: 2930.70 | J27: 3136.00 | K27: 3197.05 | L27: 3238.65 | M27: 3155.45 | N27: 3052.8 | O27: 5096400 | P27: 1.06%
A28: 18 | B28: Banking | C28: AUBANK | D28: 2021-08-26 | E28: 1297.15 | F28: 1299.22 | G28: 1273.93 | H28: 1250.72 | I28: 1225.43 | J28: 1322.43 | K28: 1347.72 | L28: 1370.93 | M28: 1324.5 | N28: 1276 | O28: 2049000 | P28: -8.85%
A29: 19 | B29: Pharma | C29: AUROPHARMA | D29: 2021-08-26 | E29: 684.30 | F29: 696.97 | G29: 666.53 | H29: 648.77 | I29: 618.33 | J29: 714.73 | K29: 745.17 | L29: 762.93 | M29: 727.4 | N29: 679.2 | O29: 17004000 | P29: 1.93%
A30: 20 | B30: Banking | C30: AXISBANK | D30: 2021-08-26 | E30: 737.10 | F30: 739.75 | G30: 731.50 | H30: 725.90 | I30: 717.65 | J30: 745.35 | K30: 753.60 | L30: 759.20 | M30: 748 | N30: 734.15 | O30: 27570000 | P30: -2.64%
A31: 21 | B31: Automobile | C31: BAJAJ-AUTO | D31: 2021-08-26 | E31: 3662.40 | F31: 3692.20 | G31: 3612.40 | H31: 3562.40 | I31: 3482.60 | J31: 3742.20 | K31: 3822.00 | L31: 3872.00 | M31: 3772 | N31: 3642.2 | O31: 2114500 | P31: 4.11%
A32: 22 | B32: Finance | C32: BAJAJFINSV | D32: 2021-08-26 | E32: 15247.30 | F32: 15231.10 | G32: 15066.20 | H32: 14885.10 | I32: 14720.20 | J32: 15412.20 | K32: 15577.10 | L32: 15758.20 | M32: 15396 | N32: 15050 | O32: 874050 | P32: 2.00%
A33: 23 | B33: Finance | C33: BAJFINANCE | D33: 2021-08-26 | E33: 6742.75 | F33: 6748.25 | G33: 6684.60 | H33: 6626.45 | I33: 6562.80 | J33: 6806.40 | K33: 6870.05 | L33: 6928.20 | M33: 6811.9 | N33: 6690.1 | O33: 4396000 | P33: 0.17%
A34: 24 | B34: Automobile | C34: BALKRISIND | D34: 2021-08-26 | E34: 2278.25 | F34: 2267.75 | G34: 2237.50 | H34: 2196.75 | I34: 2166.50 | J34: 2308.50 | K34: 2338.75 | L34: 2379.50 | M34: 2298 | N34: 2227 | O34: 1370800 | P34: -2.09%
A35: 25 | B35: Banking | C35: BANDHANBNK | D35: 2021-08-26 | E35: 266.45 | F35: 269.58 | G35: 259.17 | H35: 251.88 | I35: 241.47 | J35: 276.87 | K35: 287.28 | L35: 294.57 | M35: 280 | N35: 262.3 | O35: 29773800 | P35: -1.21%
A36: 26 | B36: Banking | C36: BANKBARODA | D36: 2021-08-26 | E36: 73.45 | F36: 73.70 | G36: 72.10 | H36: 70.75 | I36: 69.15 | J36: 75.05 | K36: 76.65 | L36: 78.00 | M36: 75.3 | N36: 72.35 | O36: 184988700 | P36: 1.55%
A37: 27 | B37: FMCG | C37: BATAINDIA | D37: 2021-08-26 | E37: 1728.95 | F37: 1741.20 | G37: 1711.00 | H37: 1693.05 | I37: 1662.85 | J37: 1759.15 | K37: 1789.35 | L37: 1807.30 | M37: 1771.4 | N37: 1723.25 | O37: 1953600 | P37: -3.00%
A38: 28 | B38: Capital_Goods | C38: BEL | D38: 2021-08-26 | E38: 175.35 | F38: 173.88 | G38: 170.62 | H38: 165.88 | I38: 162.62 | J38: 178.62 | K38: 181.88 | L38: 186.62 | M38: 177.15 | N38: 169.15 | O38: 29009200 | P38: 8.01%
A39: 29 | B39: FMCG | C39: BERGEPAINT | D39: 2021-08-26 | E39: 794.20 | F39: 801.67 | G39: 777.63 | H39: 761.07 | I39: 737.03 | J39: 818.23 | K39: 842.27 | L39: 858.83 | M39: 825.7 | N39: 785.1 | O39: 5087500 | P39: -4.36%
A40: 30 | B40: Automobile | C40: BHARATFORG | D40: 2021-08-26 | E40: 720.75 | F40: 736.35 | G40: 702.20 | H40: 683.65 | I40: 649.50 | J40: 754.90 | K40: 789.05 | L40: 807.60 | M40: 770.5 | N40: 717.8 | O40: 8910000 | P40: 10.86%
A41: 31 | B41: Telecom | C41: BHARTIARTL | D41: 2021-08-26 | E41: 621.65 | F41: 619.62 | G41: 610.13 | H41: 598.62 | I41: 589.13 | J41: 631.13 | K41: 640.62 | L41: 652.13 | M41: 629.1 | N41: 608.1 | O41: 93866061 | P41: -0.66%
A42: 32 | B42: Capital_Goods | C42: BHEL | D42: 2021-08-26 | E42: 51.55 | F42: 51.35 | G42: 50.10 | H42: 48.65 | I42: 47.40 | J42: 52.80 | K42: 54.05 | L42: 55.50 | M42: 52.6 | N42: 49.9 | O42: 120634500 | P42: -0.77%
A43: 33 | B43: Pharma | C43: BIOCON | D43: 2021-08-26 | E43: 333.80 | F43: 341.45 | G43: 320.60 | H43: 307.40 | I43: 286.55 | J43: 354.65 | K43: 375.50 | L43: 388.70 | M43: 362.3 | N43: 328.25 | O43: 20143400 | P43: 5.43%
A44: 34 | B44: Automobile | C44: BOSCHLTD | D44: 2021-08-26 | E44: 13632.55 | F44: 13618.73 | G44: 13413.47 | H44: 13194.38 | I44: 12989.12 | J44: 13837.82 | K44: 14043.08 | L44: 14262.17 | M44: 13824 | N44: 13399.65 | O44: 191500 | P44: -3.43%
A45: 35 | B45: Oil_Gas | C45: BPCL | D45: 2021-08-26 | E45: 452.45 | F45: 452.75 | G45: 447.00 | H45: 441.55 | I45: 435.80 | J45: 458.20 | K45: 463.95 | L45: 469.40 | M45: 458.5 | N45: 447.3 | O45: 40424400 | P45: -0.22%
A46: 36 | B46: FMCG | C46: BRITANNIA | D46: 2021-08-26 | E46: 3860.25 | F46: 3894.25 | G46: 3817.45 | H46: 3774.65 | I46: 3697.85 | J46: 3937.05 | K46: 4013.85 | L46: 4056.65 | M46: 3971.05 | N46: 3851.45 | O46: 1546200 | P46: 1.35%
A47: 37 | B47: Pharma | C47: CADILAHC | D47: 2021-08-26 | E47: 547.20 | F47: 555.00 | G47: 534.00 | H47: 520.80 | I47: 499.80 | J47: 568.20 | K47: 589.20 | L47: 602.40 | M47: 576 | N47: 541.8 | O47: 23729200 | P47: 5.29%
A48: 38 | B48: Banking | C48: CANBK | D48: 2021-08-26 | E48: 153.30 | F48: 152.25 | G48: 149.65 | H48: 146.00 | I48: 143.40 | J48: 155.90 | K48: 158.50 | L48: 162.15 | M48: 154.85 | N48: 148.6 | O48: 60393600 | P48: -3.84%
A49: 39 | B49: Finance | C49: CHOLAFIN | D49: 2021-08-26 | E49: 483.75 | F49: 483.25 | G49: 472.55 | H49: 461.35 | I49: 450.65 | J49: 494.45 | K49: 505.15 | L49: 516.35 | M49: 493.95 | N49: 472.05 | O49: 11812500 | P49: 1.88%
A50: 40 | B50: Pharma | C50: CIPLA | D50: 2021-08-26 | E50: 897.40 | F50: 897.38 | G50: 887.77 | H50: 878.13 | I50: 868.52 | J50: 907.02 | K50: 916.63 | L50: 926.27 | M50: 907 | N50: 887.75 | O50: 14106950 | P50: 0.47%
A51: 41 | B51: Others | C51: COALINDIA | D51: 2021-08-26 | E51: 134.00 | F51: 134.37 | G51: 132.43 | H51: 130.87 | I51: 128.93 | J51: 135.93 | K51: 137.87 | L51: 139.43 | M51: 136.3 | N51: 132.8 | O51: 65041200 | P51: -2.71%
A52: 42 | B52: Technology | C52: COFORGE | D52: 2021-08-26 | E52: 4977.25 | F52: 4979.18 | G52: 4892.87 | H52: 4808.48 | I52: 4722.17 | J52: 5063.57 | K52: 5149.88 | L52: 5234.27 | M52: 5065.5 | N52: 4894.8 | O52: 930000 | P52: 3.68%
A53: 43 | B53: FMCG | C53: COLPAL | D53: 2021-08-26 | E53: 1659.50 | F53: 1671.18 | G53: 1642.52 | H53: 1625.53 | I53: 1596.87 | J53: 1688.17 | K53: 1716.83 | L53: 1733.82 | M53: 1699.85 | N53: 1654.2 | O53: 2960650 | P53: 0.69%
A54: 44 | B54: Others | C54: CONCOR | D54: 2021-08-26 | E54: 654.65 | F54: 655.22 | G54: 647.93 | H54: 641.22 | I54: 633.93 | J54: 661.93 | K54: 669.22 | L54: 675.93 | M54: 662.5 | N54: 648.5 | O54: 7713405 | P54: -0.84%
A55: 45 | B55: Others | C55: COROMANDEL | D55: 2021-08-26 | E55: 793.75 | F55: 800.67 | G55: 774.08 | H55: 754.42 | I55: 727.83 | J55: 820.33 | K55: 846.92 | L55: 866.58 | M55: 827.25 | N55: 781 | O55: 1691875 | P55: -0.18%
A56: 46 | B56: Banking | C56: CUB | D56: 2021-08-26 | E56: 145.30 | F56: 145.92 | G56: 143.33 | H56: 141.37 | I56: 138.78 | J56: 147.88 | K56: 150.47 | L56: 152.43 | M56: 148.5 | N56: 143.95 | O56: 8394800 | P56: -4.04%
A57: 47 | B57: Capital_Goods | C57: CUMMINSIND | D57: 2021-08-26 | E57: 978.00 | F57: 992.67 | G57: 961.33 | H57: 944.67 | I57: 913.33 | J57: 1009.33 | K57: 1040.67 | L57: 1057.33 | M57: 1024 | N57: 976 | O57: 3601800 | P57: 3.23%
A58: 48 | B58: FMCG | C58: DABUR | D58: 2021-08-26 | E58: 609.25 | F58: 611.20 | G58: 603.40 | H58: 597.55 | I58: 589.75 | J58: 617.05 | K58: 624.85 | L58: 630.70 | M58: 619 | N58: 605.35 | O58: 11868750 | P58: 1.39%
A59: 49 | B59: Chemical | C59: DEEPAKNTR | D59: 2021-08-26 | E59: 2055.15 | F59: 2073.47 | G59: 2022.53 | H59: 1989.92 | I59: 1938.98 | J59: 2106.08 | K59: 2157.02 | L59: 2189.63 | M59: 2124.4 | N59: 2040.85 | O59: 2789000 | P59: -0.39%
A60: 50 | B60: Pharma | C60: DIVISLAB | D60: 2021-08-26 | E60: 4869.60 | F60: 4849.43 | G60: 4811.17 | H60: 4752.73 | I60: 4714.47 | J60: 4907.87 | K60: 4946.13 | L60: 5004.57 | M60: 4887.7 | N60: 4791 | O60: 2164000 | P60: 1.69%
A61: 51 | B61: Realty | C61: DLF | D61: 2021-08-26 | E61: 306.75 | F61: 309.00 | G61: 302.30 | H61: 297.85 | I61: 291.15 | J61: 313.45 | K61: 320.15 | L61: 324.60 | M61: 315.7 | N61: 304.55 | O61: 46153800 | P61: -2.09%
A62: 52 | B62: Pharma | C62: DRREDDY | D62: 2021-08-26 | E62: 4511.00 | F62: 4534.68 | G62: 4477.07 | H62: 4443.13 | I62: 4385.52 | J62: 4568.62 | K62: 4626.23 | L62: 4660.17 | M62: 4592.3 | N62: 4500.75 | O62: 3340375 | P62: 0.38%
A63: 53 | B63: Automobile | C63: EICHERMOT | D63: 2021-08-26 | E63: 2523.25 | F63: 2552.50 | G63: 2487.75 | H63: 2452.25 | I63: 2387.50 | J63: 2588.00 | K63: 2652.75 | L63: 2688.25 | M63: 2617.25 | N63: 2517 | O63: 4260200 | P63: 8.99%
A64: 54 | B64: Automobile | C64: ESCORTS | D64: 2021-08-26 | E64: 1257.65 | F64: 1247.97 | G64: 1190.98 | H64: 1124.32 | I64: 1067.33 | J64: 1314.63 | K64: 1371.62 | L64: 1438.28 | M64: 1304.95 | N64: 1181.3 | O64: 6050000 | P64: 10.56%
A65: 55 | B65: Automobile | C65: EXIDEIND | D65: 2021-08-26 | E65: 158.35 | F65: 158.83 | G65: 156.62 | H65: 154.88 | I65: 152.67 | J65: 160.57 | K65: 162.78 | L65: 164.52 | M65: 161.05 | N65: 157.1 | O65: 25412400 | P65: -4.09%
A66: 56 | B66: Banking | C66: FEDERALBNK | D66: 2021-08-26 | E66: 78.25 | F66: 78.97 | G66: 77.18 | H66: 76.12 | I66: 74.33 | J66: 80.03 | K66: 81.82 | L66: 82.88 | M66: 80.75 | N66: 77.9 | O66: 88430000 | P66: 0.77%
A67: 57 | B67: Oil_Gas | C67: GAIL | D67: 2021-08-26 | E67: 141.00 | F67: 141.53 | G67: 139.27 | H67: 137.53 | I67: 135.27 | J67: 143.27 | K67: 145.53 | L67: 147.27 | M67: 143.8 | N67: 139.8 | O67: 33525600 | P67: -0.29%
A68: 58 | B68: Pharma | C68: GLENMARK | D68: 2021-08-26 | E68: 527.30 | F68: 533.57 | G68: 519.28 | H68: 511.27 | I68: 496.98 | J68: 541.58 | K68: 555.87 | L68: 563.88 | M68: 547.85 | N68: 525.55 | O68: 9052800 | P68: 4.42%
A69: 59 | B69: Infrastructure | C69: GMRINFRA | D69: 2021-08-26 | E69: 27.60 | F69: 27.70 | G69: 27.35 | H69: 27.10 | I69: 26.75 | J69: 27.95 | K69: 28.30 | L69: 28.55 | M69: 28.05 | N69: 27.45 | O69: 120240000 | P69: -5.38%
A70: 60 | B70: FMCG | C70: GODREJCP | D70: 2021-08-26 | E70: 1031.60 | F70: 1040.72 | G70: 1017.78 | H70: 1003.97 | I70: 981.03 | J70: 1054.53 | K70: 1077.47 | L70: 1091.28 | M70: 1063.65 | N70: 1026.9 | O70: 4383000 | P70: 5.39%
A71: 61 | B71: Realty | C71: GODREJPROP | D71: 2021-08-26 | E71: 1473.05 | F71: 1479.33 | G71: 1458.67 | H71: 1444.28 | I71: 1423.62 | J71: 1493.72 | K71: 1514.38 | L71: 1528.77 | M71: 1500 | N71: 1464.95 | O71: 2360800 | P71: -6.94%
A72: 62 | B72: Pharma | C72: GRANULES | D72: 2021-08-26 | E72: 325.80 | F72: 324.88 | G72: 316.87 | H72: 307.93 | I72: 299.92 | J72: 333.82 | K72: 341.83 | L72: 350.77 | M72: 332.9 | N72: 315.95 | O72: 12175250 | P72: -0.47%
A73: 63 | B73: Cement | C73: GRASIM | D73: 2021-08-26 | E73: 1439.95 | F73: 1456.82 | G73: 1414.63 | H73: 1389.32 | I73: 1347.13 | J73: 1482.13 | K73: 1524.32 | L73: 1549.63 | M73: 1499 | N73: 1431.5 | O73: 11079375 | P73: 3.81%
A74: 64 | B74: Oil_Gas | C74: GUJGASLTD | D74: 2021-08-26 | E74: 697.55 | F74: 703.12 | G74: 684.68 | H74: 671.82 | I74: 653.38 | J74: 715.98 | K74: 734.42 | L74: 747.28 | M74: 721.55 | N74: 690.25 | O74: 2065000 | P74: -5.82%
A75: 65 | B75: Capital_Goods | C75: HAVELLS | D75: 2021-08-26 | E75: 1257.45 | F75: 1263.02 | G75: 1238.48 | H75: 1219.52 | I75: 1194.98 | J75: 1281.98 | K75: 1306.52 | L75: 1325.48 | M75: 1287.55 | N75: 1244.05 | O75: 4397000 | P75: 13.06%
A76: 66 | B76: Technology | C76: HCLTECH | D76: 2021-08-26 | E76: 1165.00 | F76: 1156.82 | G76: 1133.63 | H76: 1102.27 | I76: 1079.08 | J76: 1188.18 | K76: 1211.37 | L76: 1242.73 | M76: 1180 | N76: 1125.45 | O76: 17771600 | P76: -2.06%
A77: 67 | B77: Finance | C77: HDFC | D77: 2021-08-26 | E77: 2725.10 | F77: 2730.83 | G77: 2706.22 | H77: 2687.33 | I77: 2662.72 | J77: 2749.72 | K77: 2774.33 | L77: 2793.22 | M77: 2755.45 | N77: 2711.95 | O77: 12304200 | P77: -0.01%
A78: 68 | B78: Finance | C78: HDFCAMC | D78: 2021-08-26 | E78: 2902.15 | F78: 2903.72 | G78: 2853.43 | H78: 2804.72 | I78: 2754.43 | J78: 2952.43 | K78: 3002.72 | L78: 3051.43 | M78: 2954 | N78: 2855 | O78: 911400 | P78: 2.22%
A79: 69 | B79: Banking | C79: HDFCBANK | D79: 2021-08-26 | E79: 1525.05 | F79: 1523.48 | G79: 1513.07 | H79: 1501.08 | I79: 1490.67 | J79: 1535.47 | K79: 1545.88 | L79: 1557.87 | M79: 1533.9 | N79: 1511.5 | O79: 24247850 | P79: 3.77%
A80: 70 | B80: Finance | C80: HDFCLIFE | D80: 2021-08-26 | E80: 668.20 | F80: 667.25 | G80: 662.95 | H80: 657.70 | I80: 653.40 | J80: 672.50 | K80: 676.80 | L80: 682.05 | M80: 671.55 | N80: 662 | O80: 21849300 | P80: -1.86%
A81: 71 | B81: Automobile | C81: HEROMOTOCO | D81: 2021-08-26 | E81: 2678.25 | F81: 2678.05 | G81: 2654.30 | H81: 2630.35 | I81: 2606.60 | J81: 2702.00 | K81: 2725.75 | L81: 2749.70 | M81: 2701.8 | N81: 2654.1 | O81: 5418300 | P81: -1.56%
A82: 72 | B82: Metals | C82: HINDALCO | D82: 2021-08-26 | E82: 407.40 | F82: 407.42 | G82: 399.03 | H82: 390.67 | I82: 382.28 | J82: 415.78 | K82: 424.17 | L82: 432.53 | M82: 415.8 | N82: 399.05 | O82: 40205000 | P82: -0.79%
A83: 73 | B83: Oil_Gas | C83: HINDPETRO | D83: 2021-08-26 | E83: 246.05 | F83: 249.00 | G83: 241.30 | H83: 236.55 | I83: 228.85 | J83: 253.75 | K83: 261.45 | L83: 266.20 | M83: 256.7 | N83: 244.25 | O83: 23738400 | P83: -0.39%
A84: 74 | B84: FMCG | C84: HINDUNILVR | D84: 2021-08-26 | E84: 2631.85 | F84: 2632.40 | G84: 2596.25 | H84: 2560.65 | I84: 2524.50 | J84: 2668.00 | K84: 2704.15 | L84: 2739.75 | M84: 2668.55 | N84: 2596.8 | O84: 6581400 | P84: -0.80%
A85: 75 | B85: Finance | C85: IBULHSGFIN | D85: 2021-08-26 | E85: 218.55 | F85: 221.60 | G85: 213.60 | H85: 208.65 | I85: 200.65 | J85: 226.55 | K85: 234.55 | L85: 239.50 | M85: 229.6 | N85: 216.65 | O85: 35677900 | P85: 2.65%
A86: 76 | B86: Banking | C86: ICICIBANK | D86: 2021-08-26 | E86: 683.70 | F86: 682.53 | G86: 676.27 | H86: 668.83 | I86: 662.57 | J86: 689.97 | K86: 696.23 | L86: 703.67 | M86: 688.8 | N86: 675.1 | O86: 82297875 | P86: 0.71%
A87: 77 | B87: Finance | C87: ICICIGI | D87: 2021-08-26 | E87: 1487.20 | F87: 1479.08 | G87: 1468.17 | H87: 1449.13 | I87: 1438.22 | J87: 1498.12 | K87: 1509.03 | L87: 1528.07 | M87: 1490 | N87: 1460.05 | O87: 1993250 | P87: 1.91%
A88: 78 | B88: Finance | C88: ICICIPRULI | D88: 2021-08-26 | E88: 681.45 | F88: 673.27 | G88: 663.18 | H88: 644.92 | I88: 634.83 | J88: 691.53 | K88: 701.62 | L88: 719.88 | M88: 683.35 | N88: 655 | O88: 6382500 | P88: 3.18%
A89: 79 | B89: Telecom | C89: IDEA | D89: 2021-08-26 | E89: 6.00 | F89: 6.12 | G89: 5.73 | H89: 5.47 | I89: 5.08 | J89: 6.38 | K89: 6.77 | L89: 7.03 | M89: 6.5 | N89: 5.85 | O89: 646590000 | P89: 8.16%
A90: 80 | B90: Banking | C90: IDFCFIRSTB | D90: 2021-08-26 | E90: 41.10 | F90: 41.48 | G90: 40.37 | H90: 39.63 | I90: 38.52 | J90: 42.22 | K90: 43.33 | L90: 44.07 | M90: 42.6 | N90: 40.75 | O90: 236844500 | P90: 4.72%
A91: 81 | B91: Oil_Gas | C91: IGL | D91: 2021-08-26 | E91: 522.15 | F91: 521.47 | G91: 516.53 | H91: 510.92 | I91: 505.98 | J91: 527.08 | K91: 532.02 | L91: 537.63 | M91: 526.4 | N91: 515.85 | O91: 10356500 | P91: 4.79%
A92: 82 | B92: Infrastructure | C92: INDHOTEL | D92: 2021-08-26 | E92: 137.75 | F92: 136.88 | G92: 134.17 | H92: 130.58 | I92: 127.87 | J92: 140.47 | K92: 143.18 | L92: 146.77 | M92: 139.6 | N92: 133.3 | O92: 8665800 | P92: -4.35%
A93: 83 | B93: Others | C93: INDIGO | D93: 2021-08-26 | E93: 1669.40 | F93: 1661.65 | G93: 1633.30 | H93: 1597.20 | I93: 1568.85 | J93: 1697.75 | K93: 1726.10 | L93: 1762.20 | M93: 1690 | N93: 1625.55 | O93: 2637000 | P93: -2.33%
A94: 84 | B94: Banking | C94: INDUSINDBK | D94: 2021-08-26 | E94: 987.85 | F94: 982.80 | G94: 966.90 | H94: 945.95 | I94: 930.05 | J94: 1003.75 | K94: 1019.65 | L94: 1040.60 | M94: 998.7 | N94: 961.85 | O94: 14086800 | P94: -4.19%
A95: 85 | B95: Telecom | C95: INDUSTOWER | D95: 2021-08-26 | E95: 217.60 | F95: 217.50 | G95: 212.40 | H95: 207.20 | I95: 202.10 | J95: 222.70 | K95: 227.80 | L95: 233.00 | M95: 222.6 | N95: 212.3 | O95: 14789600 | P95: 2.50%
A96: 86 | B96: Technology | C96: INFY | D96: 2021-08-26 | E96: 1741.10 | F96: 1743.20 | G96: 1731.70 | H96: 1722.30 | I96: 1710.80 | J96: 1752.60 | K96: 1764.10 | L96: 1773.50 | M96: 1754.7 | N96: 1733.8 | O96: 31186200 | P96: 2.80%
A97: 87 | B97: Oil_Gas | C97: IOC | D97: 2021-08-26 | E97: 103.00 | F97: 103.23 | G97: 101.92 | H97: 100.83 | I97: 99.52 | J97: 104.32 | K97: 105.63 | L97: 106.72 | M97: 104.55 | N97: 102.15 | O97: 53943500 | P97: -3.52%
A98: 88 | B98: Others | C98: IRCTC | D98: 2021-08-26 | E98: 2557.70 | F98: 2590.52 | G98: 2501.03 | H98: 2444.37 | I98: 2354.88 | J98: 2647.18 | K98: 2736.67 | L98: 2793.33 | M98: 2680 | N98: 2533.85 | O98: 2021175 | P98: 0.21%
A99: 89 | B99: FMCG | C99: ITC | D99: 2021-08-26 | E99: 206.50 | F99: 207.58 | G99: 205.07 | H99: 203.63 | I99: 201.12 | J99: 209.02 | K99: 211.53 | L99: 212.97 | M99: 210.1 | N99: 206.15 | O99: 179680000 | P99: 0.98%
A100: 90 | B100: Metals | C100: JINDALSTEL | D100: 2021-08-26 | E100: 364.20 | F100: 368.77 | G100: 352.53 | H100: 340.87 | I100: 324.63 | J100: 380.43 | K100: 396.67 | L100: 408.33 | M100: 385 | N100: 357.1 | O100: 37737500 | P100: 0.32%
A101: 91 | B101: Metals | C101: JSWSTEEL | D101: 2021-08-26 | E101: 684.35 | F101: 683.53 | G101: 665.47 | H101: 646.58 | I101: 628.52 | J101: 702.42 | K101: 720.48 | L101: 739.37 | M101: 701.6 | N101: 664.65 | O101: 49993200 | P101: 0.84%
A102: 92 | B102: Others | C102: JUBLFOOD | D102: 2021-08-26 | E102: 3799.25 | F102: 3858.80 | G102: 3711.55 | H102: 3623.85 | I102: 3476.60 | J102: 3946.50 | K102: 4093.75 | L102: 4181.45 | M102: 4006.05 | N102: 3771.1 | O102: 2166750 | P102: 8.43%
A103: 93 | B103: Banking | C103: KOTAKBANK | D103: 2021-08-26 | E103: 1718.20 | F103: 1714.58 | G103: 1705.62 | H103: 1693.03 | I103: 1684.07 | J103: 1727.17 | K103: 1736.13 | L103: 1748.72 | M103: 1723.55 | N103: 1702 | O103: 15067200 | P103: -2.29%
A104: 94 | B104: Finance | C104: L&TFH | D104: 2021-08-26 | E104: 76.80 | F104: 77.75 | G104: 75.20 | H104: 73.60 | I104: 71.05 | J104: 79.35 | K104: 81.90 | L104: 83.50 | M104: 80.3 | N104: 76.15 | O104: 75220396 | P104: 1.68%
A105: 95 | B105: Others | C105: LALPATHLAB | D105: 2021-08-26 | E105: 3810.30 | F105: 3818.90 | G105: 3755.85 | H105: 3701.40 | I105: 3638.35 | J105: 3873.35 | K105: 3936.40 | L105: 3990.85 | M105: 3881.95 | N105: 3764.45 | O105: 538750 | P105: 1.46%
A106: 96 | B106: Finance | C106: LICHSGFIN | D106: 2021-08-26 | E106: 368.15 | F106: 371.58 | G106: 362.47 | H106: 356.78 | I106: 347.67 | J106: 377.27 | K106: 386.38 | L106: 392.07 | M106: 380.7 | N106: 365.9 | O106: 24964000 | P106: -0.57%
A107: 97 | B107: Capital_Goods | C107: LT | D107: 2021-08-26 | E107: 1583.05 | F107: 1588.65 | G107: 1560.40 | H107: 1537.75 | I107: 1509.50 | J107: 1611.30 | K107: 1639.55 | L107: 1662.20 | M107: 1616.9 | N107: 1566 | O107: 12462550 | P107: -1.93%
A108: 98 | B108: Technology | C108: LTI | D108: 2021-08-26 | E108: 5046.90 | F108: 5028.32 | G108: 4947.13 | H108: 4847.37 | I108: 4766.18 | J108: 5128.08 | K108: 5209.27 | L108: 5309.03 | M108: 5109.5 | N108: 4928.55 | O108: 707250 | P108: 2.48%
A109: 99 | B109: Technology | C109: LTTS | D109: 2021-08-26 | E109: 3915.80 | F109: 3919.95 | G109: 3860.85 | H109: 3805.90 | I109: 3746.80 | J109: 3974.90 | K109: 4034.00 | L109: 4088.95 | M109: 3979.05 | N109: 3865 | O109: 580000 | P109: -0.41%
A110: 100 | B110: Pharma | C110: LUPIN | D110: 2021-08-26 | E110: 924.60 | F110: 927.53 | G110: 913.32 | H110: 902.03 | I110: 887.82 | J110: 938.82 | K110: 953.03 | L110: 964.32 | M110: 941.75 | N110: 916.25 | O110: 11284600 | P110: -4.45%
A111: 101 | B111: Automobile | C111: M&M | D111: 2021-08-26 | E111: 767.15 | F111: 774.60 | G111: 757.85 | H111: 748.55 | I111: 731.80 | J111: 783.90 | K111: 800.65 | L111: 809.95 | M111: 791.35 | N111: 765.3 | O111: 11145400 | P111: -3.79%
A112: 102 | B112: Finance | C112: M&MFIN | D112: 2021-08-26 | E112: 139.25 | F112: 140.78 | G112: 136.97 | H112: 134.68 | I112: 130.87 | J112: 143.07 | K112: 146.88 | L112: 149.17 | M112: 144.6 | N112: 138.5 | O112: 40540000 | P112: 0.97%
A113: 103 | B113: Finance | C113: MANAPPURAM | D113: 2021-08-26 | E113: 158.35 | F113: 158.03 | G113: 154.62 | H113: 150.88 | I113: 147.47 | J113: 161.77 | K113: 165.18 | L113: 168.92 | M113: 161.45 | N113: 154.3 | O113: 29508000 | P113: -3.47%
A114: 104 | B114: FMCG | C114: MARICO | D114: 2021-08-26 | E114: 528.75 | F114: 532.72 | G114: 523.58 | H114: 518.42 | I114: 509.28 | J114: 537.88 | K114: 547.02 | L114: 552.18 | M114: 541.85 | N114: 527.55 | O114: 10220000 | P114: 4.29%
A115: 105 | B115: Automobile | C115: MARUTI | D115: 2021-08-26 | E115: 6819.40 | F115: 6843.90 | G115: 6769.35 | H115: 6719.30 | I115: 6644.75 | J115: 6893.95 | K115: 6968.50 | L115: 7018.55 | M115: 6918.45 | N115: 6793.85 | O115: 3095000 | P115: 0.89%
A116: 106 | B116: FMCG | C116: MCDOWELL-N | D116: 2021-08-26 | E116: 702.45 | F116: 704.58 | G116: 694.17 | H116: 685.88 | I116: 675.47 | J116: 712.87 | K116: 723.28 | L116: 731.57 | M116: 715 | N116: 696.3 | O116: 14057500 | P116: 0.39%
A117: 107 | B117: Pharma | C117: METROPOLIS | D117: 2021-08-26 | E117: 2684.55 | F117: 2706.58 | G117: 2644.97 | H117: 2605.38 | I117: 2543.77 | J117: 2746.17 | K117: 2807.78 | L117: 2847.37 | M117: 2768.2 | N117: 2667 | O117: 370400 | P117: -2.83%
A118: 108 | B118: Finance | C118: MFSL | D118: 2021-08-26 | E118: 1043.75 | F118: 1054.83 | G118: 1025.62 | H118: 1007.48 | I118: 978.27 | J118: 1072.97 | K118: 1102.18 | L118: 1120.32 | M118: 1084.05 | N118: 1036.7 | O118: 3136250 | P118: 6.35%
A119: 109 | B119: Oil_Gas | C119: MGL | D119: 2021-08-26 | E119: 1087.40 | F119: 1095.07 | G119: 1073.98 | H119: 1060.57 | I119: 1039.48 | J119: 1108.48 | K119: 1129.57 | L119: 1142.98 | M119: 1116.15 | N119: 1081.65 | O119: 2056200 | P119: 2.42%
A120: 110 | B120: Technology | C120: MINDTREE | D120: 2021-08-26 | E120: 3496.95 | F120: 3460.45 | G120: 3393.95 | H120: 3290.95 | I120: 3224.45 | J120: 3563.45 | K120: 3629.95 | L120: 3732.95 | M120: 3526.95 | N120: 3357.45 | O120: 2435600 | P120: 8.60%
A121: 111 | B121: Automobile | C121: MOTHERSUMI | D121: 2021-08-26 | E121: 199.75 | F121: 201.92 | G121: 196.88 | H121: 194.02 | I121: 188.98 | J121: 204.78 | K121: 209.82 | L121: 212.68 | M121: 206.95 | N121: 199.05 | O121: 37373000 | P121: 1.39%
A122: 112 | B122: Technology | C122: MPHASIS | D122: 2021-08-26 | E122: 2875.75 | F122: 2913.23 | G122: 2818.12 | H122: 2760.48 | I122: 2665.37 | J122: 2970.87 | K122: 3065.98 | L122: 3123.62 | M122: 3008.35 | N122: 2855.6 | O122: 1210625 | P122: 28.36%
A123: 113 | B123: Automobile | C123: MRF | D123: 2021-08-26 | E123: 76162.45 | F123: 76853.15 | G123: 75324.55 | H123: 74486.65 | I123: 72958.05 | J123: 77691.05 | K123: 79219.65 | L123: 80057.55 | M123: 78381.75 | N123: 76015.25 | O123: 50330 | P123: 3.56%
A124: 114 | B124: Finance | C124: MUTHOOTFIN | D124: 2021-08-26 | E124: 1458.20 | F124: 1459.32 | G124: 1443.73 | H124: 1429.27 | I124: 1413.68 | J124: 1473.78 | K124: 1489.37 | L124: 1503.83 | M124: 1474.9 | N124: 1444.85 | O124: 3561000 | P124: -1.74%
A125: 115 | B125: Others | C125: NAM-INDIA | D125: 2021-08-26 | E125: 388.60 | F125: 390.07 | G125: 383.18 | H125: 377.77 | I125: 370.88 | J125: 395.48 | K125: 402.37 | L125: 407.78 | M125: 396.95 | N125: 384.65 | O125: 3772800 | P125: -8.53%
A126: 116 | B126: Metals | C126: NATIONALUM | D126: 2021-08-26 | E126: 74.90 | F126: 73.55 | G126: 71.50 | H126: 68.10 | I126: 66.05 | J126: 76.95 | K126: 79.00 | L126: 82.40 | M126: 75.6 | N126: 70.15 | O126: 83215000 | P126: -2.90%
A127: 117 | B127: Others | C127: NAUKRI | D127: 2021-08-26 | E127: 5495.35 | F127: 5441.73 | G127: 5367.37 | H127: 5239.38 | I127: 5165.02 | J127: 5569.72 | K127: 5644.08 | L127: 5772.07 | M127: 5516.1 | N127: 5313.75 | O127: 963250 | P127: 4.96%
A128: 118 | B128: Chemical | C128: NAVINFLUOR | D128: 2021-08-26 | E128: 3614.50 | F128: 3622.53 | G128: 3525.27 | H128: 3436.03 | I128: 3338.77 | J128: 3711.77 | K128: 3809.03 | L128: 3898.27 | M128: 3719.8 | N128: 3533.3 | O128: 469575 | P128: -1.60%
A129: 119 | B129: FMCG | C129: NESTLEIND | D129: 2021-08-26 | E129: 20033.25 | F129: 19885.57 | G129: 19647.68 | H129: 19262.12 | I129: 19024.23 | J129: 20271.13 | K129: 20509.02 | L129: 20894.58 | M129: 20123.45 | N129: 19500 | O129: 378800 | P129: 5.21%
A130: 120 | B130: Metals | C130: NMDC | D130: 2021-08-26 | E130: 147.60 | F130: 149.28 | G130: 143.07 | H130: 138.53 | I130: 132.32 | J130: 153.82 | K130: 160.03 | L130: 164.57 | M130: 155.5 | N130: 144.75 | O130: 125109100 | P130: -6.82%
A131: 121 | B131: Power | C131: NTPC | D131: 2021-08-26 | E131: 113.65 | F131: 113.85 | G131: 112.10 | H131: 110.55 | I131: 108.80 | J131: 115.40 | K131: 117.15 | L131: 118.70 | M131: 115.6 | N131: 112.3 | O131: 63891300 | P131: -4.56%
A132: 122 | B132: Oil_Gas | C132: ONGC | D132: 2021-08-26 | E132: 111.80 | F132: 110.67 | G132: 109.18 | H132: 106.57 | I132: 105.08 | J132: 113.28 | K132: 114.77 | L132: 117.38 | M132: 112.15 | N132: 108.05 | O132: 48363700 | P132: -0.21%
A133: 123 | B133: Textile | C133: PAGEIND | D133: 2021-08-26 | E133: 30877.10 | F133: 30876.95 | G133: 30566.65 | H133: 30256.20 | I133: 29945.90 | J133: 31187.40 | K133: 31497.70 | L133: 31808.15 | M133: 31187.25 | N133: 30566.5 | O133: 86730 | P133: 3.25%
A134: 124 | B134: Pharma | C134: PEL | D134: 2021-08-26 | E134: 2554.45 | F134: 2586.88 | G134: 2500.47 | H134: 2446.48 | I134: 2360.07 | J134: 2640.87 | K134: 2727.28 | L134: 2781.27 | M134: 2673.3 | N134: 2532.9 | O134: 2781075 | P134: 0.71%
A135: 125 | B135: Oil_Gas | C135: PETRONET | D135: 2021-08-26 | E135: 225.40 | F135: 225.77 | G135: 222.63 | H135: 219.87 | I135: 216.73 | J135: 228.53 | K135: 231.67 | L135: 234.43 | M135: 228.9 | N135: 223 | O135: 22602000 | P135: -4.42%
A136: 126 | B136: Finance | C136: PFC | D136: 2021-08-26 | E136: 122.95 | F136: 123.88 | G136: 121.32 | H136: 119.68 | I136: 117.12 | J136: 125.52 | K136: 128.08 | L136: 129.72 | M136: 126.45 | N136: 122.25 | O136: 33467600 | P136: -0.92%
A137: 127 | B137: Pharma | C137: PFIZER | D137: 2021-08-26 | E137: 5738.40 | F137: 5765.58 | G137: 5678.92 | H137: 5619.43 | I137: 5532.77 | J137: 5825.07 | K137: 5911.73 | L137: 5971.22 | M137: 5852.25 | N137: 5706.1 | O137: 276750 | P137: -12.66%
A138: 128 | B138: FMCG | C138: PIDILITIND | D138: 2021-08-26 | E138: 2230.15 | F138: 2246.85 | G138: 2205.85 | H138: 2181.55 | I138: 2140.55 | J138: 2271.15 | K138: 2312.15 | L138: 2336.45 | M138: 2287.85 | N138: 2222.55 | O138: 2737500 | P138: -0.33%
A139: 129 | B139: Chemical | C139: PIIND | D139: 2021-08-26 | E139: 3086.05 | F139: 3112.77 | G139: 3039.28 | H139: 2992.52 | I139: 2919.03 | J139: 3159.53 | K139: 3233.02 | L139: 3279.78 | M139: 3186.25 | N139: 3066 | O139: 985000 | P139: -1.50%
A140: 130 | B140: Banking | C140: PNB | D140: 2021-08-26 | E140: 36.30 | F140: 36.27 | G140: 35.63 | H140: 34.97 | I140: 34.33 | J140: 36.93 | K140: 37.57 | L140: 38.23 | M140: 36.9 | N140: 35.6 | O140: 296288000 | P140: -5.27%
A141: 131 | B141: Power | C141: POWERGRID | D141: 2021-08-26 | E141: 176.25 | F141: 177.05 | G141: 173.90 | H141: 171.55 | I141: 168.40 | J141: 179.40 | K141: 182.55 | L141: 184.90 | M141: 180.2 | N141: 174.7 | O141: 32525967 | P141: -0.91%
A142: 132 | B142: Media | C142: PVR | D142: 2021-08-26 | E142: 1310.50 | F142: 1320.47 | G142: 1294.23 | H142: 1277.97 | I142: 1251.73 | J142: 1336.73 | K142: 1362.97 | L142: 1379.23 | M142: 1346.7 | N142: 1304.2 | O142: 1896620 | P142: -4.64%
A143: 133 | B143: Cement | C143: RAMCOCEM | D143: 2021-08-26 | E143: 944.35 | F143: 949.93 | G143: 927.87 | H143: 911.38 | I143: 889.32 | J143: 966.42 | K143: 988.48 | L143: 1004.97 | M143: 972 | N143: 933.45 | O143: 2137750 | P143: -9.50%
A144: 134 | B144: Banking | C144: RBLBANK | D144: 2021-08-26 | E144: 158.20 | F144: 160.13 | G144: 155.12 | H144: 152.03 | I144: 147.02 | J144: 163.22 | K144: 168.23 | L144: 171.32 | M144: 165.15 | N144: 157.05 | O144: 42108000 | P144: -2.90%
A145: 135 | B145: Power | C145: RECLTD | D145: 2021-08-26 | E145: 140.75 | F145: 142.05 | G145: 138.80 | H145: 136.85 | I145: 133.60 | J145: 144.00 | K145: 147.25 | L145: 149.20 | M145: 145.3 | N145: 140.1 | O145: 23328000 | P145: 2.21%
A146: 136 | B146: Oil_Gas | C146: RELIANCE | D146: 2021-08-26 | E146: 2160.05 | F146: 2152.70 | G146: 2137.20 | H146: 2114.35 | I146: 2098.85 | J146: 2175.55 | K146: 2191.05 | L146: 2213.90 | M146: 2168.2 | N146: 2129.85 | O146: 32155750 | P146: 0.86%
A147: 137 | B147: Metals | C147: SAIL | D147: 2021-08-26 | E147: 115.10 | F147: 117.05 | G147: 110.80 | H147: 106.50 | I147: 100.25 | J147: 121.35 | K147: 127.60 | L147: 131.90 | M147: 123.3 | N147: 112.75 | O147: 173479500 | P147: 14.06%
A148: 138 | B148: Finance | C148: SBILIFE | D148: 2021-08-26 | E148: 1134.00 | F148: 1130.80 | G148: 1121.85 | H148: 1109.70 | I148: 1100.75 | J148: 1142.95 | K148: 1151.90 | L148: 1164.05 | M148: 1139.75 | N148: 1118.65 | O148: 8421000 | P148: 0.93%
A149: 139 | B149: Banking | C149: SBIN | D149: 2021-08-26 | E149: 409.65 | F149: 407.77 | G149: 402.73 | H149: 395.82 | I149: 390.78 | J149: 414.68 | K149: 419.72 | L149: 426.63 | M149: 412.8 | N149: 400.85 | O149: 97459500 | P149: -7.40%
A150: 140 | B150: Cement | C150: SHREECEM | D150: 2021-08-26 | E150: 25953.15 | F150: 26073.53 | G150: 25628.77 | H150: 25304.38 | I150: 24859.62 | J150: 26397.92 | K150: 26842.68 | L150: 27167.07 | M150: 26518.3 | N150: 25749.15 | O150: 224375 | P150: 1.91%
A151: 141 | B151: Capital_Goods | C151: SIEMENS | D151: 2021-08-26 | E151: 2169.10 | F151: 2184.88 | G151: 2144.82 | H151: 2120.53 | I151: 2080.47 | J151: 2209.17 | K151: 2249.23 | L151: 2273.52 | M151: 2224.95 | N151: 2160.6 | O151: 2015750 | P151: 1.41%
A152: 142 | B152: Textile | C152: SRF | D152: 2021-08-26 | E152: 8979.90 | F152: 9064.60 | G152: 8829.20 | H152: 8678.50 | I152: 8443.10 | J152: 9215.30 | K152: 9450.70 | L152: 9601.40 | M152: 9300 | N152: 8913.9 | O152: 703750 | P152: 7.46%
A153: 143 | B153: Finance | C153: SRTRANSFIN | D153: 2021-08-26 | E153: 1248.55 | F153: 1243.50 | G153: 1217.90 | H153: 1187.25 | I153: 1161.65 | J153: 1274.15 | K153: 1299.75 | L153: 1330.40 | M153: 1269.1 | N153: 1212.85 | O153: 4790800 | P153: -2.44%
A154: 144 | B154: Pharma | C154: STAR | D154: 2021-08-26 | E154: 582.95 | F154: 591.55 | G154: 568.60 | H154: 554.25 | I154: 531.30 | J154: 605.90 | K154: 628.85 | L154: 643.20 | M154: 614.5 | N154: 577.2 | O154: 1990575 | P154: 0.85%
A155: 145 | B155: Pharma | C155: SUNPHARMA | D155: 2021-08-26 | E155: 758.70 | F155: 760.05 | G155: 750.65 | H155: 742.60 | I155: 733.20 | J155: 768.10 | K155: 777.50 | L155: 785.55 | M155: 769.45 | N155: 752 | O155: 35635600 | P155: -0.11%
A156: 146 | B156: Media | C156: SUNTV | D156: 2021-08-26 | E156: 471.45 | F156: 474.85 | G156: 459.70 | H156: 447.95 | I156: 432.80 | J156: 486.60 | K156: 501.75 | L156: 513.50 | M156: 490 | N156: 463.1 | O156: 12990000 | P156: -1.55%
A157: 147 | B157: Chemical | C157: TATACHEM | D157: 2021-08-26 | E157: 823.30 | F157: 830.22 | G157: 808.08 | H157: 792.87 | I157: 770.73 | J157: 845.43 | K157: 867.57 | L157: 882.78 | M157: 852.35 | N157: 815 | O157: 10900000 | P157: -2.87%
A158: 148 | B158: FMCG | C158: TATACONSUM | D158: 2021-08-26 | E158: 833.60 | F158: 835.55 | G158: 822.25 | H158: 810.90 | I158: 797.60 | J158: 846.90 | K158: 860.20 | L158: 871.55 | M158: 848.85 | N158: 824.2 | O158: 7492500 | P158: -1.74%
A159: 149 | B159: Automobile | C159: TATAMOTORS | D159: 2021-08-26 | E159: 276.85 | F159: 279.78 | G159: 271.67 | H159: 266.48 | I159: 258.37 | J159: 284.97 | K159: 293.08 | L159: 298.27 | M159: 287.9 | N159: 274.6 | O159: 117935850 | P159: -2.87%
A160: 150 | B160: Power | C160: TATAPOWER | D160: 2021-08-26 | E160: 124.85 | F160: 124.63 | G160: 121.67 | H160: 118.48 | I160: 115.52 | J160: 127.82 | K160: 130.78 | L160: 133.97 | M160: 127.6 | N160: 121.45 | O160: 137079000 | P160: -2.32%
A161: 151 | B161: Metals | C161: TATASTEEL | D161: 2021-08-26 | E161: 1357.40 | F161: 1358.63 | G161: 1309.27 | H161: 1261.13 | I161: 1211.77 | J161: 1406.77 | K161: 1456.13 | L161: 1504.27 | M161: 1408 | N161: 1310.5 | O161: 45152850 | P161: -4.28%
A162: 152 | B162: Technology | C162: TCS | D162: 2021-08-26 | E162: 3636.95 | F162: 3624.20 | G162: 3579.75 | H162: 3522.55 | I162: 3478.10 | J162: 3681.40 | K162: 3725.85 | L162: 3783.05 | M162: 3668.65 | N162: 3567 | O162: 10160400 | P162: 5.01%
A163: 153 | B163: Technology | C163: TECHM | D163: 2021-08-26 | E163: 1417.50 | F163: 1423.52 | G163: 1402.38 | H163: 1387.27 | I163: 1366.13 | J163: 1438.63 | K163: 1459.77 | L163: 1474.88 | M163: 1444.65 | N163: 1408.4 | O163: 10753200 | P163: 2.10%
A164: 154 | B164: FMCG | C164: TITAN | D164: 2021-08-26 | E164: 1872.50 | F164: 1873.95 | G164: 1849.70 | H164: 1826.90 | I164: 1802.65 | J164: 1896.75 | K164: 1921.00 | L164: 1943.80 | M164: 1898.2 | N164: 1851.15 | O164: 4572750 | P164: 0.53%
A165: 155 | B165: Pharma | C165: TORNTPHARM | D165: 2021-08-26 | E165: 3058.60 | F165: 3043.20 | G165: 3016.40 | H165: 2974.20 | I165: 2947.40 | J165: 3085.40 | K165: 3112.20 | L165: 3154.40 | M165: 3070 | N165: 3001 | O165: 760750 | P165: 0.83%
A166: 156 | B166: Power | C166: TORNTPOWER | D166: 2021-08-26 | E166: 450.90 | F166: 448.83 | G166: 440.07 | H166: 429.23 | I166: 420.47 | J166: 459.67 | K166: 468.43 | L166: 479.27 | M166: 457.6 | N166: 438 | O166: 2836500 | P166: 4.02%
A167: 157 | B167: Others | C167: TRENT | D167: 2021-08-26 | E167: 885.85 | F167: 882.57 | G167: 869.08 | H167: 852.32 | I167: 838.83 | J167: 899.33 | K167: 912.82 | L167: 929.58 | M167: 896.05 | N167: 865.8 | O167: 1345600 | P167: -1.64%
A168: 158 | B168: Automobile | C168: TVSMOTOR | D168: 2021-08-26 | E168: 500.95 | F168: 505.42 | G168: 495.18 | H168: 489.42 | I168: 479.18 | J168: 511.18 | K168: 521.42 | L168: 527.18 | M168: 515.65 | N168: 499.65 | O168: 7613200 | P168: 1.15%
A169: 159 | B169: FMCG | C169: UBL | D169: 2021-08-26 | E169: 1456.75 | F169: 1460.05 | G169: 1437.35 | H169: 1417.95 | I169: 1395.25 | J169: 1479.45 | K169: 1502.15 | L169: 1521.55 | M169: 1482.75 | N169: 1440.65 | O169: 1706600 | P169: -11.47%
A170: 160 | B170: Cement | C170: ULTRACEMCO | D170: 2021-08-26 | E170: 7366.00 | F170: 7415.17 | G170: 7246.83 | H170: 7127.67 | I170: 6959.33 | J170: 7534.33 | K170: 7702.67 | L170: 7821.83 | M170: 7583.5 | N170: 7296 | O170: 1889700 | P170: -0.02%
A171: 161 | B171: Chemical | C171: UPL | D171: 2021-08-26 | E171: 719.05 | F171: 723.65 | G171: 710.25 | H171: 701.45 | I171: 688.05 | J171: 732.45 | K171: 745.85 | L171: 754.65 | M171: 737.05 | N171: 714.85 | O171: 25404600 | P171: -0.89%
A172: 162 | B172: Metals | C172: VEDL | D172: 2021-08-26 | E172: 274.25 | F172: 271.17 | G172: 263.33 | H172: 252.42 | I172: 244.58 | J172: 282.08 | K172: 289.92 | L172: 300.83 | M172: 279 | N172: 260.25 | O172: 131052500 | P172: -3.55%
A173: 163 | B173: Capital_Goods | C173: VOLTAS | D173: 2021-08-26 | E173: 971.60 | F173: 971.90 | G173: 960.80 | H173: 950.00 | I173: 938.90 | J173: 982.70 | K173: 993.80 | L173: 1004.60 | M173: 983 | N173: 961.1 | O173: 3904000 | P173: -1.46%
A174: 164 | B174: Technology | C174: WIPRO | D174: 2021-08-26 | E174: 630.20 | F174: 630.28 | G174: 623.77 | H174: 617.33 | I174: 610.82 | J174: 636.72 | K174: 643.23 | L174: 649.67 | M174: 636.8 | N174: 623.85 | O174: 29528000 | P174: -0.42%
A175: 165 | B175: Media | C175: ZEEL | D175: 2021-08-26 | E175: 170.05 | F175: 170.30 | G175: 166.55 | H175: 163.05 | I175: 159.30 | J175: 173.80 | K175: 177.55 | L175: 181.05 | M175: 174.05 | N175: 166.8 | O175: 73401000 | P175: -2.51%
A184: Pivot Point: This is trigger point for intra day buy/sell based on the price range of the previous day
A185: As per the tool,the trader should take BUY position just above Pivot and keep the stop loss of pivot point and the first target would be Resistance 1(R1)
A186: If R1 is crossed then R2 becomes the next target with stop loss of at R1
A187: Similarly if price goes below pivot point then the trader should sell and keep a stop loss of pivot point and the first target would be S1
A188: If S1 is crossed then S2 becomes the next target with stop loss of at S1
A190: Disclaimer:
A191: This document has been prepared by the Retail Research Desk of Asit C Mehta
A192: Investment Intermediates Ltd. and is meant for use of the recipient only
A193: and is not for circulation. This document is not to be reported or
A194: copied or made available to others. It should not be considered to be
A195: taken as an offer to sell or a solicitation to buy any security. The
A196: information contained herein is from sources believed reliable. We do
A197: not represent that it is accurate or complete and it should not be
A198: relied upon as such. We may from time to time have positions in and buy
A199: and sell securities referred to herein

Sheet Cash Intra
M5: Back to Main Page
A6: FOR INTRA DAY TRADING | K6: =Main!B10 -> 2021-08-24
A8: Sr.no | C8: CLOSE RATE | D8: Pivot Point | E8: Supports | H8: Resistances
E9: S1 | F9: S2 | G9: S3 | H9: R1 | I9: R2 | J9: R3 | K9: HIGH | L9: LOW | M9: Total Trade Quanity in Lakhs
A10: 1 | B10: Nifty 50 | C10: 16496.45 | D10: 16494.88 | E10: 16397.27 | F10: 16298.08 | G10: 16200.47 | H10: 16594.07 | I10: 16691.68 | J10: 16790.87 | K10: 16592.5 | L10: 16395.7
A11: 2 | B11: Nifty Bank | C11: 35124.4 | D11: 35123.10 | E11: 34818.80 | F11: 34513.20 | G11: 34208.90 | H11: 35428.70 | I11: 35733.00 | J11: 36038.60 | K11: 35427.4 | L11: 34817.5
A12: 3 | B12: Nifty CPSE | C12: 1951.85 | D12: 1951.97 | E12: 1926.58 | F12: 1901.32 | G12: 1875.93 | H12: 1977.23 | I12: 2002.62 | J12: 2027.88 | K12: 1977.35 | L12: 1926.7
A13: 4 | B13: Nifty Infra | C13: 4473.15 | D13: 4477.28 | E13: 4425.42 | F13: 4377.68 | G13: 4325.82 | H13: 4525.02 | I13: 4576.88 | J13: 4624.62 | K13: 4529.15 | L13: 4429.55
A14: 5 | B14: Nifty IT | C14: 33919.8 | D14: 33880.18 | E14: 33606.97 | F14: 33294.13 | G14: 33020.92 | H14: 34193.02 | I14: 34466.23 | J14: 34779.07 | K14: 34153.4 | L14: 33567.35
A15: 6 | B15: Nifty PSE | C15: 3457.45 | D15: 3465.87 | E15: 3415.08 | F15: 3372.72 | G15: 3321.93 | H15: 3508.23 | I15: 3559.02 | J15: 3601.38 | K15: 3516.65 | L15: 3423.5
A16: 7 | B16: Nifty Midcap 50 | C16: 7186.8 | D16: 7212.90 | E16: 7092.80 | F16: 6998.80 | G16: 6878.70 | H16: 7306.90 | I16: 7427.00 | J16: 7521.00 | K16: 7333 | L16: 7118.9
A17: 8 | B17: ACC | C17: 2261.45 | D17: 2270.67 | E17: 2221.33 | F17: 2181.22 | G17: 2131.88 | H17: 2310.78 | I17: 2360.12 | J17: 2400.23 | K17: 2320 | L17: 2230.55 | M17: 4.77873
A18: 9 | B18: AUBANK | C18: 1294 | D18: 1298.83 | E18: 1272.67 | F18: 1251.33 | G18: 1225.17 | H18: 1320.17 | I18: 1346.33 | J18: 1367.67 | K18: 1325 | L18: 1277.5 | M18: 7.40854
A19: 10 | B19: AARTIIND | C19: 910.9 | D19: 915.72 | E19: 889.13 | F19: 867.37 | G19: 840.78 | H19: 937.48 | I19: 964.07 | J19: 985.83 | K19: 942.3 | L19: 893.95 | M19: 11.57287
A20: 11 | B20: ABBOTINDIA | C20: 18945.45 | D20: 18950.15 | E20: 18799.30 | F20: 18653.15 | G20: 18502.30 | H20: 19096.30 | I20: 19247.15 | J20: 19393.30 | K20: 19101 | L20: 18804 | M20: 0.07464
A21: 12 | B21: ADANIENT | C21: 1396.7 | D21: 1395.33 | E21: 1362.92 | F21: 1329.13 | G21: 1296.72 | H21: 1429.12 | I21: 1461.53 | J21: 1495.32 | K21: 1427.75 | L21: 1361.55 | M21: 48.6608
A22: 13 | B22: ADANIGREEN | C22: 933.65 | D22: 933.55 | E22: 914.10 | F22: 894.55 | G22: 875.10 | H22: 953.10 | I22: 972.55 | J22: 992.10 | K22: 953 | L22: 914 | M22: 21.79201
A23: 14 | B23: ADANIPORTS | C23: 668.3 | D23: 675.03 | E23: 658.27 | F23: 648.23 | G23: 631.47 | H23: 685.07 | I23: 701.83 | J23: 711.87 | K23: 691.8 | L23: 665 | M23: 66.36881
A24: 15 | B24: ATGL | C24: 1126.45 | D24: 1112.30 | E24: 1098.15 | F24: 1069.85 | G24: 1055.70 | H24: 1140.60 | I24: 1154.75 | J24: 1183.05 | K24: 1126.45 | L24: 1084 | M24: 2.08476
A25: 16 | B25: ADANITRANS | C25: 1179.6 | D25: 1169.73 | E25: 1159.87 | F25: 1140.13 | G25: 1130.27 | H25: 1189.47 | I25: 1199.33 | J25: 1219.07 | K25: 1179.6 | L25: 1150 | M25: 1.60423
A26: 17 | B26: ABCAPITAL | C26: 99.05 | D26: 102.22 | E26: 94.83 | F26: 90.62 | G26: 83.23 | H26: 106.43 | I26: 113.82 | J26: 118.03 | K26: 109.6 | L26: 98 | M26: 53.59937
A27: 18 | B27: ABFRL | C27: 194 | D27: 196.72 | E27: 189.73 | F27: 185.47 | G27: 178.48 | H27: 200.98 | I27: 207.97 | J27: 212.23 | K27: 203.7 | L27: 192.45 | M27: 15.42994
A28: 19 | B28: AJANTPHARM | C28: 2235.75 | D28: 2236.92 | E28: 2203.83 | F28: 2171.92 | G28: 2138.83 | H28: 2268.83 | I28: 2301.92 | J28: 2333.83 | K28: 2270 | L28: 2205 | M28: 0.59793
A29: 20 | B29: APLLTD | C29: 734.55 | D29: 733.63 | E29: 721.27 | F29: 707.98 | G29: 695.62 | H29: 746.92 | I29: 759.28 | J29: 772.57 | K29: 746 | L29: 720.35 | M29: 4.07659
A30: 21 | B30: ALKEM | C30: 3796.55 | D30: 3807.80 | E30: 3759.30 | F30: 3722.05 | G30: 3673.55 | H30: 3845.05 | I30: 3893.55 | J30: 3930.80 | K30: 3856.3 | L30: 3770.55 | M30: 1.21111
A31: 22 | B31: AMARAJABAT | C31: 680.5 | D31: 686.37 | E31: 669.33 | F31: 658.17 | G31: 641.13 | H31: 697.53 | I31: 714.57 | J31: 725.73 | K31: 703.4 | L31: 675.2 | M31: 13.43726
A32: 23 | B32: AMBUJACEM | C32: 390.65 | D32: 389.53 | E32: 382.37 | F32: 374.08 | G32: 366.92 | H32: 397.82 | I32: 404.98 | J32: 413.27 | K32: 396.7 | L32: 381.25 | M32: 54.38059
A33: 24 | B33: APOLLOHOSP | C33: 4743.25 | D33: 4767.70 | E33: 4695.75 | F33: 4648.25 | G33: 4576.30 | H33: 4815.20 | I33: 4887.15 | J33: 4934.65 | K33: 4839.65 | L33: 4720.2 | M33: 6.99991
A34: 25 | B34: APOLLOTYRE | C34: 205.35 | D34: 207.92 | E34: 201.68 | F34: 198.02 | G34: 191.78 | H34: 211.58 | I34: 217.82 | J34: 221.48 | K34: 214.15 | L34: 204.25 | M34: 40.7988
A35: 26 | B35: ASHOKLEY | C35: 117.75 | D35: 117.98 | E35: 114.62 | F35: 111.48 | G35: 108.12 | H35: 121.12 | I35: 124.48 | J35: 127.62 | K35: 121.35 | L35: 114.85 | M35: 209.13253
A36: 27 | B36: ASIANPAINT | C36: 3077.45 | D36: 3097.43 | E36: 3031.02 | F36: 2984.58 | G36: 2918.17 | H36: 3143.87 | I36: 3210.28 | J36: 3256.72 | K36: 3163.85 | L36: 3051 | M36: 15.78949
A37: 28 | B37: AUROPHARMA | C37: 682.95 | D37: 695.77 | E37: 665.33 | F37: 647.72 | G37: 617.28 | H37: 713.38 | I37: 743.82 | J37: 761.43 | K37: 726.2 | L37: 678.15 | M37: 129.77112
A38: 29 | B38: DMART | C38: 3673.75 | D38: 3672.58 | E38: 3645.17 | F38: 3616.58 | G38: 3589.17 | H38: 3701.17 | I38: 3728.58 | J38: 3757.17 | K38: 3700 | L38: 3644 | M38: 1.63347
A39: 30 | B39: AXISBANK | C39: 736.1 | D39: 740.00 | E39: 730.50 | F39: 724.90 | G39: 715.40 | H39: 745.60 | I39: 755.10 | J39: 760.70 | K39: 749.5 | L39: 734.4 | M39: 36.14761
A40: 31 | B40: BAJAJ-AUTO | C40: 3668.25 | D40: 3701.10 | E40: 3614.30 | F40: 3560.35 | G40: 3473.55 | H40: 3755.05 | I40: 3841.85 | J40: 3895.80 | K40: 3787.9 | L40: 3647.15 | M40: 4.55643
A41: 32 | B41: BAJFINANCE | C41: 6752.2 | D41: 6756.23 | E41: 6692.97 | F41: 6633.73 | G41: 6570.47 | H41: 6815.47 | I41: 6878.73 | J41: 6937.97 | K41: 6819.5 | L41: 6697 | M41: 17.3834
A42: 33 | B42: BAJAJFINSV | C42: 15271.9 | D42: 15252.30 | E42: 15084.60 | F42: 14897.30 | G42: 14729.60 | H42: 15439.60 | I42: 15607.30 | J42: 15794.60 | K42: 15420 | L42: 15065 | M42: 3.26688
A43: 34 | B43: BAJAJHLDNG | C43: 4121.5 | D43: 4123.30 | E43: 4079.20 | F43: 4036.90 | G43: 3992.80 | H43: 4165.60 | I43: 4209.70 | J43: 4252.00 | K43: 4167.4 | L43: 4081 | M43: 0.71845
A44: 35 | B44: BALKRISIND | C44: 2279.85 | D44: 2268.18 | E44: 2238.37 | F44: 2196.88 | G44: 2167.07 | H44: 2309.67 | I44: 2339.48 | J44: 2380.97 | K44: 2298 | L44: 2226.7 | M44: 4.68896
A45: 36 | B45: BANDHANBNK | C45: 266.65 | D45: 269.70 | E45: 258.95 | F45: 251.25 | G45: 240.50 | H45: 277.40 | I45: 288.15 | J45: 295.85 | K45: 280.45 | L45: 262 | M45: 67.42192
A46: 37 | B46: BANKBARODA | C46: 73.2 | D46: 73.70 | E46: 72.00 | F46: 70.80 | G46: 69.10 | H46: 74.90 | I46: 76.60 | J46: 77.80 | K46: 75.4 | L46: 72.5 | M46: 311.36268
A47: 38 | B47: BANKINDIA | C47: 62.5 | D47: 63.25 | E47: 61.35 | F47: 60.20 | G47: 58.30 | H47: 64.40 | I47: 66.30 | J47: 67.45 | K47: 65.15 | L47: 62.1 | M47: 19.2476
A48: 39 | B48: BATAINDIA | C48: 1727.75 | D48: 1741.02 | E48: 1707.73 | F48: 1687.72 | G48: 1654.43 | H48: 1761.03 | I48: 1794.32 | J48: 1814.33 | K48: 1774.3 | L48: 1721 | M48: 6.8532
A49: 40 | B49: BERGEPAINT | C49: 795.45 | D49: 802.67 | E49: 778.38 | F49: 761.32 | G49: 737.03 | H49: 819.73 | I49: 844.02 | J49: 861.08 | K49: 826.95 | L49: 785.6 | M49: 12.61794
A50: 41 | B50: BEL | C50: 175.15 | D50: 173.73 | E50: 170.57 | F50: 165.98 | G50: 162.82 | H50: 178.32 | I50: 181.48 | J50: 186.07 | K50: 176.9 | L50: 169.15 | M50: 88.961
A51: 42 | B51: BHARATFORG | C51: 719.65 | D51: 736.65 | E51: 700.00 | F51: 680.35 | G51: 643.70 | H51: 756.30 | I51: 792.95 | J51: 812.60 | K51: 773.3 | L51: 717 | M51: 36.55328
A52: 43 | B52: BHEL | C52: 51.45 | D52: 51.32 | E52: 50.08 | F52: 48.72 | G52: 47.48 | H52: 52.68 | I52: 53.92 | J52: 55.28 | K52: 52.55 | L52: 49.95 | M52: 411.80042
A53: 44 | B53: BPCL | C53: 451.7 | D53: 453.15 | E53: 446.65 | F53: 441.60 | G53: 435.10 | H53: 458.20 | I53: 464.70 | J53: 469.75 | K53: 459.65 | L53: 448.1 | M53: 39.62946
A54: 45 | B54: BHARTIARTL | C54: 622.65 | D54: 620.25 | E54: 610.00 | F54: 597.35 | G54: 587.10 | H54: 632.90 | I54: 643.15 | J54: 655.80 | K54: 630.5 | L54: 607.6 | M54: 125.54898
A55: 46 | B55: BIOCON | C55: 333.2 | D55: 341.03 | E55: 319.72 | F55: 306.23 | G55: 284.92 | H55: 354.52 | I55: 375.83 | J55: 389.32 | K55: 362.35 | L55: 327.55 | M55: 72.50084
A56: 47 | B56: BBTC | C56: 1164.6 | D56: 1178.87 | E56: 1140.73 | F56: 1116.87 | G56: 1078.73 | H56: 1202.73 | I56: 1240.87 | J56: 1264.73 | K56: 1217 | L56: 1155 | M56: 4.07416
A57: 48 | B57: BOSCHLTD | C57: 13650.55 | D57: 13632.25 | E57: 13430.35 | F57: 13210.15 | G57: 13008.25 | H57: 13852.45 | I57: 14054.35 | J57: 14274.55 | K57: 13834.15 | L57: 13412.05 | M57: 0.31017
A58: 49 | B58: BRITANNIA | C58: 3866.25 | D58: 3893.83 | E58: 3823.02 | F58: 3779.78 | G58: 3708.97 | H58: 3937.07 | I58: 4007.88 | J58: 4051.12 | K58: 3964.65 | L58: 3850.6 | M58: 6.45088
A59: 50 | B59: CESC | C59: 731.75 | D59: 738.23 | E59: 716.52 | F59: 701.28 | G59: 679.57 | H59: 753.47 | I59: 775.18 | J59: 790.42 | K59: 759.95 | L59: 723 | M59: 3.7485
A60: 51 | B60: CADILAHC | C60: 547.1 | D60: 555.37 | E60: 533.73 | F60: 520.37 | G60: 498.73 | H60: 568.73 | I60: 590.37 | J60: 603.73 | K60: 577 | L60: 542 | M60: 206.64509
A61: 52 | B61: CANBK | C61: 152.9 | D61: 151.92 | E61: 149.18 | F61: 145.47 | G61: 142.73 | H61: 155.63 | I61: 158.37 | J61: 162.08 | K61: 154.65 | L61: 148.2 | M61: 88.68571
A62: 53 | B62: CASTROLIND | C62: 127.65 | D62: 128.65 | E62: 126.10 | F62: 124.55 | G62: 122.00 | H62: 130.20 | I62: 132.75 | J62: 134.30 | K62: 131.2 | L62: 127.1 | M62: 4.84247
A63: 54 | B63: CHOLAFIN | C63: 484.2 | D63: 483.80 | E63: 472.90 | F63: 461.60 | G63: 450.70 | H63: 495.10 | I63: 506.00 | J63: 517.30 | K63: 494.7 | L63: 472.5 | M63: 17.19618
A64: 55 | B64: CIPLA | C64: 898.35 | D64: 898.33 | E64: 888.67 | F64: 878.98 | G64: 869.32 | H64: 908.02 | I64: 917.68 | J64: 927.37 | K64: 908 | L64: 888.65 | M64: 20.81206
A65: 56 | B65: CUB | C65: 145.5 | D65: 145.63 | E65: 143.67 | F65: 141.83 | G65: 139.87 | H65: 147.47 | I65: 149.43 | J65: 151.27 | K65: 147.6 | L65: 143.8 | M65: 10.76403
A66: 57 | B66: COALINDIA | C66: 133.95 | D66: 134.37 | E66: 132.33 | F66: 130.72 | G66: 128.68 | H66: 135.98 | I66: 138.02 | J66: 139.63 | K66: 136.4 | L66: 132.75 | M66: 77.68805
A67: 58 | B67: COFORGE | C67: 4987.85 | D67: 4985.83 | E67: 4903.67 | F67: 4819.48 | G67: 4737.32 | H67: 5070.02 | I67: 5152.18 | J67: 5236.37 | K67: 5068 | L67: 4901.65 | M67: 4.66364
A68: 59 | B68: COLPAL | C68: 1658.6 | D68: 1670.53 | E68: 1641.07 | F68: 1623.53 | G68: 1594.07 | H68: 1688.07 | I68: 1717.53 | J68: 1735.07 | K68: 1700 | L68: 1653 | M68: 6.2047
A69: 60 | B69: CONCOR | C69: 653.2 | D69: 655.02 | E69: 647.13 | F69: 641.07 | G69: 633.18 | H69: 661.08 | I69: 668.97 | J69: 675.03 | K69: 662.9 | L69: 648.95 | M69: 10.99874
A70: 61 | B70: COROMANDEL | C70: 794.75 | D70: 800.93 | E70: 774.02 | F70: 753.28 | G70: 726.37 | H70: 821.67 | I70: 848.58 | J70: 869.32 | K70: 827.85 | L70: 780.2 | M70: 4.3706
A71: 62 | B71: CROMPTON | C71: 441.25 | D71: 442.05 | E71: 431.90 | F71: 422.55 | G71: 412.40 | H71: 451.40 | I71: 461.55 | J71: 470.90 | K71: 452.2 | L71: 432.7 | M71: 7.30883
A72: 63 | B72: CUMMINSIND | C72: 975.5 | D72: 990.32 | E72: 958.23 | F72: 940.97 | G72: 908.88 | H72: 1007.58 | I72: 1039.67 | J72: 1056.93 | K72: 1022.4 | L72: 973.05 | M72: 11.65189
A73: 64 | B73: DLF | C73: 306.6 | D73: 309.07 | E73: 301.78 | F73: 296.97 | G73: 289.68 | H73: 313.88 | I73: 321.17 | J73: 325.98 | K73: 316.35 | L73: 304.25 | M73: 68.42918
A74: 65 | B74: DABUR | C74: 609.9 | D74: 612.57 | E74: 603.18 | F74: 596.47 | G74: 587.08 | H74: 619.28 | I74: 628.67 | J74: 635.38 | K74: 621.95 | L74: 605.85 | M74: 31.88046
A75: 66 | B75: DALBHARAT | C75: 1947.4 | D75: 1943.68 | E75: 1891.37 | F75: 1835.33 | G75: 1783.02 | H75: 1999.72 | I75: 2052.03 | J75: 2108.07 | K75: 1996 | L75: 1887.65 | M75: 2.0583
A76: 67 | B76: DEEPAKNTR | C76: 2056.3 | D76: 2074.48 | E76: 2021.37 | F76: 1986.43 | G76: 1933.32 | H76: 2109.42 | I76: 2162.53 | J76: 2197.47 | K76: 2127.6 | L76: 2039.55 | M76: 7.57487
A77: 68 | B77: DHANI | C77: 177.95 | D77: 181.37 | E77: 172.23 | F77: 166.52 | G77: 157.38 | H77: 187.08 | I77: 196.22 | J77: 201.93 | K77: 190.5 | L77: 175.65 | M77: 8.46886
A78: 69 | B78: DIVISLAB | C78: 4874.65 | D78: 4850.45 | E78: 4812.20 | F78: 4749.75 | G78: 4711.50 | H78: 4912.90 | I78: 4951.15 | J78: 5013.60 | K78: 4888.7 | L78: 4788 | M78: 4.10817
A79: 70 | B79: DIXON | C79: 3910.15 | D79: 3968.82 | E79: 3841.33 | F79: 3772.52 | G79: 3645.03 | H79: 4037.63 | I79: 4165.12 | J79: 4233.93 | K79: 4096.3 | L79: 3900 | M79: 2.58652
A80: 71 | B80: LALPATHLAB | C80: 3810.95 | D80: 3823.02 | E80: 3756.08 | F80: 3701.22 | G80: 3634.28 | H80: 3877.88 | I80: 3944.82 | J80: 3999.68 | K80: 3889.95 | L80: 3768.15 | M80: 1.64484
A81: 72 | B81: DRREDDY | C81: 4514.85 | D81: 4537.95 | E81: 4476.90 | F81: 4438.95 | G81: 4377.90 | H81: 4575.90 | I81: 4636.95 | J81: 4674.90 | K81: 4599 | L81: 4500 | M81: 5.67515
A82: 73 | B82: EICHERMOT | C82: 2544 | D82: 2567.15 | E82: 2511.85 | F82: 2479.70 | G82: 2424.40 | H82: 2599.30 | I82: 2654.60 | J82: 2686.75 | K82: 2622.45 | L82: 2535 | M82: 12.71399
A83: 74 | B83: EMAMILTD | C83: 603.25 | D83: 595.57 | E83: 583.13 | F83: 563.02 | G83: 550.58 | H83: 615.68 | I83: 628.12 | J83: 648.23 | K83: 608 | L83: 575.45 | M83: 6.07115
A84: 75 | B84: ENDURANCE | C84: 1595.7 | D84: 1591.30 | E84: 1574.20 | F84: 1552.70 | G84: 1535.60 | H84: 1612.80 | I84: 1629.90 | J84: 1651.40 | K84: 1608.4 | L84: 1569.8 | M84: 1.05124
A85: 76 | B85: ESCORTS | C85: 1257.4 | D85: 1248.00 | E85: 1192.60 | F85: 1127.80 | G85: 1072.40 | H85: 1312.80 | I85: 1368.20 | J85: 1433.00 | K85: 1303.4 | L85: 1183.2 | M85: 54.07854
A86: 77 | B86: EXIDEIND | C86: 158.4 | D86: 158.90 | E86: 156.40 | F86: 154.40 | G86: 151.90 | H86: 160.90 | I86: 163.40 | J86: 165.40 | K86: 161.4 | L86: 156.9 | M86: 24.67456
A87: 78 | B87: FEDERALBNK | C87: 78.25 | D87: 78.98 | E87: 77.12 | F87: 75.98 | G87: 74.12 | H87: 80.12 | I87: 81.98 | J87: 83.12 | K87: 80.85 | L87: 77.85 | M87: 99.98875
A88: 79 | B88: FORTIS | C88: 280 | D88: 280.97 | E88: 270.58 | F88: 261.17 | G88: 250.78 | H88: 290.38 | I88: 300.77 | J88: 310.18 | K88: 291.35 | L88: 271.55 | M88: 127.65049
A89: 80 | B89: GAIL | C89: 140.8 | D89: 141.63 | E89: 139.17 | F89: 137.53 | G89: 135.07 | H89: 143.27 | I89: 145.73 | J89: 147.37 | K89: 144.1 | L89: 140 | M89: 79.97462
A90: 81 | B90: GMRINFRA | C90: 27.55 | D90: 27.68 | E90: 27.27 | F90: 26.98 | G90: 26.57 | H90: 27.97 | I90: 28.38 | J90: 28.67 | K90: 28.1 | L90: 27.4 | M90: 126.67787
A91: 82 | B91: GLAND | C91: 3871.25 | D91: 3919.75 | E91: 3751.50 | F91: 3631.75 | G91: 3463.50 | H91: 4039.50 | I91: 4207.75 | J91: 4327.50 | K91: 4088 | L91: 3800 | M91: 3.10148
A92: 83 | B92: GLENMARK | C92: 527.65 | D92: 533.20 | E92: 518.50 | F92: 509.35 | G92: 494.65 | H92: 542.35 | I92: 557.05 | J92: 566.20 | K92: 547.9 | L92: 524.05 | M92: 12.5648
A93: 84 | B93: GODREJAGRO | C93: 616 | D93: 625.18 | E93: 601.97 | F93: 587.93 | G93: 564.72 | H93: 639.22 | I93: 662.43 | J93: 676.47 | K93: 648.4 | L93: 611.15 | M93: 1.38201
A94: 85 | B94: GODREJCP | C94: 1029.75 | D94: 1039.25 | E94: 1015.50 | F94: 1001.25 | G94: 977.50 | H94: 1053.50 | I94: 1077.25 | J94: 1091.50 | K94: 1063 | L94: 1025 | M94: 27.08079
A95: 86 | B95: GODREJIND | C95: 550.55 | D95: 553.08 | E95: 543.07 | F95: 535.58 | G95: 525.57 | H95: 560.57 | I95: 570.58 | J95: 578.07 | K95: 563.1 | L95: 545.6 | M95: 1.27229
A96: 87 | B96: GODREJPROP | C96: 1475.85 | D96: 1483.58 | E96: 1460.27 | F96: 1444.68 | G96: 1421.37 | H96: 1499.17 | I96: 1522.48 | J96: 1538.07 | K96: 1506.9 | L96: 1468 | M96: 12.10796
A97: 88 | B97: GRASIM | C97: 1440.65 | D97: 1457.30 | E97: 1415.35 | F97: 1390.05 | G97: 1348.10 | H97: 1482.60 | I97: 1524.55 | J97: 1549.85 | K97: 1499.25 | L97: 1432 | M97: 11.63742
A98: 89 | B98: GUJGASLTD | C98: 695.95 | D98: 702.55 | E98: 683.40 | F98: 670.85 | G98: 651.70 | H98: 715.10 | I98: 734.25 | J98: 746.80 | K98: 721.7 | L98: 690 | M98: 11.82548
A99: 90 | B99: GSPL | C99: 367.2 | D99: 362.72 | E99: 347.43 | F99: 327.67 | G99: 312.38 | H99: 382.48 | I99: 397.77 | J99: 417.53 | K99: 378 | L99: 342.95 | M99: 14.71696
A100: 91 | B100: HCLTECH | C100: 1163.1 | D100: 1155.78 | E100: 1133.37 | F100: 1103.63 | G100: 1081.22 | H100: 1185.52 | I100: 1207.93 | J100: 1237.67 | K100: 1178.2 | L100: 1126.05 | M100: 93.8378
A101: 92 | B101: HDFCAMC | C101: 2906.05 | D101: 2905.73 | E101: 2852.17 | F101: 2798.28 | G101: 2744.72 | H101: 2959.62 | I101: 3013.18 | J101: 3067.07 | K101: 2959.3 | L101: 2851.85 | M101: 3.50678
A102: 93 | B102: HDFCBANK | C102: 1524.6 | D102: 1522.13 | E102: 1511.12 | F102: 1497.63 | G102: 1486.62 | H102: 1535.62 | I102: 1546.63 | J102: 1560.12 | K102: 1533.15 | L102: 1508.65 | M102: 54.21527
A103: 94 | B103: HDFCLIFE | C103: 668.8 | D103: 667.97 | E103: 663.13 | F103: 657.47 | G103: 652.63 | H103: 673.63 | I103: 678.47 | J103: 684.13 | K103: 672.8 | L103: 662.3 | M103: 21.73978
A104: 95 | B104: HAVELLS | C104: 1259.2 | D104: 1263.35 | E104: 1237.20 | F104: 1215.20 | G104: 1189.05 | H104: 1285.35 | I104: 1311.50 | J104: 1333.50 | K104: 1289.5 | L104: 1241.35 | M104: 38.35797
A105: 96 | B105: HEROMOTOCO | C105: 2680.6 | D105: 2682.67 | E105: 2654.43 | F105: 2628.27 | G105: 2600.03 | H105: 2708.83 | I105: 2737.07 | J105: 2763.23 | K105: 2710.9 | L105: 2656.5 | M105: 7.58426
A106: 97 | B106: HINDALCO | C106: 406.85 | D106: 407.37 | E106: 398.98 | F106: 391.12 | G106: 382.73 | H106: 415.23 | I106: 423.62 | J106: 431.48 | K106: 415.75 | L106: 399.5 | M106: 159.4302
A107: 98 | B107: HAL | C107: 1112.25 | D107: 1123.92 | E107: 1089.93 | F107: 1067.62 | G107: 1033.63 | H107: 1146.23 | I107: 1180.22 | J107: 1202.53 | K107: 1157.9 | L107: 1101.6 | M107: 5.95485
A108: 99 | B108: HINDPETRO | C108: 245.65 | D108: 246.95 | E108: 243.20 | F108: 240.75 | G108: 237.00 | H108: 249.40 | I108: 253.15 | J108: 255.60 | K108: 250.7 | L108: 244.5 | M108: 23.14084
A109: 100 | B109: HINDUNILVR | C109: 2634.15 | D109: 2633.83 | E109: 2594.82 | F109: 2555.48 | G109: 2516.47 | H109: 2673.17 | I109: 2712.18 | J109: 2751.52 | K109: 2672.85 | L109: 2594.5 | M109: 21.6322
A110: 101 | B110: HINDZINC | C110: 310.25 | D110: 305.87 | E110: 298.48 | F110: 286.72 | G110: 279.33 | H110: 317.63 | I110: 325.02 | J110: 336.78 | K110: 313.25 | L110: 294.1 | M110: 21.82369
A111: 102 | B111: HDFC | C111: 2721.95 | D111: 2730.15 | E111: 2701.80 | F111: 2681.65 | G111: 2653.30 | H111: 2750.30 | I111: 2778.65 | J111: 2798.80 | K111: 2758.5 | L111: 2710 | M111: 19.017
A112: 103 | B112: ICICIBANK | C112: 682.7 | D112: 682.17 | E112: 674.38 | F112: 666.07 | G112: 658.28 | H112: 690.48 | I112: 698.27 | J112: 706.58 | K112: 689.95 | L112: 673.85 | M112: 109.17371
A113: 104 | B113: ICICIGI | C113: 1485.9 | D113: 1478.63 | E113: 1467.32 | F113: 1448.73 | G113: 1437.42 | H113: 1497.22 | I113: 1508.53 | J113: 1527.12 | K113: 1489.95 | L113: 1460.05 | M113: 5.00489
A114: 105 | B114: ICICIPRULI | C114: 681.45 | D114: 673.03 | E114: 662.17 | F114: 642.88 | G114: 632.02 | H114: 692.32 | I114: 703.18 | J114: 722.47 | K114: 683.9 | L114: 653.75 | M114: 11.68916
A115: 106 | B115: ISEC | C115: 668.55 | D115: 675.63 | E115: 653.47 | F115: 638.38 | G115: 616.22 | H115: 690.72 | I115: 712.88 | J115: 727.97 | K115: 697.8 | L115: 660.55 | M115: 6.82131
A116: 107 | B116: IDFCFIRSTB | C116: 40.95 | D116: 41.43 | E116: 40.27 | F116: 39.58 | G116: 38.42 | H116: 42.12 | I116: 43.28 | J116: 43.97 | K116: 42.6 | L116: 40.75 | M116: 421.8214
A117: 108 | B117: ITC | C117: 206.3 | D117: 207.50 | E117: 204.80 | F117: 203.30 | G117: 200.60 | H117: 209.00 | I117: 211.70 | J117: 213.20 | K117: 210.2 | L117: 206 | M117: 99.36365
A118: 109 | B118: IBULHSGFIN | C118: 218.75 | D118: 221.58 | E118: 213.72 | F118: 208.68 | G118: 200.82 | H118: 226.62 | I118: 234.48 | J118: 239.52 | K118: 229.45 | L118: 216.55 | M118: 177.99352
A119: 110 | B119: INDIAMART | C119: 7056.9 | D119: 7072.92 | E119: 6975.98 | F119: 6895.07 | G119: 6798.13 | H119: 7153.83 | I119: 7250.77 | J119: 7331.68 | K119: 7169.85 | L119: 6992 | M119: 0.51408
A120: 111 | B120: INDHOTEL | C120: 137.95 | D120: 137.27 | E120: 133.73 | F120: 129.52 | G120: 125.98 | H120: 141.48 | I120: 145.02 | J120: 149.23 | K120: 140.8 | L120: 133.05 | M120: 16.57393
A121: 112 | B121: IOC | C121: 103 | D121: 103.37 | E121: 101.83 | F121: 100.67 | G121: 99.13 | H121: 104.53 | I121: 106.07 | J121: 107.23 | K121: 104.9 | L121: 102.2 | M121: 69.54749
A122: 113 | B122: IRCTC | C122: 2554.1 | D122: 2591.53 | E122: 2498.12 | F122: 2442.13 | G122: 2348.72 | H122: 2647.52 | I122: 2740.93 | J122: 2796.92 | K122: 2684.95 | L122: 2535.55 | M122: 17.11982
A123: 114 | B123: IGL | C123: 522.9 | D123: 522.00 | E123: 516.95 | F123: 511.00 | G123: 505.95 | H123: 527.95 | I123: 533.00 | J123: 538.95 | K123: 527.05 | L123: 516.05 | M123: 8.58134
A124: 115 | B124: INDUSTOWER | C124: 217.15 | D124: 217.60 | E124: 212.35 | F124: 207.55 | G124: 202.30 | H124: 222.40 | I124: 227.65 | J124: 232.45 | K124: 222.85 | L124: 212.8 | M124: 34.90743
A125: 116 | B125: INDUSINDBK | C125: 988.6 | D125: 983.87 | E125: 968.83 | F125: 949.07 | G125: 934.03 | H125: 1003.63 | I125: 1018.67 | J125: 1038.43 | K125: 998.9 | L125: 964.1 | M125: 29.14978
A126: 117 | B126: NAUKRI | C126: 5489.1 | D126: 5439.02 | E126: 5360.08 | F126: 5231.07 | G126: 5152.13 | H126: 5568.03 | I126: 5646.97 | J126: 5775.98 | K126: 5517.95 | L126: 5310 | M126: 2.87811
A127: 118 | B127: INFY | C127: 1738.75 | D127: 1741.30 | E127: 1729.45 | F127: 1720.15 | G127: 1708.30 | H127: 1750.60 | I127: 1762.45 | J127: 1771.75 | K127: 1753.15 | L127: 1732 | M127: 61.89051
A128: 119 | B128: INDIGO | C128: 1671.45 | D128: 1663.12 | E128: 1638.33 | F128: 1605.22 | G128: 1580.43 | H128: 1696.23 | I128: 1721.02 | J128: 1754.13 | K128: 1687.9 | L128: 1630 | M128: 4.84938
A129: 120 | B129: IPCALAB | C129: 2564.9 | D129: 2558.23 | E129: 2526.67 | F129: 2488.43 | G129: 2456.87 | H129: 2596.47 | I129: 2628.03 | J129: 2666.27 | K129: 2589.8 | L129: 2520 | M129: 3.07788
A130: 121 | B130: JSWENERGY | C130: 225.1 | D130: 229.28 | E130: 220.92 | F130: 216.73 | G130: 208.37 | H130: 233.47 | I130: 241.83 | J130: 246.02 | K130: 237.65 | L130: 225.1 | M130: 12.92584
A131: 122 | B131: JSWSTEEL | C131: 684.2 | D131: 682.97 | E131: 665.23 | F131: 646.27 | G131: 628.53 | H131: 701.93 | I131: 719.67 | J131: 738.63 | K131: 700.7 | L131: 664 | M131: 117.81361
A132: 123 | B132: JINDALSTEL | C132: 363.6 | D132: 368.90 | E132: 352.30 | F132: 341.00 | G132: 324.40 | H132: 380.20 | I132: 396.80 | J132: 408.10 | K132: 385.5 | L132: 357.6 | M132: 165.23384
A133: 124 | B133: JUBLFOOD | C133: 3791.4 | D133: 3853.27 | E133: 3703.13 | F133: 3614.87 | G133: 3464.73 | H133: 3941.53 | I133: 4091.67 | J133: 4179.93 | K133: 4003.4 | L133: 3765 | M133: 8.79629
A134: 125 | B134: KOTAKBANK | C134: 1716.85 | D134: 1713.80 | E134: 1703.05 | F134: 1689.25 | G134: 1678.50 | H134: 1727.60 | I134: 1738.35 | J134: 1752.15 | K134: 1724.55 | L134: 1700 | M134: 30.93169
A135: 126 | B135: L&TFH | C135: 76.9 | D135: 77.85 | E135: 75.15 | F135: 73.40 | G135: 70.70 | H135: 79.60 | I135: 82.30 | J135: 84.05 | K135: 80.55 | L135: 76.1 | M135: 77.43094
A136: 127 | B136: LTTS | C136: 3921.55 | D136: 3924.18 | E136: 3868.37 | F136: 3815.18 | G136: 3759.37 | H136: 3977.37 | I136: 4033.18 | J136: 4086.37 | K136: 3980 | L136: 3871 | M136: 6.80922
A137: 128 | B137: LICHSGFIN | C137: 367.5 | D137: 371.20 | E137: 361.40 | F137: 355.30 | G137: 345.50 | H137: 377.30 | I137: 387.10 | J137: 393.20 | K137: 381 | L137: 365.1 | M137: 24.62085
A138: 129 | B138: LTI | C138: 5053.1 | D138: 5030.37 | E138: 4953.73 | F138: 4854.37 | G138: 4777.73 | H138: 5129.73 | I138: 5206.37 | J138: 5305.73 | K138: 5107 | L138: 4931 | M138: 5.38165
A139: 130 | B139: LT | C139: 1580.75 | D139: 1589.22 | E139: 1559.43 | F139: 1538.12 | G139: 1508.33 | H139: 1610.53 | I139: 1640.32 | J139: 1661.63 | K139: 1619 | L139: 1567.9 | M139: 19.73841
A140: 131 | B140: LAURUSLABS | C140: 637.7 | D140: 650.05 | E140: 615.75 | F140: 593.80 | G140: 559.50 | H140: 672.00 | I140: 706.30 | J140: 728.25 | K140: 684.35 | L140: 628.1 | M140: 40.28231
A141: 132 | B141: LUPIN | C141: 925.6 | D141: 927.05 | E141: 913.50 | F141: 901.40 | G141: 887.85 | H141: 939.15 | I141: 952.70 | J141: 964.80 | K141: 940.6 | L141: 914.95 | M141: 27.03012
A142: 133 | B142: MRF | C142: 76162.9 | D142: 76937.30 | E142: 75175.60 | F142: 74188.30 | G142: 72426.60 | H142: 77924.60 | I142: 79686.30 | J142: 80673.60 | K142: 78699 | L142: 75950 | M142: 0.14541
A143: 134 | B143: MGL | C143: 1084 | D143: 1093.82 | E143: 1070.03 | F143: 1056.07 | G143: 1032.28 | H143: 1107.78 | I143: 1131.57 | J143: 1145.53 | K143: 1117.6 | L143: 1079.85 | M143: 8.76045
A144: 135 | B144: M&MFIN | C144: 139.4 | D144: 141.10 | E144: 136.85 | F144: 134.30 | G144: 130.05 | H144: 143.65 | I144: 147.90 | J144: 150.45 | K144: 145.35 | L144: 138.55 | M144: 39.57665
A145: 136 | B145: M&M | C145: 765.9 | D145: 774.33 | E145: 755.22 | F145: 744.53 | G145: 725.42 | H145: 785.02 | I145: 804.13 | J145: 814.82 | K145: 793.45 | L145: 763.65 | M145: 25.1296
A146: 137 | B146: MANAPPURAM | C146: 158.45 | D146: 158.23 | E146: 154.77 | F146: 151.08 | G146: 147.62 | H146: 161.92 | I146: 165.38 | J146: 169.07 | K146: 161.7 | L146: 154.55 | M146: 74.62762
A147: 138 | B147: MARICO | C147: 528.4 | D147: 532.38 | E147: 523.27 | F147: 518.13 | G147: 509.02 | H147: 537.52 | I147: 546.63 | J147: 551.77 | K147: 541.5 | L147: 527.25 | M147: 44.64213
A148: 139 | B148: MARUTI | C148: 6825.9 | D148: 6848.30 | E148: 6778.60 | F148: 6731.30 | G148: 6661.60 | H148: 6895.60 | I148: 6965.30 | J148: 7012.60 | K148: 6918 | L148: 6801 | M148: 5.37302
A149: 140 | B149: MFSL | C149: 1041.05 | D149: 1052.78 | E149: 1022.57 | F149: 1004.08 | G149: 973.87 | H149: 1071.27 | I149: 1101.48 | J149: 1119.97 | K149: 1083 | L149: 1034.3 | M149: 13.01351
A150: 141 | B150: MINDTREE | C150: 3500.7 | D150: 3461.90 | E150: 3388.80 | F150: 3276.90 | G150: 3203.80 | H150: 3573.80 | I150: 3646.90 | J150: 3758.80 | K150: 3535 | L150: 3350 | M150: 31.91119
A151: 142 | B151: MPHASIS | C151: 2866.9 | D151: 2904.38 | E151: 2807.77 | F151: 2748.63 | G151: 2652.02 | H151: 2963.52 | I151: 3060.13 | J151: 3119.27 | K151: 3001 | L151: 2845.25 | M151: 19.5687
A152: 143 | B152: MUTHOOTFIN | C152: 1458.25 | D152: 1459.12 | E152: 1440.33 | F152: 1422.42 | G152: 1403.63 | H152: 1477.03 | I152: 1495.82 | J152: 1513.73 | K152: 1477.9 | L152: 1441.2 | M152: 7.22315
A153: 144 | B153: NATCOPHARM | C153: 902.35 | D153: 911.17 | E153: 882.33 | F153: 862.32 | G153: 833.48 | H153: 931.18 | I153: 960.02 | J153: 980.03 | K153: 940 | L153: 891.15 | M153: 2.73244
A154: 145 | B154: NMDC | C154: 146.8 | D154: 148.92 | E154: 143.13 | F154: 139.47 | G154: 133.68 | H154: 152.58 | I154: 158.37 | J154: 162.03 | K154: 154.7 | L154: 145.25 | M154: 149.83019
A155: 146 | B155: NTPC | C155: 113.4 | D155: 113.78 | E155: 111.82 | F155: 110.23 | G155: 108.27 | H155: 115.37 | I155: 117.33 | J155: 118.92 | K155: 115.75 | L155: 112.2 | M155: 62.71685
A156: 147 | B156: NAVINFLUOR | C156: 3618.8 | D156: 3631.27 | E156: 3527.58 | F156: 3436.37 | G156: 3332.68 | H156: 3722.48 | I156: 3826.17 | J156: 3917.38 | K156: 3734.95 | L156: 3540.05 | M156: 1.96515
A157: 148 | B157: NESTLEIND | C157: 20021.05 | D157: 19891.23 | E157: 19687.47 | F157: 19353.88 | G157: 19150.12 | H157: 20224.82 | I157: 20428.58 | J157: 20762.17 | K157: 20095 | L157: 19557.65 | M157: 1.48742
A158: 149 | B158: NAM-INDIA | C158: 389.05 | D158: 390.10 | E158: 382.50 | F158: 375.95 | G158: 368.35 | H158: 396.65 | I158: 404.25 | J158: 410.80 | K158: 397.7 | L158: 383.55 | M158: 9.44656
A159: 150 | B159: OBEROIRLTY | C159: 664.1 | D159: 666.77 | E159: 649.53 | F159: 634.97 | G159: 617.73 | H159: 681.33 | I159: 698.57 | J159: 713.13 | K159: 684 | L159: 652.2 | M159: 5.13598
A160: 151 | B160: ONGC | C160: 111.75 | D160: 110.75 | E160: 109.50 | F160: 107.25 | G160: 106.00 | H160: 113.00 | I160: 114.25 | J160: 116.50 | K160: 112 | L160: 108.5 | M160: 168.86027
A161: 152 | B161: OIL | C161: 168.15 | D161: 168.87 | E161: 165.73 | F161: 163.32 | G161: 160.18 | H161: 171.28 | I161: 174.42 | J161: 176.83 | K161: 172 | L161: 166.45 | M161: 15.01011
A162: 153 | B162: PIIND | C162: 3089.8 | D162: 3115.62 | E162: 3035.23 | F162: 2980.67 | G162: 2900.28 | H162: 3170.18 | I162: 3250.57 | J162: 3305.13 | K162: 3196 | L162: 3061.05 | M162: 1.35612
A163: 154 | B163: PAGEIND | C163: 30908.65 | D163: 30863.55 | E163: 30547.10 | F163: 30185.55 | G163: 29869.10 | H163: 31225.10 | I163: 31541.55 | J163: 31903.10 | K163: 31180 | L163: 30502 | M163: 0.18611
A164: 155 | B164: PETRONET | C164: 225.7 | D164: 226.57 | E164: 222.13 | F164: 218.57 | G164: 214.13 | H164: 230.13 | I164: 234.57 | J164: 238.13 | K164: 231 | L164: 223 | M164: 87.34874
A165: 156 | B165: PFIZER | C165: 5725.95 | D165: 5767.28 | E165: 5659.67 | F165: 5593.38 | G165: 5485.77 | H165: 5833.57 | I165: 5941.18 | J165: 6007.47 | K165: 5874.9 | L165: 5701 | M165: 0.28122
A166: 157 | B166: PIDILITIND | C166: 2227.3 | D166: 2247.77 | E166: 2200.53 | F166: 2173.77 | G166: 2126.53 | H166: 2274.53 | I166: 2321.77 | J166: 2348.53 | K166: 2295 | L166: 2221 | M166: 6.49263
A167: 158 | B167: PEL | C167: 2552.25 | D167: 2585.35 | E167: 2498.20 | F167: 2444.15 | G167: 2357.00 | H167: 2639.40 | I167: 2726.55 | J167: 2780.60 | K167: 2672.5 | L167: 2531.3 | M167: 6.45837
A168: 159 | B168: POLYCAB | C168: 1830.25 | D168: 1851.88 | E168: 1789.07 | F168: 1747.88 | G168: 1685.07 | H168: 1893.07 | I168: 1955.88 | J168: 1997.07 | K168: 1914.7 | L168: 1810.7 | M168: 2.47602
A169: 160 | B169: PFC | C169: 123.15 | D169: 124.05 | E169: 121.40 | F169: 119.65 | G169: 117.00 | H169: 125.80 | I169: 128.45 | J169: 130.20 | K169: 126.7 | L169: 122.3 | M169: 50.93362
A170: 161 | B170: POWERGRID | C170: 175.65 | D170: 176.58 | E170: 173.27 | F170: 170.88 | G170: 167.57 | H170: 178.97 | I170: 182.28 | J170: 184.67 | K170: 179.9 | L170: 174.2 | M170: 98.34559
A171: 162 | B171: PRESTIGE | C171: 324 | D171: 325.73 | E171: 313.77 | F171: 303.53 | G171: 291.57 | H171: 335.97 | I171: 347.93 | J171: 358.17 | K171: 337.7 | L171: 315.5 | M171: 7.54732
A172: 163 | B172: PGHH | C172: 12756 | D172: 12746.75 | E172: 12609.25 | F172: 12462.50 | G172: 12325.00 | H172: 12893.50 | I172: 13031.00 | J172: 13177.75 | K172: 12884.25 | L172: 12600 | M172: 0.08328
A173: 164 | B173: PNB | C173: 36.15 | D173: 36.12 | E173: 35.48 | F173: 34.82 | G173: 34.18 | H173: 36.78 | I173: 37.42 | J173: 38.08 | K173: 36.75 | L173: 35.45 | M173: 548.15488
A174: 165 | B174: RBLBANK | C174: 157.6 | D174: 159.68 | E174: 154.47 | F174: 151.33 | G174: 146.12 | H174: 162.82 | I174: 168.03 | J174: 171.17 | K174: 164.9 | L174: 156.55 | M174: 71.58772
A175: 166 | B175: RECLTD | C175: 140.55 | D175: 142.02 | E175: 138.63 | F175: 136.72 | G175: 133.33 | H175: 143.93 | I175: 147.32 | J175: 149.23 | K175: 145.4 | L175: 140.1 | M175: 31.15684
A176: 167 | B176: RELIANCE | C176: 2162.35 | D176: 2156.22 | E176: 2138.43 | F176: 2114.52 | G176: 2096.73 | H176: 2180.13 | I176: 2197.92 | J176: 2221.83 | K176: 2174 | L176: 2132.3 | M176: 45.47802
A177: 168 | B177: SBICARD | C177: 1020.35 | D177: 1014.45 | E177: 1003.90 | F177: 987.45 | G177: 976.90 | H177: 1030.90 | I177: 1041.45 | J177: 1057.90 | K177: 1025 | L177: 998 | M177: 9.6075
A178: 169 | B178: SBILIFE | C178: 1135.45 | D178: 1131.67 | E178: 1122.38 | F178: 1109.32 | G178: 1100.03 | H178: 1144.73 | I178: 1154.02 | J178: 1167.08 | K178: 1140.95 | L178: 1118.6 | M178: 12.51406
A179: 170 | B179: SRF | C179: 8971 | D179: 9051.67 | E179: 8824.33 | F179: 8677.67 | G179: 8450.33 | H179: 9198.33 | I179: 9425.67 | J179: 9572.33 | K179: 9279 | L179: 8905 | M179: 2.86945
A180: 171 | B180: SANOFI | C180: 8812.5 | D180: 8772.50 | E180: 8685.00 | F180: 8557.50 | G180: 8470.00 | H180: 8900.00 | I180: 8987.50 | J180: 9115.00 | K180: 8860 | L180: 8645 | M180: 0.15142
A181: 172 | B181: SHREECEM | C181: 25985.95 | D181: 26080.40 | E181: 25710.80 | F181: 25435.65 | G181: 25066.05 | H181: 26355.55 | I181: 26725.15 | J181: 27000.30 | K181: 26450 | L181: 25805.25 | M181: 0.58352
A182: 173 | B182: SRTRANSFIN | C182: 1245.7 | D182: 1245.70 | E182: 1216.00 | F182: 1186.30 | G182: 1156.60 | H182: 1275.40 | I182: 1305.10 | J182: 1334.80 | K182: 1275.4 | L182: 1216 | M182: 10.38015
A183: 174 | B183: SIEMENS | C183: 2163.65 | D183: 2183.92 | E183: 2135.73 | F183: 2107.82 | G183: 2059.63 | H183: 2211.83 | I183: 2260.02 | J183: 2287.93 | K183: 2232.1 | L183: 2156 | M183: 3.08577
A184: 175 | B184: SBIN | C184: 409.5 | D184: 407.92 | E184: 402.83 | F184: 396.17 | G184: 391.08 | H184: 414.58 | I184: 419.67 | J184: 426.33 | K184: 413 | L184: 401.25 | M184: 265.59937
A185: 176 | B185: SAIL | C185: 115.15 | D185: 116.87 | E185: 110.83 | F185: 106.52 | G185: 100.48 | H185: 121.18 | I185: 127.22 | J185: 131.53 | K185: 122.9 | L185: 112.55 | M185: 875.6632
A186: 177 | B186: SUNPHARMA | C186: 759.35 | D186: 760.05 | E186: 750.10 | F186: 740.85 | G186: 730.90 | H186: 769.30 | I186: 779.25 | J186: 788.50 | K186: 770 | L186: 750.8 | M186: 23.75417
A187: 178 | B187: SUNTV | C187: 474.55 | D187: 478.52 | E187: 467.03 | F187: 459.52 | G187: 448.03 | H187: 486.03 | I187: 497.52 | J187: 505.03 | K187: 490 | L187: 471 | M187: 10.80933
A188: 179 | B188: SYNGENE | C188: 609.5 | D188: 615.18 | E188: 599.42 | F188: 589.33 | G188: 573.57 | H188: 625.27 | I188: 641.03 | J188: 651.12 | K188: 630.95 | L188: 605.1 | M188: 2.39298
A189: 180 | B189: TVSMOTOR | C189: 501.3 | D189: 505.52 | E189: 495.78 | F189: 490.27 | G189: 480.53 | H189: 511.03 | I189: 520.77 | J189: 526.28 | K189: 515.25 | L189: 500 | M189: 13.43003
A190: 181 | B190: TATACHEM | C190: 822.25 | D190: 829.92 | E190: 806.83 | F190: 791.42 | G190: 768.33 | H190: 845.33 | I190: 868.42 | J190: 883.83 | K190: 853 | L190: 814.5 | M190: 20.25363
A191: 182 | B191: TCS | C191: 3637.4 | D191: 3624.10 | E191: 3575.20 | F191: 3513.00 | G191: 3464.10 | H191: 3686.30 | I191: 3735.20 | J191: 3797.40 | K191: 3673 | L191: 3561.9 | M191: 37.44176
A192: 183 | B192: TATACONSUM | C192: 832.5 | D192: 835.07 | E192: 820.43 | F192: 808.37 | G192: 793.73 | H192: 847.13 | I192: 861.77 | J192: 873.83 | K192: 849.7 | L192: 823 | M192: 21.61681
A193: 184 | B193: TATAELXSI | C193: 4685.3 | D193: 4698.92 | E193: 4617.93 | F193: 4550.57 | G193: 4469.58 | H193: 4766.28 | I193: 4847.27 | J193: 4914.63 | K193: 4779.9 | L193: 4631.55 | M193: 1.51556
A194: 185 | B194: TATAMOTORS | C194: 276.95 | D194: 280.08 | E194: 271.87 | F194: 266.78 | G194: 258.57 | H194: 285.17 | I194: 293.38 | J194: 298.47 | K194: 288.3 | L194: 275 | M194: 244.98294
A195: 186 | B195: TATAPOWER | C195: 124.95 | D195: 124.83 | E195: 121.82 | F195: 118.68 | G195: 115.67 | H195: 127.97 | I195: 130.98 | J195: 134.12 | K195: 127.85 | L195: 121.7 | M195: 304.34681
A196: 187 | B196: TATASTEEL | C196: 1358.65 | D196: 1359.73 | E196: 1309.67 | F196: 1260.68 | G196: 1210.62 | H196: 1408.72 | I196: 1458.78 | J196: 1507.77 | K196: 1409.8 | L196: 1310.75 | M196: 229.25729
A197: 188 | B197: TECHM | C197: 1416 | D197: 1422.65 | E197: 1402.35 | F197: 1388.70 | G197: 1368.40 | H197: 1436.30 | I197: 1456.60 | J197: 1470.25 | K197: 1442.95 | L197: 1409 | M197: 39.8724
A198: 189 | B198: RAMCOCEM | C198: 946.8 | D198: 951.42 | E198: 928.83 | F198: 910.87 | G198: 888.28 | H198: 969.38 | I198: 991.97 | J198: 1009.93 | K198: 974 | L198: 933.45 | M198: 3.88737
A199: 190 | B199: TITAN | C199: 1870.35 | D199: 1871.07 | E199: 1847.13 | F199: 1823.92 | G199: 1799.98 | H199: 1894.28 | I199: 1918.22 | J199: 1941.43 | K199: 1895 | L199: 1847.85 | M199: 10.92285
A200: 191 | B200: TORNTPHARM | C200: 3061.95 | D200: 3044.30 | E200: 3017.65 | F200: 2973.35 | G200: 2946.70 | H200: 3088.60 | I200: 3115.25 | J200: 3159.55 | K200: 3070.95 | L200: 3000 | M200: 1.01868
A201: 192 | B201: TORNTPOWER | C201: 453.55 | D201: 450.23 | E201: 440.57 | F201: 427.58 | G201: 417.92 | H201: 463.22 | I201: 472.88 | J201: 485.87 | K201: 459.9 | L201: 437.25 | M201: 10.28391
A202: 193 | B202: TRENT | C202: 884.2 | D202: 884.03 | E202: 866.32 | F202: 848.43 | G202: 830.72 | H202: 901.92 | I202: 919.63 | J202: 937.52 | K202: 901.75 | L202: 866.15 | M202: 7.10233
A203: 194 | B203: UPL | C203: 718.95 | D203: 723.67 | E203: 709.78 | F203: 700.62 | G203: 686.73 | H203: 732.83 | I203: 746.72 | J203: 755.88 | K203: 737.55 | L203: 714.5 | M203: 25.73379
A204: 195 | B204: ULTRACEMCO | C204: 7351 | D204: 7400.45 | E204: 7238.55 | F204: 7126.10 | G204: 6964.20 | H204: 7512.90 | I204: 7674.80 | J204: 7787.25 | K204: 7562.35 | L204: 7288 | M204: 3.1022
A205: 196 | B205: UNIONBANK | C205: 33 | D205: 33.22 | E205: 32.48 | F205: 31.97 | G205: 31.23 | H205: 33.73 | I205: 34.47 | J205: 34.98 | K205: 33.95 | L205: 32.7 | M205: 63.57034
... 29 more rows

Sheet MidCap Intra
L5: Back To Main Page
A6: FOR INTRA DAY TRADING | K6: =Main!B10 -> 2021-08-24
A9: Sr.no | B9: Scrip | C9: CLOSE RATE | D9: Pivot Point | E9: Supports | H9: Resistances
E10: S1 | F10: S2 | G10: S3 | H10: R1 | I10: R2 | J10: R3 | K10: HIGH | L10: LOW | M10: Total Trade Quanity in Lakhs
A11: 1 | B11: 3MINDIA | C11: 22799.9 | D11: 22938.12 | E11: 22603.73 | F11: 22407.57 | G11: 22073.18 | H11: 23134.28 | I11: 23468.67 | J11: 23664.83 | K11: 23272.5 | L11: 22741.95 | M11: 0.03628
A12: 2 | B12: ABB | C12: 1674.95 | D12: 1677.07 | E12: 1622.23 | F12: 1569.52 | G12: 1514.68 | H12: 1729.78 | I12: 1784.62 | J12: 1837.33 | K12: 1731.9 | L12: 1624.35 | M12: 0.82244
A13: 3 | B13: POWERINDIA | C13: 1808.05 | D13: 1799.85 | E13: 1763.75 | F13: 1719.45 | G13: 1683.35 | H13: 1844.15 | I13: 1880.25 | J13: 1924.55 | K13: 1835.95 | L13: 1755.55 | M13: 0.58689
A14: 4 | B14: ACC | C14: 2261.45 | D14: 2270.67 | E14: 2221.33 | F14: 2181.22 | G14: 2131.88 | H14: 2310.78 | I14: 2360.12 | J14: 2400.23 | K14: 2320 | L14: 2230.55 | M14: 4.77873
A15: 5 | B15: AIAENG | C15: 1928.55 | D15: 1945.85 | E15: 1902.75 | F15: 1876.95 | G15: 1833.85 | H15: 1971.65 | I15: 2014.75 | J15: 2040.55 | K15: 1988.95 | L15: 1920.05 | M15: 1.14414
A16: 6 | B16: APLAPOLLO | C16: 1543.45 | D16: 1562.82 | E16: 1500.63 | F16: 1457.82 | G16: 1395.63 | H16: 1605.63 | I16: 1667.82 | J16: 1710.63 | K16: 1625 | L16: 1520 | M16: 1.26299
A17: 7 | B17: AUBANK | C17: 1294 | D17: 1298.83 | E17: 1272.67 | F17: 1251.33 | G17: 1225.17 | H17: 1320.17 | I17: 1346.33 | J17: 1367.67 | K17: 1325 | L17: 1277.5 | M17: 7.40854
A18: 8 | B18: AARTIDRUGS | C18: 586.55 | D18: 592.12 | E18: 574.43 | F18: 562.32 | G18: 544.63 | H18: 604.23 | I18: 621.92 | J18: 634.03 | K18: 609.8 | L18: 580 | M18: 2.503
A19: 9 | B19: AARTIIND | C19: 910.9 | D19: 915.72 | E19: 889.13 | F19: 867.37 | G19: 840.78 | H19: 937.48 | I19: 964.07 | J19: 985.83 | K19: 942.3 | L19: 893.95 | M19: 11.57287
A20: 10 | B20: AAVAS | C20: 2378 | D20: 2372.52 | E20: 2307.03 | F20: 2236.07 | G20: 2170.58 | H20: 2443.48 | I20: 2508.97 | J20: 2579.93 | K20: 2438 | L20: 2301.55 | M20: 2.54478
A21: 11 | B21: ABBOTINDIA | C21: 18945.45 | D21: 18950.15 | E21: 18799.30 | F21: 18653.15 | G21: 18502.30 | H21: 19096.30 | I21: 19247.15 | J21: 19393.30 | K21: 19101 | L21: 18804 | M21: 0.07464
A22: 12 | B22: ADANIENT | C22: 1396.7 | D22: 1395.33 | E22: 1362.92 | F22: 1329.13 | G22: 1296.72 | H22: 1429.12 | I22: 1461.53 | J22: 1495.32 | K22: 1427.75 | L22: 1361.55 | M22: 48.6608
A23: 13 | B23: ADANIGREEN | C23: 933.65 | D23: 933.55 | E23: 914.10 | F23: 894.55 | G23: 875.10 | H23: 953.10 | I23: 972.55 | J23: 992.10 | K23: 953 | L23: 914 | M23: 21.79201
A24: 14 | B24: ADANIPORTS | C24: 668.3 | D24: 675.03 | E24: 658.27 | F24: 648.23 | G24: 631.47 | H24: 685.07 | I24: 701.83 | J24: 711.87 | K24: 691.8 | L24: 665 | M24: 66.36881
A25: 15 | B25: ATGL | C25: 1126.45 | D25: 1112.30 | E25: 1098.15 | F25: 1069.85 | G25: 1055.70 | H25: 1140.60 | I25: 1154.75 | J25: 1183.05 | K25: 1126.45 | L25: 1084 | M25: 2.08476
A26: 16 | B26: ADANITRANS | C26: 1179.6 | D26: 1169.73 | E26: 1159.87 | F26: 1140.13 | G26: 1130.27 | H26: 1189.47 | I26: 1199.33 | J26: 1219.07 | K26: 1179.6 | L26: 1150 | M26: 1.60423
A27: 17 | B27: ABCAPITAL | C27: 99.05 | D27: 102.22 | E27: 94.83 | F27: 90.62 | G27: 83.23 | H27: 106.43 | I27: 113.82 | J27: 118.03 | K27: 109.6 | L27: 98 | M27: 53.59937
A28: 18 | B28: ABFRL | C28: 194 | D28: 196.72 | E28: 189.73 | F28: 185.47 | G28: 178.48 | H28: 200.98 | I28: 207.97 | J28: 212.23 | K28: 203.7 | L28: 192.45 | M28: 15.42994
A29: 19 | B29: ADVENZYMES | C29: 368.6 | D29: 368.97 | E29: 352.93 | F29: 337.27 | G29: 321.23 | H29: 384.63 | I29: 400.67 | J29: 416.33 | K29: 385 | L29: 353.3 | M29: 3.96837
A30: 20 | B30: AEGISCHEM | C30: 270.75 | D30: 270.30 | E30: 263.55 | F30: 256.35 | G30: 249.60 | H30: 277.50 | I30: 284.25 | J30: 291.45 | K30: 277.05 | L30: 263.1 | M30: 5.5782
A31: 21 | B31: AFFLE | C31: 3836.15 | D31: 3891.10 | E31: 3760.15 | F31: 3684.15 | G31: 3553.20 | H31: 3967.10 | I31: 4098.05 | J31: 4174.05 | K31: 4022.05 | L31: 3815.1 | M31: 1.04297
A32: 22 | B32: AJANTPHARM | C32: 2235.75 | D32: 2236.92 | E32: 2203.83 | F32: 2171.92 | G32: 2138.83 | H32: 2268.83 | I32: 2301.92 | J32: 2333.83 | K32: 2270 | L32: 2205 | M32: 0.59793
A33: 23 | B33: AKZOINDIA | C33: 2188.1 | D33: 2203.77 | E33: 2144.53 | F33: 2100.97 | G33: 2041.73 | H33: 2247.33 | I33: 2306.57 | J33: 2350.13 | K33: 2263 | L33: 2160.2 | M33: 0.11034
A34: 24 | B34: ALEMBICLTD | C34: 99.05 | D34: 100.72 | E34: 97.13 | F34: 95.22 | G34: 91.63 | H34: 102.63 | I34: 106.22 | J34: 108.13 | K34: 104.3 | L34: 98.8 | M34: 2.81755
A35: 25 | B35: APLLTD | C35: 734.55 | D35: 733.63 | E35: 721.27 | F35: 707.98 | G35: 695.62 | H35: 746.92 | I35: 759.28 | J35: 772.57 | K35: 746 | L35: 720.35 | M35: 4.07659
A36: 26 | B36: ALKEM | C36: 3796.55 | D36: 3807.80 | E36: 3759.30 | F36: 3722.05 | G36: 3673.55 | H36: 3845.05 | I36: 3893.55 | J36: 3930.80 | K36: 3856.3 | L36: 3770.55 | M36: 1.21111
A37: 27 | B37: ALKYLAMINE | C37: 3996.4 | D37: 4030.73 | E37: 3940.67 | F37: 3884.93 | G37: 3794.87 | H37: 4086.47 | I37: 4176.53 | J37: 4232.27 | K37: 4120.8 | L37: 3975 | M37: 0.86635
A38: 28 | B38: ALOKINDS | C38: 20.85 | D38: 21.07 | E38: 20.43 | F38: 20.02 | G38: 19.38 | H38: 21.48 | I38: 22.12 | J38: 22.53 | K38: 21.7 | L38: 20.65 | M38: 54.93778
A39: 29 | B39: AMARAJABAT | C39: 680.5 | D39: 686.37 | E39: 669.33 | F39: 658.17 | G39: 641.13 | H39: 697.53 | I39: 714.57 | J39: 725.73 | K39: 703.4 | L39: 675.2 | M39: 13.43726
A40: 30 | B40: AMBER | C40: 2742.8 | D40: 2754.18 | E40: 2699.37 | F40: 2655.93 | G40: 2601.12 | H40: 2797.62 | I40: 2852.43 | J40: 2895.87 | K40: 2809 | L40: 2710.75 | M40: 0.47431
A41: 31 | B41: AMBUJACEM | C41: 390.65 | D41: 389.53 | E41: 382.37 | F41: 374.08 | G41: 366.92 | H41: 397.82 | I41: 404.98 | J41: 413.27 | K41: 396.7 | L41: 381.25 | M41: 54.38059
A42: 32 | B42: ANGELBRKG | C42: 1072.2 | D42: 1113.32 | E42: 1024.38 | F42: 976.57 | G42: 887.63 | H42: 1161.13 | I42: 1250.07 | J42: 1297.88 | K42: 1202.25 | L42: 1065.5 | M42: 6.77402
A43: 33 | B43: APOLLOHOSP | C43: 4743.25 | D43: 4767.70 | E43: 4695.75 | F43: 4648.25 | G43: 4576.30 | H43: 4815.20 | I43: 4887.15 | J43: 4934.65 | K43: 4839.65 | L43: 4720.2 | M43: 6.99991
A44: 34 | B44: APOLLOTYRE | C44: 205.35 | D44: 207.92 | E44: 201.68 | F44: 198.02 | G44: 191.78 | H44: 211.58 | I44: 217.82 | J44: 221.48 | K44: 214.15 | L44: 204.25 | M44: 40.7988
A45: 35 | B45: ASAHIINDIA | C45: 328.1 | D45: 331.02 | E45: 322.03 | F45: 315.97 | G45: 306.98 | H45: 337.08 | I45: 346.07 | J45: 352.13 | K45: 340 | L45: 324.95 | M45: 0.95493
A46: 36 | B46: ASHOKLEY | C46: 117.75 | D46: 117.98 | E46: 114.62 | F46: 111.48 | G46: 108.12 | H46: 121.12 | I46: 124.48 | J46: 127.62 | K46: 121.35 | L46: 114.85 | M46: 209.13253
A47: 37 | B47: ASHOKA | C47: 95.95 | D47: 97.97 | E47: 93.48 | F47: 91.02 | G47: 86.53 | H47: 100.43 | I47: 104.92 | J47: 107.38 | K47: 102.45 | L47: 95.5 | M47: 13.47971
A48: 38 | B48: ASIANPAINT | C48: 3077.45 | D48: 3097.43 | E48: 3031.02 | F48: 2984.58 | G48: 2918.17 | H48: 3143.87 | I48: 3210.28 | J48: 3256.72 | K48: 3163.85 | L48: 3051 | M48: 15.78949
A49: 39 | B49: ASTERDM | C49: 192.35 | D49: 195.15 | E49: 186.40 | F49: 180.45 | G49: 171.70 | H49: 201.10 | I49: 209.85 | J49: 215.80 | K49: 203.9 | L49: 189.2 | M49: 130.57474
A50: 40 | B50: ASTRAZEN | C50: 3091.1 | D50: 3092.47 | E50: 3054.03 | F50: 3016.97 | G50: 2978.53 | H50: 3129.53 | I50: 3167.97 | J50: 3205.03 | K50: 3130.9 | L50: 3055.4 | M50: 0.20949
A51: 41 | B51: ASTRAL | C51: 2018.9 | D51: 2022.95 | E51: 1960.95 | F51: 1903.00 | G51: 1841.00 | H51: 2080.90 | I51: 2142.90 | J51: 2200.85 | K51: 2084.95 | L51: 1965 | M51: 2.79989
A52: 42 | B52: ATUL | C52: 9042.55 | D52: 9027.97 | E52: 8887.48 | F52: 8732.42 | G52: 8591.93 | H52: 9183.03 | I52: 9323.52 | J52: 9478.58 | K52: 9168.45 | L52: 8872.9 | M52: 0.28079
A53: 43 | B53: AUROPHARMA | C53: 682.95 | D53: 695.77 | E53: 665.33 | F53: 647.72 | G53: 617.28 | H53: 713.38 | I53: 743.82 | J53: 761.43 | K53: 726.2 | L53: 678.15 | M53: 129.77112
A54: 44 | B54: AVANTIFEED | C54: 529.15 | D54: 538.68 | E54: 514.47 | F54: 499.78 | G54: 475.57 | H54: 553.37 | I54: 577.58 | J54: 592.27 | K54: 562.9 | L54: 524 | M54: 2.66045
A55: 45 | B55: DMART | C55: 3673.75 | D55: 3672.58 | E55: 3645.17 | F55: 3616.58 | G55: 3589.17 | H55: 3701.17 | I55: 3728.58 | J55: 3757.17 | K55: 3700 | L55: 3644 | M55: 1.63347
A56: 46 | B56: AXISBANK | C56: 736.1 | D56: 740.00 | E56: 730.50 | F56: 724.90 | G56: 715.40 | H56: 745.60 | I56: 755.10 | J56: 760.70 | K56: 749.5 | L56: 734.4 | M56: 36.14761
A57: 47 | B57: BASF | C57: 3433.65 | D57: 3470.55 | E57: 3364.10 | F57: 3294.55 | G57: 3188.10 | H57: 3540.10 | I57: 3646.55 | J57: 3716.10 | K57: 3577 | L57: 3401 | M57: 0.46322
A58: 48 | B58: BEML | C58: 1301.55 | D58: 1299.80 | E58: 1289.60 | F58: 1277.65 | G58: 1267.45 | H58: 1311.75 | I58: 1321.95 | J58: 1333.90 | K58: 1310 | L58: 1287.85 | M58: 1.69728
A59: 49 | B59: BSE | C59: 1039.7 | D59: 1068.47 | E59: 1004.33 | F59: 968.97 | G59: 904.83 | H59: 1103.83 | I59: 1167.97 | J59: 1203.33 | K59: 1132.6 | L59: 1033.1 | M59: 5.23736
A60: 50 | B60: BAJAJ-AUTO | C60: 3668.25 | D60: 3701.10 | E60: 3614.30 | F60: 3560.35 | G60: 3473.55 | H60: 3755.05 | I60: 3841.85 | J60: 3895.80 | K60: 3787.9 | L60: 3647.15 | M60: 4.55643
A61: 51 | B61: BAJAJCON | C61: 245.55 | D61: 245.78 | E61: 239.82 | F61: 234.08 | G61: 228.12 | H61: 251.52 | I61: 257.48 | J61: 263.22 | K61: 251.75 | L61: 240.05 | M61: 8.00806
A62: 52 | B62: BAJAJELEC | C62: 1075.6 | D62: 1076.60 | E62: 1048.90 | F62: 1022.20 | G62: 994.50 | H62: 1103.30 | I62: 1131.00 | J62: 1157.70 | K62: 1104.3 | L62: 1049.9 | M62: 4.33466
A63: 53 | B63: BAJFINANCE | C63: 6752.2 | D63: 6756.23 | E63: 6692.97 | F63: 6633.73 | G63: 6570.47 | H63: 6815.47 | I63: 6878.73 | J63: 6937.97 | K63: 6819.5 | L63: 6697 | M63: 17.3834
A64: 54 | B64: BAJAJFINSV | C64: 15271.9 | D64: 15252.30 | E64: 15084.60 | F64: 14897.30 | G64: 14729.60 | H64: 15439.60 | I64: 15607.30 | J64: 15794.60 | K64: 15420 | L64: 15065 | M64: 3.26688
A65: 55 | B65: BAJAJHLDNG | C65: 4121.5 | D65: 4123.30 | E65: 4079.20 | F65: 4036.90 | G65: 3992.80 | H65: 4165.60 | I65: 4209.70 | J65: 4252.00 | K65: 4167.4 | L65: 4081 | M65: 0.71845
A66: 56 | B66: BALAMINES | C66: 3269 | D66: 3269.10 | E66: 3179.90 | F66: 3090.80 | G66: 3001.60 | H66: 3358.20 | I66: 3447.40 | J66: 3536.50 | K66: 3358.3 | L66: 3180 | M66: 0.88454
A67: 57 | B67: BALKRISIND | C67: 2279.85 | D67: 2268.18 | E67: 2238.37 | F67: 2196.88 | G67: 2167.07 | H67: 2309.67 | I67: 2339.48 | J67: 2380.97 | K67: 2298 | L67: 2226.7 | M67: 4.68896
A68: 58 | B68: BALMLAWRIE | C68: 123.1 | D68: 124.92 | E68: 120.83 | F68: 118.57 | G68: 114.48 | H68: 127.18 | I68: 131.27 | J68: 133.53 | K68: 129 | L68: 122.65 | M68: 3.39472
A69: 59 | B69: BALRAMCHIN | C69: 357.1 | D69: 356.03 | E69: 351.07 | F69: 345.03 | G69: 340.07 | H69: 362.07 | I69: 367.03 | J69: 373.07 | K69: 361 | L69: 350 | M69: 11.68392
A70: 60 | B70: BANDHANBNK | C70: 266.65 | D70: 269.70 | E70: 258.95 | F70: 251.25 | G70: 240.50 | H70: 277.40 | I70: 288.15 | J70: 295.85 | K70: 280.45 | L70: 262 | M70: 67.42192
A71: 61 | B71: BANKBARODA | C71: 73.2 | D71: 73.70 | E71: 72.00 | F71: 70.80 | G71: 69.10 | H71: 74.90 | I71: 76.60 | J71: 77.80 | K71: 75.4 | L71: 72.5 | M71: 311.36268
A72: 62 | B72: BANKINDIA | C72: 62.5 | D72: 63.25 | E72: 61.35 | F72: 60.20 | G72: 58.30 | H72: 64.40 | I72: 66.30 | J72: 67.45 | K72: 65.15 | L72: 62.1 | M72: 19.2476
A73: 63 | B73: MAHABANK | C73: 18.05 | D73: 18.07 | E73: 17.18 | F73: 16.32 | G73: 15.43 | H73: 18.93 | I73: 19.82 | J73: 20.68 | K73: 18.95 | L73: 17.2 | M73: 56.56884
A74: 64 | B74: BATAINDIA | C74: 1727.75 | D74: 1741.02 | E74: 1707.73 | F74: 1687.72 | G74: 1654.43 | H74: 1761.03 | I74: 1794.32 | J74: 1814.33 | K74: 1774.3 | L74: 1721 | M74: 6.8532
A75: 65 | B75: BAYERCROP | C75: 5466.3 | D75: 5525.80 | E75: 5380.50 | F75: 5294.70 | G75: 5149.40 | H75: 5611.60 | I75: 5756.90 | J75: 5842.70 | K75: 5671.1 | L75: 5440 | M75: 0.1397
A76: 66 | B76: BERGEPAINT | C76: 795.45 | D76: 802.67 | E76: 778.38 | F76: 761.32 | G76: 737.03 | H76: 819.73 | I76: 844.02 | J76: 861.08 | K76: 826.95 | L76: 785.6 | M76: 12.61794
A77: 67 | B77: BDL | C77: 371.8 | D77: 373.23 | E77: 366.57 | F77: 361.33 | G77: 354.67 | H77: 378.47 | I77: 385.13 | J77: 390.37 | K77: 379.9 | L77: 368 | M77: 0.72248
A78: 68 | B78: BEL | C78: 175.15 | D78: 173.73 | E78: 170.57 | F78: 165.98 | G78: 162.82 | H78: 178.32 | I78: 181.48 | J78: 186.07 | K78: 176.9 | L78: 169.15 | M78: 88.961
A79: 69 | B79: BHARATFORG | C79: 719.65 | D79: 736.65 | E79: 700.00 | F79: 680.35 | G79: 643.70 | H79: 756.30 | I79: 792.95 | J79: 812.60 | K79: 773.3 | L79: 717 | M79: 36.55328
A80: 70 | B80: BHEL | C80: 51.45 | D80: 51.32 | E80: 50.08 | F80: 48.72 | G80: 47.48 | H80: 52.68 | I80: 53.92 | J80: 55.28 | K80: 52.55 | L80: 49.95 | M80: 411.80042
A81: 71 | B81: BPCL | C81: 451.7 | D81: 453.15 | E81: 446.65 | F81: 441.60 | G81: 435.10 | H81: 458.20 | I81: 464.70 | J81: 469.75 | K81: 459.65 | L81: 448.1 | M81: 39.62946
A82: 72 | B82: BHARATRAS | C82: 12051 | D82: 12211.92 | E82: 11839.08 | F82: 11627.17 | G82: 11254.33 | H82: 12423.83 | I82: 12796.67 | J82: 13008.58 | K82: 12584.75 | L82: 12000 | M82: 0.02683
A83: 73 | B83: BHARTIARTL | C83: 622.65 | D83: 620.25 | E83: 610.00 | F83: 597.35 | G83: 587.10 | H83: 632.90 | I83: 643.15 | J83: 655.80 | K83: 630.5 | L83: 607.6 | M83: 125.54898
A84: 74 | B84: BIOCON | C84: 333.2 | D84: 341.03 | E84: 319.72 | F84: 306.23 | G84: 284.92 | H84: 354.52 | I84: 375.83 | J84: 389.32 | K84: 362.35 | L84: 327.55 | M84: 72.50084
A85: 75 | B85: BIRLACORPN | C85: 1307.95 | D85: 1296.48 | E85: 1267.97 | F85: 1227.98 | G85: 1199.47 | H85: 1336.47 | I85: 1364.98 | J85: 1404.97 | K85: 1325 | L85: 1256.5 | M85: 1.80235
A86: 76 | B86: BSOFT | C86: 414.35 | D86: 411.40 | E86: 400.95 | F86: 387.55 | G86: 377.10 | H86: 424.80 | I86: 435.25 | J86: 448.65 | K86: 421.85 | L86: 398 | M86: 18.61165
A87: 77 | B87: BLISSGVS | C87: 101.8 | D87: 104.05 | E87: 98.85 | F87: 95.90 | G87: 90.70 | H87: 107.00 | I87: 112.20 | J87: 115.15 | K87: 109.25 | L87: 101.1 | M87: 3.56007
A88: 78 | B88: BLUEDART | C88: 5634.1 | D88: 5670.18 | E88: 5564.92 | F88: 5495.73 | G88: 5390.47 | H88: 5739.37 | I88: 5844.63 | J88: 5913.82 | K88: 5775.45 | L88: 5601 | M88: 0.19251
A89: 79 | B89: BLUESTARCO | C89: 800.25 | D89: 797.47 | E89: 782.83 | F89: 765.42 | G89: 750.78 | H89: 814.88 | I89: 829.52 | J89: 846.93 | K89: 812.1 | L89: 780.05 | M89: 0.47444
A90: 80 | B90: BBTC | C90: 1164.6 | D90: 1178.87 | E90: 1140.73 | F90: 1116.87 | G90: 1078.73 | H90: 1202.73 | I90: 1240.87 | J90: 1264.73 | K90: 1217 | L90: 1155 | M90: 4.07416
A91: 81 | B91: BOSCHLTD | C91: 13650.55 | D91: 13632.25 | E91: 13430.35 | F91: 13210.15 | G91: 13008.25 | H91: 13852.45 | I91: 14054.35 | J91: 14274.55 | K91: 13834.15 | L91: 13412.05 | M91: 0.31017
A92: 82 | B92: BRIGADE | C92: 310.55 | D92: 310.60 | E92: 301.45 | F92: 292.35 | G92: 283.20 | H92: 319.70 | I92: 328.85 | J92: 337.95 | K92: 319.75 | L92: 301.5 | M92: 2.0798
A93: 83 | B93: BRITANNIA | C93: 3866.25 | D93: 3893.83 | E93: 3823.02 | F93: 3779.78 | G93: 3708.97 | H93: 3937.07 | I93: 4007.88 | J93: 4051.12 | K93: 3964.65 | L93: 3850.6 | M93: 6.45088
A94: 84 | B94: BURGERKING | C94: 148.25 | D94: 151.47 | E94: 142.03 | F94: 135.82 | G94: 126.38 | H94: 157.68 | I94: 167.12 | J94: 173.33 | K94: 160.9 | L94: 145.25 | M94: 27.12465
A95: 85 | B95: CCL | C95: 366.85 | D95: 370.48 | E95: 353.17 | F95: 339.48 | G95: 322.17 | H95: 384.17 | I95: 401.48 | J95: 415.17 | K95: 387.8 | L95: 356.8 | M95: 3.81884
A96: 86 | B96: CESC | C96: 731.75 | D96: 738.23 | E96: 716.52 | F96: 701.28 | G96: 679.57 | H96: 753.47 | I96: 775.18 | J96: 790.42 | K96: 759.95 | L96: 723 | M96: 3.7485
A97: 87 | B97: CRISIL | C97: 2554.5 | D97: 2582.13 | E97: 2474.37 | F97: 2394.23 | G97: 2286.47 | H97: 2662.27 | I97: 2770.03 | J97: 2850.17 | K97: 2689.9 | L97: 2502 | M97: 0.43301
A98: 88 | B98: CSBBANK | C98: 300.6 | D98: 303.95 | E98: 293.90 | F98: 287.20 | G98: 277.15 | H98: 310.65 | I98: 320.70 | J98: 327.40 | K98: 314 | L98: 297.25 | M98: 1.22177
A99: 89 | B99: CADILAHC | C99: 547.1 | D99: 555.37 | E99: 533.73 | F99: 520.37 | G99: 498.73 | H99: 568.73 | I99: 590.37 | J99: 603.73 | K99: 577 | L99: 542 | M99: 206.64509
A100: 90 | B100: CANFINHOME | C100: 502.4 | D100: 502.28 | E100: 491.92 | F100: 481.43 | G100: 471.07 | H100: 512.77 | I100: 523.13 | J100: 533.62 | K100: 512.65 | L100: 491.8 | M100: 5.97596
A101: 91 | B101: CANBK | C101: 152.9 | D101: 151.92 | E101: 149.18 | F101: 145.47 | G101: 142.73 | H101: 155.63 | I101: 158.37 | J101: 162.08 | K101: 154.65 | L101: 148.2 | M101: 88.68571
A102: 92 | B102: CAPLIPOINT | C102: 703.95 | D102: 711.63 | E102: 671.52 | F102: 639.08 | G102: 598.97 | H102: 744.07 | I102: 784.18 | J102: 816.62 | K102: 751.75 | L102: 679.2 | M102: 12.20611
A103: 93 | B103: CGCL | C103: 507.7 | D103: 510.70 | E103: 497.45 | F103: 487.20 | G103: 473.95 | H103: 520.95 | I103: 534.20 | J103: 544.45 | K103: 523.95 | L103: 500.45 | M103: 0.4603
A104: 94 | B104: CARBORUNIV | C104: 724.15 | D104: 718.55 | E104: 704.45 | F104: 684.75 | G104: 670.65 | H104: 738.25 | I104: 752.35 | J104: 772.05 | K104: 732.65 | L104: 698.85 | M104: 2.61488
A105: 95 | B105: CASTROLIND | C105: 127.65 | D105: 128.65 | E105: 126.10 | F105: 124.55 | G105: 122.00 | H105: 130.20 | I105: 132.75 | J105: 134.30 | K105: 131.2 | L105: 127.1 | M105: 4.84247
A106: 96 | B106: CEATLTD | C106: 1287.2 | D106: 1294.73 | E106: 1268.47 | F106: 1249.73 | G106: 1223.47 | H106: 1313.47 | I106: 1339.73 | J106: 1358.47 | K106: 1321 | L106: 1276 | M106: 0.62136
A107: 97 | B107: CENTRALBK | C107: 19.25 | D107: 19.50 | E107: 18.75 | F107: 18.25 | G107: 17.50 | H107: 20.00 | I107: 20.75 | J107: 21.25 | K107: 20.25 | L107: 19 | M107: 51.40908
A108: 98 | B108: CDSL | C108: 1149.65 | D108: 1179.55 | E108: 1119.10 | F108: 1088.55 | G108: 1028.10 | H108: 1210.10 | I108: 1270.55 | J108: 1301.10 | K108: 1240 | L108: 1149 | M108: 5.38148
A109: 99 | B109: CENTURYPLY | C109: 395.75 | D109: 395.70 | E109: 383.45 | F109: 371.15 | G109: 358.90 | H109: 408.00 | I109: 420.25 | J109: 432.55 | K109: 407.95 | L109: 383.4 | M109: 1.41449
A110: 100 | B110: CENTURYTEX | C110: 743.6 | D110: 753.17 | E110: 731.43 | F110: 719.27 | G110: 697.53 | H110: 765.33 | I110: 787.07 | J110: 799.23 | K110: 774.9 | L110: 741 | M110: 4.36999
A111: 101 | B111: CERA | C111: 4690.25 | D111: 4700.65 | E111: 4634.90 | F111: 4579.55 | G111: 4513.80 | H111: 4756.00 | I111: 4821.75 | J111: 4877.10 | K111: 4766.4 | L111: 4645.3 | M111: 0.08287
A112: 102 | B112: CHALET | C112: 161.6 | D112: 163.35 | E112: 158.25 | F112: 154.90 | G112: 149.80 | H112: 166.70 | I112: 171.80 | J112: 175.15 | K112: 168.45 | L112: 160 | M112: 0.76981
A113: 103 | B113: CHAMBLFERT | C113: 320.65 | D113: 321.78 | E113: 309.27 | F113: 297.88 | G113: 285.37 | H113: 333.17 | I113: 345.68 | J113: 357.07 | K113: 334.3 | L113: 310.4 | M113: 14.17383
A114: 104 | B114: CHOLAHLDNG | C114: 639.8 | D114: 643.60 | E114: 623.20 | F114: 606.60 | G114: 586.20 | H114: 660.20 | I114: 680.60 | J114: 697.20 | K114: 664 | L114: 627 | M114: 1.53854
A115: 105 | B115: CHOLAFIN | C115: 484.2 | D115: 483.80 | E115: 472.90 | F115: 461.60 | G115: 450.70 | H115: 495.10 | I115: 506.00 | J115: 517.30 | K115: 494.7 | L115: 472.5 | M115: 17.19618
A116: 106 | B116: CIPLA | C116: 898.35 | D116: 898.33 | E116: 888.67 | F116: 878.98 | G116: 869.32 | H116: 908.02 | I116: 917.68 | J116: 927.37 | K116: 908 | L116: 888.65 | M116: 20.81206
A117: 107 | B117: CUB | C117: 145.5 | D117: 145.63 | E117: 143.67 | F117: 141.83 | G117: 139.87 | H117: 147.47 | I117: 149.43 | J117: 151.27 | K117: 147.6 | L117: 143.8 | M117: 10.76403
A118: 108 | B118: COALINDIA | C118: 133.95 | D118: 134.37 | E118: 132.33 | F118: 130.72 | G118: 128.68 | H118: 135.98 | I118: 138.02 | J118: 139.63 | K118: 136.4 | L118: 132.75 | M118: 77.68805
A119: 109 | B119: COCHINSHIP | C119: 346.15 | D119: 348.72 | E119: 342.53 | F119: 338.92 | G119: 332.73 | H119: 352.33 | I119: 358.52 | J119: 362.13 | K119: 354.9 | L119: 345.1 | M119: 1.44094
A120: 110 | B120: COFORGE | C120: 4987.85 | D120: 4985.83 | E120: 4903.67 | F120: 4819.48 | G120: 4737.32 | H120: 5070.02 | I120: 5152.18 | J120: 5236.37 | K120: 5068 | L120: 4901.65 | M120: 4.66364
A121: 111 | B121: COLPAL | C121: 1658.6 | D121: 1670.53 | E121: 1641.07 | F121: 1623.53 | G121: 1594.07 | H121: 1688.07 | I121: 1717.53 | J121: 1735.07 | K121: 1700 | L121: 1653 | M121: 6.2047
A122: 112 | B122: CAMS | C122: 3074.75 | D122: 3109.57 | E122: 3007.18 | F122: 2939.62 | G122: 2837.23 | H122: 3177.13 | I122: 3279.52 | J122: 3347.08 | K122: 3211.95 | L122: 3042 | M122: 2.20373
A123: 113 | B123: CONCOR | C123: 653.2 | D123: 655.02 | E123: 647.13 | F123: 641.07 | G123: 633.18 | H123: 661.08 | I123: 668.97 | J123: 675.03 | K123: 662.9 | L123: 648.95 | M123: 10.99874
A124: 114 | B124: COROMANDEL | C124: 794.75 | D124: 800.93 | E124: 774.02 | F124: 753.28 | G124: 726.37 | H124: 821.67 | I124: 848.58 | J124: 869.32 | K124: 827.85 | L124: 780.2 | M124: 4.3706
A125: 115 | B125: CREDITACC | C125: 636.25 | D125: 636.68 | E125: 624.57 | F125: 612.88 | G125: 600.77 | H125: 648.37 | I125: 660.48 | J125: 672.17 | K125: 648.8 | L125: 625 | M125: 1.17718
A126: 116 | B126: CROMPTON | C126: 441.25 | D126: 442.05 | E126: 431.90 | F126: 422.55 | G126: 412.40 | H126: 451.40 | I126: 461.55 | J126: 470.90 | K126: 452.2 | L126: 432.7 | M126: 7.30883
A127: 117 | B127: CUMMINSIND | C127: 975.5 | D127: 990.32 | E127: 958.23 | F127: 940.97 | G127: 908.88 | H127: 1007.58 | I127: 1039.67 | J127: 1056.93 | K127: 1022.4 | L127: 973.05 | M127: 11.65189
A128: 118 | B128: CYIENT | C128: 922.15 | D128: 920.45 | E128: 910.90 | F128: 899.65 | G128: 890.10 | H128: 931.70 | I128: 941.25 | J128: 952.50 | K128: 930 | L128: 909.2 | M128: 1.31792
A129: 119 | B129: DCBBANK | C129: 84.1 | D129: 84.23 | E129: 81.77 | F129: 79.43 | G129: 76.97 | H129: 86.57 | I129: 89.03 | J129: 91.37 | K129: 86.7 | L129: 81.9 | M129: 18.98952
A130: 120 | B130: DCMSHRIRAM | C130: 874.05 | D130: 899.58 | E130: 839.47 | F130: 804.88 | G130: 744.77 | H130: 934.17 | I130: 994.28 | J130: 1028.87 | K130: 959.7 | L130: 865 | M130: 2.20622
A131: 121 | B131: DLF | C131: 306.6 | D131: 309.07 | E131: 301.78 | F131: 296.97 | G131: 289.68 | H131: 313.88 | I131: 321.17 | J131: 325.98 | K131: 316.35 | L131: 304.25 | M131: 68.42918
A132: 122 | B132: DABUR | C132: 609.9 | D132: 612.57 | E132: 603.18 | F132: 596.47 | G132: 587.08 | H132: 619.28 | I132: 628.67 | J132: 635.38 | K132: 621.95 | L132: 605.85 | M132: 31.88046
A133: 123 | B133: DALBHARAT | C133: 1947.4 | D133: 1943.68 | E133: 1891.37 | F133: 1835.33 | G133: 1783.02 | H133: 1999.72 | I133: 2052.03 | J133: 2108.07 | K133: 1996 | L133: 1887.65 | M133: 2.0583
A134: 124 | B134: DEEPAKNTR | C134: 2056.3 | D134: 2074.48 | E134: 2021.37 | F134: 1986.43 | G134: 1933.32 | H134: 2109.42 | I134: 2162.53 | J134: 2197.47 | K134: 2127.6 | L134: 2039.55 | M134: 7.57487
A135: 125 | B135: DELTACORP | C135: 166.05 | D135: 168.80 | E135: 162.25 | F135: 158.45 | G135: 151.90 | H135: 172.60 | I135: 179.15 | J135: 182.95 | K135: 175.35 | L135: 165 | M135: 11.69773
A136: 126 | B136: DHANI | C136: 177.95 | D136: 181.37 | E136: 172.23 | F136: 166.52 | G136: 157.38 | H136: 187.08 | I136: 196.22 | J136: 201.93 | K136: 190.5 | L136: 175.65 | M136: 8.46886
A137: 127 | B137: DHANUKA | C137: 852.15 | D137: 853.43 | E137: 834.22 | F137: 816.28 | G137: 797.07 | H137: 871.37 | I137: 890.58 | J137: 908.52 | K137: 872.65 | L137: 835.5 | M137: 0.43916
A138: 128 | B138: DBL | C138: 494.05 | D138: 495.52 | E138: 481.08 | F138: 468.12 | G138: 453.68 | H138: 508.48 | I138: 522.92 | J138: 535.88 | K138: 509.95 | L138: 482.55 | M138: 2.97828
A139: 129 | B139: DISHTV | C139: 12.85 | D139: 12.85 | E139: 12.60 | F139: 12.35 | G139: 12.10 | H139: 13.10 | I139: 13.35 | J139: 13.60 | K139: 13.1 | L139: 12.6 | M139: 37.64054
A140: 130 | B140: DCAL | C140: 170.6 | D140: 175.83 | E140: 164.77 | F140: 158.93 | G140: 147.87 | H140: 181.67 | I140: 192.73 | J140: 198.57 | K140: 186.9 | L140: 170 | M140: 6.11168
A141: 131 | B141: DIVISLAB | C141: 4874.65 | D141: 4850.45 | E141: 4812.20 | F141: 4749.75 | G141: 4711.50 | H141: 4912.90 | I141: 4951.15 | J141: 5013.60 | K141: 4888.7 | L141: 4788 | M141: 4.10817
A142: 132 | B142: DIXON | C142: 3910.15 | D142: 3968.82 | E142: 3841.33 | F142: 3772.52 | G142: 3645.03 | H142: 4037.63 | I142: 4165.12 | J142: 4233.93 | K142: 4096.3 | L142: 3900 | M142: 2.58652
A143: 133 | B143: LALPATHLAB | C143: 3810.95 | D143: 3823.02 | E143: 3756.08 | F143: 3701.22 | G143: 3634.28 | H143: 3877.88 | I143: 3944.82 | J143: 3999.68 | K143: 3889.95 | L143: 3768.15 | M143: 1.64484
A144: 134 | B144: DRREDDY | C144: 4514.85 | D144: 4537.95 | E144: 4476.90 | F144: 4438.95 | G144: 4377.90 | H144: 4575.90 | I144: 4636.95 | J144: 4674.90 | K144: 4599 | L144: 4500 | M144: 5.67515
A145: 135 | B145: EIDPARRY | C145: 386.1 | D145: 392.37 | E145: 377.73 | F145: 369.37 | G145: 354.73 | H145: 400.73 | I145: 415.37 | J145: 423.73 | K145: 407 | L145: 384 | M145: 2.17182
A146: 136 | B146: EIHOTEL | C146: 100.8 | D146: 101.70 | E146: 99.10 | F146: 97.40 | G146: 94.80 | H146: 103.40 | I146: 106.00 | J146: 107.70 | K146: 104.3 | L146: 100 | M146: 2.49179
A147: 137 | B147: EPL | C147: 222.65 | D147: 226.60 | E147: 216.20 | F147: 209.75 | G147: 199.35 | H147: 233.05 | I147: 243.45 | J147: 249.90 | K147: 237 | L147: 220.15 | M147: 2.38764
A148: 138 | B148: EDELWEISS | C148: 78.85 | D148: 79.62 | E148: 77.23 | F148: 75.62 | G148: 73.23 | H148: 81.23 | I148: 83.62 | J148: 85.23 | K148: 82 | L148: 78 | M148: 23.07152
A149: 139 | B149: EICHERMOT | C149: 2544 | D149: 2567.15 | E149: 2511.85 | F149: 2479.70 | G149: 2424.40 | H149: 2599.30 | I149: 2654.60 | J149: 2686.75 | K149: 2622.45 | L149: 2535 | M149: 12.71399
A150: 140 | B150: ELGIEQUIP | C150: 196.25 | D150: 198.05 | E150: 191.30 | F150: 186.35 | G150: 179.60 | H150: 203.00 | I150: 209.75 | J150: 214.70 | K150: 204.8 | L150: 193.1 | M150: 1.4571
A151: 141 | B151: EMAMILTD | C151: 603.25 | D151: 595.57 | E151: 583.13 | F151: 563.02 | G151: 550.58 | H151: 615.68 | I151: 628.12 | J151: 648.23 | K151: 608 | L151: 575.45 | M151: 6.07115
A152: 142 | B152: ENDURANCE | C152: 1595.7 | D152: 1591.30 | E152: 1574.20 | F152: 1552.70 | G152: 1535.60 | H152: 1612.80 | I152: 1629.90 | J152: 1651.40 | K152: 1608.4 | L152: 1569.8 | M152: 1.05124
A153: 143 | B153: ENGINERSIN | C153: 67.85 | D153: 68.75 | E153: 66.75 | F153: 65.65 | G153: 63.65 | H153: 69.85 | I153: 71.85 | J153: 72.95 | K153: 70.75 | L153: 67.65 | M153: 23.61546
A154: 144 | B154: EQUITAS | C154: 119.9 | D154: 116.85 | E154: 112.00 | F154: 104.10 | G154: 99.25 | H154: 124.75 | I154: 129.60 | J154: 137.50 | K154: 121.7 | L154: 108.95 | M154: 15.84832
A155: 145 | B155: ERIS | C155: 728.65 | D155: 729.22 | E155: 720.43 | F155: 712.22 | G155: 703.43 | H155: 737.43 | I155: 746.22 | J155: 754.43 | K155: 738 | L155: 721 | M155: 0.49928
A156: 146 | B156: ESCORTS | C156: 1257.4 | D156: 1248.00 | E156: 1192.60 | F156: 1127.80 | G156: 1072.40 | H156: 1312.80 | I156: 1368.20 | J156: 1433.00 | K156: 1303.4 | L156: 1183.2 | M156: 54.07854
A157: 147 | B157: EXIDEIND | C157: 158.4 | D157: 158.90 | E157: 156.40 | F157: 154.40 | G157: 151.90 | H157: 160.90 | I157: 163.40 | J157: 165.40 | K157: 161.4 | L157: 156.9 | M157: 24.67456
A158: 148 | B158: FDC | C158: 334.95 | D158: 334.15 | E158: 326.85 | F158: 318.75 | G158: 311.45 | H158: 342.25 | I158: 349.55 | J158: 357.65 | K158: 341.45 | L158: 326.05 | M158: 1.53603
A159: 149 | B159: FEDERALBNK | C159: 78.25 | D159: 78.98 | E159: 77.12 | F159: 75.98 | G159: 74.12 | H159: 80.12 | I159: 81.98 | J159: 83.12 | K159: 80.85 | L159: 77.85 | M159: 99.98875
A160: 150 | B160: FINEORG | C160: 2761.85 | D160: 2798.30 | E160: 2698.10 | F160: 2634.35 | G160: 2534.15 | H160: 2862.05 | I160: 2962.25 | J160: 3026.00 | K160: 2898.5 | L160: 2734.55 | M160: 0.27116
A161: 151 | B161: FINCABLES | C161: 452.4 | D161: 454.50 | E161: 438.00 | F161: 423.60 | G161: 407.10 | H161: 468.90 | I161: 485.40 | J161: 499.80 | K161: 471 | L161: 440.1 | M161: 2.16717
A162: 152 | B162: FINPIPE | C162: 167.05 | D162: 167.45 | E162: 164.40 | F162: 161.75 | G162: 158.70 | H162: 170.10 | I162: 173.15 | J162: 175.80 | K162: 170.5 | L162: 164.8 | M162: 10.2496
A163: 153 | B163: FSL | C163: 180.4 | D163: 184.87 | E163: 173.78 | F163: 167.17 | G163: 156.08 | H163: 191.48 | I163: 202.57 | J163: 209.18 | K163: 195.95 | L163: 178.25 | M163: 70.47187
A164: 154 | B164: FORTIS | C164: 280 | D164: 280.97 | E164: 270.58 | F164: 261.17 | G164: 250.78 | H164: 290.38 | I164: 300.77 | J164: 310.18 | K164: 291.35 | L164: 271.55 | M164: 127.65049
A165: 155 | B165: FCONSUMER | C165: 6.55 | D165: 6.68 | E165: 6.42 | F165: 6.28 | G165: 6.02 | H165: 6.82 | I165: 7.08 | J165: 7.22 | K165: 6.95 | L165: 6.55 | M165: 39.16622
A166: 156 | B166: FRETAIL | C166: 42.6 | D166: 43.43 | E166: 41.32 | F166: 40.03 | G166: 37.92 | H166: 44.72 | I166: 46.83 | J166: 48.12 | K166: 45.55 | L166: 42.15 | M166: 14.86575
A167: 157 | B167: GAIL | C167: 140.8 | D167: 141.63 | E167: 139.17 | F167: 137.53 | G167: 135.07 | H167: 143.27 | I167: 145.73 | J167: 147.37 | K167: 144.1 | L167: 140 | M167: 79.97462
A168: 158 | B168: GEPIL | C168: 292 | D168: 293.42 | E168: 284.83 | F168: 277.67 | G168: 269.08 | H168: 300.58 | I168: 309.17 | J168: 316.33 | K168: 302 | L168: 286.25 | M168: 2.24767
A169: 159 | B169: GMMPFAUDLR | C169: 4143.15 | D169: 4194.55 | E169: 4068.60 | F169: 3994.05 | G169: 3868.10 | H169: 4269.10 | I169: 4395.05 | J169: 4469.60 | K169: 4320.5 | L169: 4120 | M169: 0.3767
A170: 160 | B170: GMRINFRA | C170: 27.55 | D170: 27.68 | E170: 27.27 | F170: 26.98 | G170: 26.57 | H170: 27.97 | I170: 28.38 | J170: 28.67 | K170: 28.1 | L170: 27.4 | M170: 126.67787
A171: 161 | B171: GALAXYSURF | C171: 2951.5 | D171: 2947.08 | E171: 2874.17 | F171: 2796.83 | G171: 2723.92 | H171: 3024.42 | I171: 3097.33 | J171: 3174.67 | K171: 3020 | L171: 2869.75 | M171: 0.47655
A172: 162 | B172: GRSE | C172: 183.75 | D172: 184.75 | E172: 181.60 | F172: 179.45 | G172: 176.30 | H172: 186.90 | I172: 190.05 | J172: 192.20 | K172: 187.9 | L172: 182.6 | M172: 1.84255
A173: 163 | B173: GARFIBRES | C173: 3221.05 | D173: 3259.72 | E173: 3167.88 | F173: 3114.72 | G173: 3022.88 | H173: 3312.88 | I173: 3404.72 | J173: 3457.88 | K173: 3351.55 | L173: 3206.55 | M173: 0.24516
A174: 164 | B174: GICRE | C174: 139.8 | D174: 141.95 | E174: 135.85 | F174: 131.90 | G174: 125.80 | H174: 145.90 | I174: 152.00 | J174: 155.95 | K174: 148.05 | L174: 138 | M174: 27.2908
A175: 165 | B175: GILLETTE | C175: 5964.2 | D175: 5991.73 | E175: 5923.47 | F175: 5882.73 | G175: 5814.47 | H175: 6032.47 | I175: 6100.73 | J175: 6141.47 | K175: 6060 | L175: 5951 | M175: 0.05346
A176: 166 | B176: GLAND | C176: 3871.25 | D176: 3919.75 | E176: 3751.50 | F176: 3631.75 | G176: 3463.50 | H176: 4039.50 | I176: 4207.75 | J176: 4327.50 | K176: 4088 | L176: 3800 | M176: 3.10148
A177: 167 | B177: GLAXO | C177: 1534.8 | D177: 1547.45 | E177: 1507.35 | F177: 1479.90 | G177: 1439.80 | H177: 1574.90 | I177: 1615.00 | J177: 1642.45 | K177: 1587.55 | L177: 1520 | M177: 0.44214
A178: 168 | B178: GLENMARK | C178: 527.65 | D178: 533.20 | E178: 518.50 | F178: 509.35 | G178: 494.65 | H178: 542.35 | I178: 557.05 | J178: 566.20 | K178: 547.9 | L178: 524.05 | M178: 12.5648
A179: 169 | B179: GODFRYPHLP | C179: 977.2 | D179: 985.25 | E179: 965.80 | F179: 954.40 | G179: 934.95 | H179: 996.65 | I179: 1016.10 | J179: 1027.50 | K179: 1004.7 | L179: 973.85 | M179: 0.20428
A180: 170 | B180: GODREJAGRO | C180: 616 | D180: 625.18 | E180: 601.97 | F180: 587.93 | G180: 564.72 | H180: 639.22 | I180: 662.43 | J180: 676.47 | K180: 648.4 | L180: 611.15 | M180: 1.38201
A181: 171 | B181: GODREJCP | C181: 1029.75 | D181: 1039.25 | E181: 1015.50 | F181: 1001.25 | G181: 977.50 | H181: 1053.50 | I181: 1077.25 | J181: 1091.50 | K181: 1063 | L181: 1025 | M181: 27.08079
A182: 172 | B182: GODREJIND | C182: 550.55 | D182: 553.08 | E182: 543.07 | F182: 535.58 | G182: 525.57 | H182: 560.57 | I182: 570.58 | J182: 578.07 | K182: 563.1 | L182: 545.6 | M182: 1.27229
A183: 173 | B183: GODREJPROP | C183: 1475.85 | D183: 1483.58 | E183: 1460.27 | F183: 1444.68 | G183: 1421.37 | H183: 1499.17 | I183: 1522.48 | J183: 1538.07 | K183: 1506.9 | L183: 1468 | M183: 12.10796
A184: 174 | B184: GRANULES | C184: 325.6 | D184: 324.70 | E184: 316.90 | F184: 308.20 | G184: 300.40 | H184: 333.40 | I184: 341.20 | J184: 349.90 | K184: 332.5 | L184: 316 | M184: 25.15238
A185: 175 | B185: GRAPHITE | C185: 589.45 | D185: 604.93 | E185: 570.02 | F185: 550.58 | G185: 515.67 | H185: 624.37 | I185: 659.28 | J185: 678.72 | K185: 639.85 | L185: 585.5 | M185: 4.23517
A186: 176 | B186: GRASIM | C186: 1440.65 | D186: 1457.30 | E186: 1415.35 | F186: 1390.05 | G186: 1348.10 | H186: 1482.60 | I186: 1524.55 | J186: 1549.85 | K186: 1499.25 | L186: 1432 | M186: 11.63742
A187: 177 | B187: GESHIP | C187: 293.95 | D187: 295.02 | E187: 286.03 | F187: 278.12 | G187: 269.13 | H187: 302.93 | I187: 311.92 | J187: 319.83 | K187: 304 | L187: 287.1 | M187: 10.1232
A188: 178 | B188: GREAVESCOT | C188: 129.4 | D188: 130.35 | E188: 125.25 | F188: 121.10 | G188: 116.00 | H188: 134.50 | I188: 139.60 | J188: 143.75 | K188: 135.45 | L188: 126.2 | M188: 20.25713
A189: 179 | B189: GRINDWELL | C189: 1226.9 | D189: 1211.37 | E189: 1187.73 | F189: 1148.57 | G189: 1124.93 | H189: 1250.53 | I189: 1274.17 | J189: 1313.33 | K189: 1235 | L189: 1172.2 | M189: 0.93239
A190: 180 | B190: GUJALKALI | C190: 432.95 | D190: 437.55 | E190: 418.05 | F190: 403.15 | G190: 383.65 | H190: 452.45 | I190: 471.95 | J190: 486.85 | K190: 457.05 | L190: 422.65 | M190: 3.35814
A191: 181 | B191: GAEL | C191: 159.05 | D191: 161.27 | E191: 153.03 | F191: 147.02 | G191: 138.78 | H191: 167.28 | I191: 175.52 | J191: 181.53 | K191: 169.5 | L191: 155.25 | M191: 9.10259
A192: 182 | B192: FLUOROCHEM | C192: 1699.45 | D192: 1683.77 | E192: 1663.53 | F192: 1627.62 | G192: 1607.38 | H192: 1719.68 | I192: 1739.92 | J192: 1775.83 | K192: 1704 | L192: 1647.85 | M192: 1.51301
A193: 183 | B193: GUJGASLTD | C193: 695.95 | D193: 702.55 | E193: 683.40 | F193: 670.85 | G193: 651.70 | H193: 715.10 | I193: 734.25 | J193: 746.80 | K193: 721.7 | L193: 690 | M193: 11.82548
A194: 184 | B194: GNFC | C194: 316.45 | D194: 322.97 | E194: 308.48 | F194: 300.52 | G194: 286.03 | H194: 330.93 | I194: 345.42 | J194: 353.38 | K194: 337.45 | L194: 315 | M194: 6.75624
A195: 185 | B195: GPPL | C195: 99.5 | D195: 100.27 | E195: 98.63 | F195: 97.77 | G195: 96.13 | H195: 101.13 | I195: 102.77 | J195: 103.63 | K195: 101.9 | L195: 99.4 | M195: 4.35602
A196: 186 | B196: GSFC | C196: 100.05 | D196: 101.35 | E196: 96.80 | F196: 93.55 | G196: 89.00 | H196: 104.60 | I196: 109.15 | J196: 112.40 | K196: 105.9 | L196: 98.1 | M196: 14.52356
A197: 187 | B197: GSPL | C197: 367.2 | D197: 362.72 | E197: 347.43 | F197: 327.67 | G197: 312.38 | H197: 382.48 | I197: 397.77 | J197: 417.53 | K197: 378 | L197: 342.95 | M197: 14.71696
A198: 188 | B198: GULFOILLUB | C198: 560.3 | D198: 565.62 | E198: 546.23 | F198: 532.17 | G198: 512.78 | H198: 579.68 | I198: 599.07 | J198: 613.13 | K198: 585 | L198: 551.55 | M198: 0.54237
A199: 189 | B199: HEG | C199: 2157.85 | D199: 2086.28 | E199: 1877.57 | F199: 1597.28 | G199: 1388.57 | H199: 2366.57 | I199: 2575.28 | J199: 2855.57 | K199: 2295 | L199: 1806 | M199: 2.18338
A200: 190 | B200: HCLTECH | C200: 1163.1 | D200: 1155.78 | E200: 1133.37 | F200: 1103.63 | G200: 1081.22 | H200: 1185.52 | I200: 1207.93 | J200: 1237.67 | K200: 1178.2 | L200: 1126.05 | M200: 93.8378
A201: 191 | B201: HDFCAMC | C201: 2906.05 | D201: 2905.73 | E201: 2852.17 | F201: 2798.28 | G201: 2744.72 | H201: 2959.62 | I201: 3013.18 | J201: 3067.07 | K201: 2959.3 | L201: 2851.85 | M201: 3.50678
A202: 192 | B202: HDFCBANK | C202: 1524.6 | D202: 1522.13 | E202: 1511.12 | F202: 1497.63 | G202: 1486.62 | H202: 1535.62 | I202: 1546.63 | J202: 1560.12 | K202: 1533.15 | L202: 1508.65 | M202: 54.21527
A203: 193 | B203: HDFCLIFE | C203: 668.8 | D203: 667.97 | E203: 663.13 | F203: 657.47 | G203: 652.63 | H203: 673.63 | I203: 678.47 | J203: 684.13 | K203: 672.8 | L203: 662.3 | M203: 21.73978
A204: 194 | B204: HFCL | C204: 58.95 | D204: 58.33 | E204: 56.17 | F204: 53.38 | G204: 51.22 | H204: 61.12 | I204: 63.28 | J204: 66.07 | K204: 60.5 | L204: 55.55 | M204: 50.35987
A205: 195 | B205: HAPPSTMNDS | C205: 1389.5 | D205: 1401.50 | E205: 1348.00 | F205: 1306.50 | G205: 1253.00 | H205: 1443.00 | I205: 1496.50 | J205: 1538.00 | K205: 1455 | L205: 1360 | M205: 11.59433
A206: 196 | B206: HATSUN | C206: 1015.8 | D206: 988.93 | E206: 947.87 | F206: 879.93 | G206: 838.87 | H206: 1056.87 | I206: 1097.93 | J206: 1165.87 | K206: 1030 | L206: 921 | M206: 15.389
... 321 more rows

Sheet Bulk Deals
E6: Back To Main Page
A7: Subject : | B7: BULK DEAL | D7: =Main!B10 -> 2021-08-24
A9: Date | B9: Scrip code | C9: Scrip Name | D9: Client Name | E9: Buy / Sell | F9: Quantity Traded | G9: Trade Price / Wt.Avg.trade price | H9: Exchange
A10: 2021-08-23 | B10: 539528 | C10: AAYUSH | D10: CLASSIC MERCANTILE LLP | E10: BUY | F10: 50,000 | G10: 29.15 | H10: NSE
A11: 2021-08-23 | B11: 539528 | C11: AAYUSH | D11: PALLAVI MITTAL | E11: SELL | F11: 48,949 | G11: 29.14 | H11: BSE
A12: 2021-08-23 | B12: 539570 | C12: ACEWIN | D12: AKASHKUMARJAIN RAVUKA | E12: BUY | F12: 57,600 | G12: 3.78 | H12: BSE
A13: 2021-08-23 | B13: 539570 | C13: ACEWIN | D13: PREMA LAL | E13: BUY | F13: 57,600 | G13: 3.77 | H13: BSE
A14: 2021-08-23 | B14: 539570 | C14: ACEWIN | D14: GRISHMA VIRAL JHAVERI | E14: BUY | F14: 144,000 | G14: 3.68 | H14: BSE
A15: 2021-08-23 | B15: 539570 | C15: ACEWIN | D15: GRISHMA VIRAL JHAVERI | E15: SELL | F15: 144,000 | G15: 3.77 | H15: BSE
A16: 2021-08-23 | B16: 539570 | C16: ACEWIN | D16: JESUDAS PREMKUMAR SEBASTIAN | E16: SELL | F16: 585,600 | G16: 3.74 | H16: BSE
A17: 2021-08-23 | B17: 500069 | C17: BNKCAP | D17: LEBNITZE REAL ESTATES PRIVATE LIMITED | E17: BUY | F17: 5,968,857 | G17: 200 | H17: BSE
A18: 2021-08-23 | B18: 500069 | C18: BNKCAP | D18: AJIT KUMAR KHANDELWAL | E18: SELL | F18: 80,050 | G18: 200 | H18: BSE
A19: 2021-08-23 | B19: 500069 | C19: BNKCAP | D19: PATREX VYAPAAR PRIVATE LIMITED | E19: SELL | F19: 90,000 | G19: 200 | H19: BSE
A20: 2021-08-23 | B20: 500069 | C20: BNKCAP | D20: R S KHANDELWAL (H.U.F) | E20: SELL | F20: 193,125 | G20: 200 | H20: BSE
A21: 2021-08-23 | B21: 500069 | C21: BNKCAP | D21: SANJEEV KUMAR KHANDELWAL | E21: SELL | F21: 214,175 | G21: 200 | H21: BSE
A22: 2021-08-23 | B22: 500069 | C22: BNKCAP | D22: ASIAN SECURITIES EXCHANGE PVT LIMITED | E22: SELL | F22: 491,250 | G22: 200 | H22: BSE
A23: 2021-08-23 | B23: 500069 | C23: BNKCAP | D23: BNK SECURITIES PVT LTD | E23: SELL | F23: 1,273,781 | G23: 200 | H23: BSE
A24: 2021-08-23 | B24: 500069 | C24: BNKCAP | D24: BRIJNATH KHANDELWAL & CO. | E24: SELL | F24: 3,571,376 | G24: 200 | H24: BSE
A25: 2021-08-23 | B25: 540361 | C25: DANUBE | D25: S N SHAH (HUF) | E25: SELL | F25: 58,831 | G25: 33.5 | H25: BSE
A26: 2021-08-23 | B26: 524743 | C26: FISCHER | D26: ARUNKUMAR | E26: BUY | F26: 932 | G26: 90.07 | H26: BSE
A27: 2021-08-23 | B27: 513309 | C27: GOLKONDA | D27: DIPAK KANAYALAL SHAH | E27: SELL | F27: 50,000 | G27: 11.41 | H27: BSE
A28: 2021-08-23 | B28: 513309 | C28: GOLKONDA | D28: RAJESH JOSEPH | E28: BUY | F28: 25,907 | G28: 11.48 | H28: BSE
A29: 2021-08-23 | B29: 526797 | C29: GREENPLY | D29: SHOWAN INVESTMENT PRIVATE LIMITED | E29: BUY | F29: 5,600,000 | G29: 177.95 | H29: BSE
A30: 2021-08-23 | B30: 526797 | C30: GREENPLY | D30: S.M.MANAGEMENT PRIVATE LTD | E30: SELL | F30: 5,600,000 | G30: 177.95 | H30: BSE
A31: 2021-08-23 | B31: 517571 | C31: INDLMETER | D31: MEHTA MANISHKUMAR SUMATIL AL | E31: BUY | F31: 50,000 | G31: 11.83 | H31: BSE
A32: 2021-08-23 | B32: 517571 | C32: INDLMETER | D32: NINJA SECURITIES PRIVATE LIMITED | E32: SELL | F32: 50,000 | G32: 11.83 | H32: BSE
A33: 2021-08-23 | B33: 514034 | C33: JBFIND | D33: PILOT CONSULTANTS PRIVATE LIMITED | E33: BUY | F33: 800,000 | G33: 22.5 | H33: BSE
A34: 2021-08-23 | B34: 514034 | C34: JBFIND | D34: GLADIATOR VYAPAAR PRIVATE LIMITED | E34: SELL | F34: 894,707 | G34: 22.46 | H34: BSE
A35: 2021-08-23 | B35: 500380 | C35: JKLAKSHMI | D35: GOLDMAN SACHS FUNDS GOLDMAN SACHS INDIA EQUITY PORTFOLIO | E35: BUY | F35: 1,277,969 | G35: 696.5 | H35: BSE
A36: 2021-08-23 | B36: 500380 | C36: JKLAKSHMI | D36: GOLDMAN SACHS INDIA FUND LIMITED | E36: SELL | F36: 1,277,969 | G36: 696.5 | H36: BSE
A37: 2021-08-23 | B37: 539767 | C37: MNIL | D37: KABIR SHRAN DAGAR HUF | E37: SELL | F37: 41,468 | G37: 12.89 | H37: BSE
A38: 2021-08-23 | B38: 539767 | C38: MNIL | D38: SITA RAM | E38: BUY | F38: 47,107 | G38: 13 | H38: BSE
A39: 2021-08-23 | B39: 540416 | C39: OCTAWARE | D39: MOHAMMED ASLAM QUDRATULLAH KHAN | E39: BUY | F39: 27,200 | G39: 91.65 | H39: BSE
A40: 2021-08-23 | B40: 540416 | C40: OCTAWARE | D40: SK GROWTH FUND PRIVATE LIMITED | E40: SELL | F40: 27,200 | G40: 91.65 | H40: BSE
A41: 2021-08-23 | B41: 540175 | C41: REGENCY | D41: SATVINDER SINGH | E41: SELL | F41: 32,497 | G41: 11 | H41: BSE
A42: 2021-08-23 | B42: 539584 | C42: SIPTL | D42: ALPHA LEON ENTERPRISES LLP | E42: BUY | F42: 1,300,000 | G42: 1.9 | H42: BSE
A43: 2021-08-23 | B43: 539584 | C43: SIPTL | D43: NEHA MIRLKUMAR VANKAWALA | E43: SELL | F43: 360,000 | G43: 1.9 | H43: BSE
A44: 2021-08-23 | B44: 539584 | C44: SIPTL | D44: JAYANTIBHAI MANJIBHAI SOJITRA | E44: SELL | F44: 489,500 | G44: 1.9 | H44: BSE
A45: 2021-08-23 | B45: 539584 | C45: SIPTL | D45: KANTILAL BHIKHAJI GAMETI | E45: SELL | F45: 1,137,636 | G45: 1.9 | H45: BSE
A46: 2021-08-23 | B46: 539584 | C46: SIPTL | D46: MOHANDAS VADAKE PUTHUR | E46: BUY | F46: 400,000 | G46: 1.9 | H46: BSE
A47: 2021-08-23 | B47: 521188 | C47: UNITEDTE | D47: MANOJ | E47: BUY | F47: 15,231 | G47: 6.27 | H47: BSE
A48: 2021-08-23 | B48: 531025 | C48: VISAGAR | D48: MEGHKUMAR MAHENDRAKUMAR SHAH . | E48: BUY | F48: 232,557 | G48: 1.59 | H48: BSE
A49: 2021-08-23 | B49: 532144 | C49: WELCORP | D49: GOLDMAN SACHS FUNDS GOLDMAN SACHS INDIA EQUITY PORTFOLIO | E49: BUY | F49: 3,136,994 | G49: 110.35 | H49: BSE
A50: 2021-08-23 | B50: 532144 | C50: WELCORP | D50: GOLDMAN SACHS INDIA FUND LIMITED | E50: SELL | F50: 3,136,994 | G50: 110.35 | H50: BSE
A51: 2021-08-23 | B51: ASIANTILES | C51: Asian Granito India Limit | D51: JUNIPER EQUITY INDIA PRIVATE LIMITED | E51: BUY | F51: 260,000 | G51: 155.15 | H51: NSE
A52: 2021-08-23 | B52: ASIANTILES | C52: Asian Granito India Limit | D52: AAKASH DILIP DOSHI | E52: BUY | F52: 260,175 | G52: 155.12 | H52: NSE
A53: 2021-08-23 | B53: KARDA | C53: Karda Constructions Ltd | D53: ELARA INDIA OPPORTUNITIES FUND LIMITED | E53: BUY | F53: 2,700,000 | G53: 22.5 | H53: NSE
A54: 2021-08-23 | B54: LASA | C54: Lasa Supergenerics Ltd | D54: SHREE VASUDEV EXIM | E54: BUY | F54: 426,219 | G54: 70.72 | H54: NSE
A55: 2021-08-23 | B55: LIBAS | C55: Libas Consu Products Ltd | D55: VISA CAPITAL PARTNERS | E55: BUY | F55: 200,575 | G55: 55.27 | H55: NSE
A56: 2021-08-23 | B56: LUMAXIND | C56: Lumax Industries Ltd | D56: GOENKA BUSINESS & FINANCE LIMITED | E56: BUY | F56: 48,154 | G56: 1376.55 | H56: NSE
A57: 2021-08-23 | B57: NECCLTD | C57: North East Carry Corp Ltd | D57: COMFORT COMMOTRADE PRIVATE LIMITED | E57: BUY | F57: 267,400 | G57: 17.5 | H57: NSE
A58: 2021-08-23 | B58: NECCLTD | C58: North East Carry Corp Ltd | D58: SUNAYANA INVESTMENT COMPANY LIMITED | E58: BUY | F58: 571,091 | G58: 17.9 | H58: NSE
A59: 2021-08-23 | B59: OLECTRA | C59: Olectra Greentech Limited | D59: MEIL HOLDINGS LIMITED | E59: BUY | F59: 1,045,481 | G59: 280.15 | H59: NSE
A60: 2021-08-23 | B60: RPSGVENT | C60: RPSG VENTURES LIMITED | D60: CLSA GLOBAL MARKETS PTE LTD | E60: BUY | F60: 1,283,489 | G60: 598.5 | H60: NSE
A61: 2021-08-23 | B61: SCAPDVR | C61: Stampede Capital Limited | D61: NAGA RAJU PYDI | E61: BUY | F61: 369,959 | G61: 4.6 | H61: NSE
A62: 2021-08-23 | B62: THOMASCOTT | C62: Thomas Scott (India) Ltd | D62: RAVINDRA NAUPATLAL SAKLA | E62: BUY | F62: 37,341 | G62: 19.5 | H62: NSE
A63: 2021-08-23 | B63: VIKASECO | C63: Vikas EcoTech Limited | D63: SUNAYANA INVESTMENT COMPANY LIMITED | E63: BUY | F63: 3,623,292 | G63: 2.28 | H63: NSE
A64: 2021-08-23 | B64: VIKASECO | C64: Vikas EcoTech Limited | D64: ADROIT FINANCIAL SERVICES PVT LTD | E64: BUY | F64: 4,293,842 | G64: 2.25 | H64: NSE
A65: 2021-08-23 | B65: VISESHINFO | C65: Visesh Infotecnics Limite | D65: TOPGAIN FINANCE PRIVATE LIMITED | E65: BUY | F65: 1 | G65: 0.25 | H65: NSE
A66: 2021-08-23 | B66: VISHAL | C66: Vishal Fabrics Limited | D66: CHIRIPAL SAVITRIDEVI V | E66: BUY | F66: 505,000 | G66: 113 | H66: NSE
A67: 2021-08-23 | B67: ASIANTILES | C67: Asian Granito India Limit | D67: AAKASH DILIP DOSHI | E67: SELL | F67: 260,175 | G67: 155.15 | H67: NSE
A68: 2021-08-23 | B68: ASIANTILES | C68: Asian Granito India Limit | D68: JUNIPER EQUITY INDIA PRIVATE LIMITED | E68: SELL | F68: 260,000 | G68: 155.11 | H68: NSE
A69: 2021-08-23 | B69: KARDA | C69: Karda Constructions Ltd | D69: LAXMAN JAGUMAL KARDA | E69: SELL | F69: 2,100,000 | G69: 22.52 | H69: NSE
A70: 2021-08-23 | B70: LASA | C70: Lasa Supergenerics Ltd | D70: SHREE VASUDEV EXIM | E70: SELL | F70: 141,217 | G70: 71.75 | H70: NSE
A71: 2021-08-23 | B71: LIBAS | C71: Libas Consu Products Ltd | D71: PARESH THAKKER | E71: SELL | F71: 73,972 | G71: 54.32 | H71: NSE
A72: 2021-08-23 | B72: LIBAS | C72: Libas Consu Products Ltd | D72: VISA CAPITAL PARTNERS | E72: SELL | F72: 144,187 | G72: 52.24 | H72: NSE
A73: 2021-08-23 | B73: LUMAXIND | C73: Lumax Industries Ltd | D73: GOENKA BUSINESS & FINANCE LIMITED | E73: SELL | F73: 48,154 | G73: 1408.55 | H73: NSE
A74: 2021-08-23 | B74: NECCLTD | C74: North East Carry Corp Ltd | D74: SUNAYANA INVESTMENT COMPANY LIMITED | E74: SELL | F74: 82,391 | G74: 17.95 | H74: NSE
A75: 2021-08-23 | B75: NECCLTD | C75: North East Carry Corp Ltd | D75: SUVI DEVELOPERS PRIVATE LIMITED | E75: SELL | F75: 664,832 | G75: 17.66 | H75: NSE
A76: 2021-08-23 | B76: NECCLTD | C76: North East Carry Corp Ltd | D76: COMFORT COMMOTRADE PRIVATE LIMITED | E76: SELL | F76: 167,400 | G76: 17.95 | H76: NSE
A77: 2021-08-23 | B77: OLECTRA | C77: Olectra Greentech Limited | D77: TRINITY INFRAVENTURES LIMITED | E77: SELL | F77: 1,080,000 | G77: 280.11 | H77: NSE
A78: 2021-08-23 | B78: PALASHSECU | C78: Palash Securities Ltd | D78: ZAKI ABBAS NASSER | E78: SELL | F78: 55,000 | G78: 68.3 | H78: NSE
A79: 2021-08-23 | B79: RPSGVENT | C79: RPSG VENTURES LIMITED | D79: KOTAK MAHINDRA (INTERNATIONAL) LIMITED | E79: SELL | F79: 1,283,489 | G79: 598.5 | H79: NSE
A80: 2021-08-23 | B80: SCAPDVR | C80: Stampede Capital Limited | D80: GAYI ADI MANAGEMENT AND TRENDS PRIVATE LIMITED | E80: SELL | F80: 1,000,099 | G80: 4.6 | H80: NSE
A81: 2021-08-23 | B81: THOMASCOTT | C81: Thomas Scott (India) Ltd | D81: L D INVESTMENTS | E81: SELL | F81: 29,080 | G81: 19.5 | H81: NSE
A82: 2021-08-23 | B82: VIKASECO | C82: Vikas EcoTech Limited | D82: ADROIT FINANCIAL SERVICES PVT LTD | E82: SELL | F82: 4,428,729 | G82: 2.28 | H82: NSE
A83: 2021-08-23 | B83: VIKASECO | C83: Vikas EcoTech Limited | D83: SUNAYANA INVESTMENT COMPANY LIMITED | E83: SELL | F83: 3,400,100 | G83: 2.22 | H83: NSE
A84: 2021-08-23 | B84: VISESHINFO | C84: Visesh Infotecnics Limite | D84: TOPGAIN FINANCE PRIVATE LIMITED | E84: SELL | F84: 52,672,725 | G84: 0.26 | H84: NSE

Sheet Call Tracker (Equity & F&O)
M5: Back To Main Page
A6: Retail Research Technical Calls & Fundamental Performance Report for the month of Aug-2021
M7: =Main!B10 -> 2021-08-24
B8: Positional Call
A9: Sr.no | B9: Date | D9: Company | E9: Rec | F9: Rec Price | G9: Stop Loss*** | H9: Call Closed At | I9: Target | J9: Remark | K9: Profit / Loss per Share | L9: All charges | M9: Net Gain / Loss % | N9: Status | O9: Closed Date
A10: 1 | B10: 2021-06-10 | D10: BRITANNIA | E10: Buy | F10: 3585 | G10: 3345 | H10: 3,730.00 | I10: 3900-4000 | J10: Profit of Rs.145/- | K10: =H10-F10 -> 145 | L10: =(F10*-0.8)/100 -> -28.68 | M10: =(K10+L10)/F10 -> 3.24% | N10: Successful | O10: 2021-08-18 | R10: H
A11: 2 | B11: 2021-06-16 | D11: ESCORTS | E11: Buy<> | F11: 1189.75 | G11: 1111.5 | H11: 1,252.00 | I11: 1300-1350 | J11: Profit of Rs.62.25/- | K11: =H11-F11 -> 62.25 | L11: =(F11*-0.8)/100 -> -9.52 | M11: =(K11+L11)/F11 -> 4.43% | N11: Successful | O11: 2021-08-10 | R11: H
A12: 3 | B12: 2021-07-08 | D12: ZYDUSWELL | E12: Buy | F12: 2190-2210 | G12: 2060 | I12: 2500 | J12: Open | R12: N
A13: 4 | B13: 2021-07-08 | D13: MARUTI | E13: Buy<> | F13: 7335 | G13: 6905 | H13: 6,905.00 | I13: 8000-8200 | J13: Loss of Rs.430/- | K13: =H13-F13 -> -430 | L13: =(F13*-0.8)/100 -> -58.68 | M13: =(K13+L13)/F13 -> -6.66% | N13: Unsuccessful | O13: 2021-08-16 | R13: H
A14: 5 | B14: 2021-07-19 | D14: IGL | E14: Buy | F14: 545-550 | G14: 510 | I14: 620-640 | J14: Open | R14: H
A15: 6 | B15: 2021-07-20 | D15: IOC | E15: Buy | F15: 104-105 | G15: 96.5 | I15: 120-122 | J15: Open | R15: H
A16: 7 | B16: 2021-07-22 | D16: LT | E16: Buy<> | F16: 1577 | G16: 1447 | H16: 1,673.00 | I16: 1800-1850 | J16: Profit of Rs.96/- | K16: =H16-F16 -> 96 | L16: =(F16*-0.8)/100 -> -12.62 | M16: =(K16+L16)/F16 -> 5.29% | N16: Successful | O16: 2021-08-13 | R16: H
A17: 8 | B17: 2021-07-30 | D17: AMARAJABAT | E17: Buy | F17: 715 | G17: 675 | H17: 740.00 | I17: 780-800 | J17: Part profit of Rs.25/- | K17: 25 | L17: =(F17*-0.7)/100 -> -5.01 | M17: 2.80% | N17: Successful | O17: 2021-08-16 | R17: H
A18: 9 | B18: 2021-08-02 | D18: MIRZAINT | E18: Buy | F18: 63.3 | G18: 59 | H18: 59.00 | I18: 70-72 | J18: Loss of Rs.4.3/- | K18: =H18-F18 -> -4.3 | L18: =(F18*-0.8)/100 -> -0.51 | M18: =(K18+L18)/F18 -> -7.59% | N18: Unsuccessful | O18: 2021-08-10 | R18: H
A19: 10 | B19: 2021-08-09 | D19: ENGINERSIN | E19: Buy | F19: 74 | G19: 69 | H19: 68.50 | I19: 80-83 | J19: Loss of Rs.5.5/- | K19: =H19-F19 -> -5.5 | L19: =(F19*-0.8)/100 -> -0.59 | M19: =(K19+L19)/F19 -> -8.23% | N19: Unsuccessful | O19: 2021-08-23 | R19: H
A20: 11 | B20: 2021-08-13 | D20: MCX | E20: Buy | F20: 1490-1510 | G20: 1415 | I20: 1650-1680 | J20: Open | R20: H
A21: 12 | B21: 2021-08-20 | D21: POLYCAB | E21: Buy | F21: 1860-1870 | G21: 1740 | I21: 2000-2050 | J21: Open | R21: H
A27: CLBS = Closing Basis ***
A28: Dividend adjusted <> | F28: Reinitiated $
A29: Part book {} | F29: Revised stoploss #
B31: Momentum Call
A32: Sr.no | B32: Date | D32: Company | E32: Rec | F32: Rec Price | G32: Stop Loss | H32: Call Closed At | I32: Target | J32: Remark | K32: Profit / Loss per Share/Lot | L32: All charges | M32: Net Gain / Loss % | N32: Status | O32: Closed Date
A33: 1 | B33: 2021-07-20 | D33: BLUESTARCO | E33: Buy | F33: 846 | G33: 821 | H33: 832.5 | I33: 895 | J33: Loss of Rs.13.5/- | K33: =H33-F33 -> -13.5 | L33: =(F33*-0.7)/100 -> -5.92 | M33: =(K33+L33)/F33 -> -2.30% | N33: Unsuccessful | O33: 2021-08-04 | R33: H
A34: 2 | B34: 2021-07-22 | D34: SUPREMEIND | E34: Buy | F34: 2097 | G34: 2040 | H34: 2147.5 | I34: 2180-2200 | J34: Profit of Rs.50.5/- | K34: =H34-F34 -> 50.5 | L34: =(F34*-0.7)/100 -> -14.68 | M34: =(K34+L34)/F34 -> 1.71% | N34: Successful | O34: 2021-08-02 | R34: H
A35: 2 | B35: 2021-07-29 | D35: BAJAJELEC | E35: Buy | F35: 1147.5 | G35: 1115 | H35: 1182.5 | I35: 1200-1210 | J35: Profit of Rs.35/- | K35: =H35-F35 -> 35 | L35: =(F35*-0.7)/100 -> -8.03 | M35: =(K35+L35)/F35 -> 2.35% | N35: Successful | O35: 2021-08-02 | R35: N
A36: 4 | B36: 2021-07-30 | D36: DELTACORP | E36: Buy | F36: 184.5 | G36: 179 | H36: 179 | I36: 195-197 | J36: Loss of Rs.5.5/- | K36: -5.5 | L36: =(F36*-0.7)/100 -> -1.29 | M36: -3.68% | N36: Unsuccessful | O36: 2021-08-03 | R36: N
A37: 5 | B37: 2021-08-02 | D37: MARICO | E37: Buy | F37: 551 | G37: 534 | H37: 534.5 | I37: 580 | J37: Loss of Rs.16.5/- | K37: =H37-F37 -> -16.5 | L37: =(F37*-0.07)/100 -> -0.39 | M37: =(K37+L37)/F37 -> -3.06% | N37: Unsuccessful | O37: 2021-08-02 | R37: N
A38: 6 | B38: 2021-08-02 | D38: SUNTV | E38: Buy | F38: 569.5 | G38: 554 | H38: 554 | I38: 595-605 | J38: Loss of Rs.16.5/- | K38: =H38-F38 -> -15.5 | L38: =(F38*-0.7)/100 -> -3.99 | M38: =(K38+L38)/F38 -> -3.42% | N38: Unsuccessful | O38: 2021-08-05 | R38: H
A39: 7 | B39: 2021-08-02 | D39: AEGISCHEM | E39: Buy | F39: 305.5 | G39: 297 | H39: 297 | I39: 320-322 | J39: Loss of Rs.8.5/- | K39: =H39-F39 -> -8.5 | L39: =(F39*-0.7)/100 -> -2.14 | M39: =(K39+L39)/F39 -> -3.48% | N39: Unsuccessful | O39: 2021-08-04 | R39: H
A40: 8 | B40: 2021-08-03 | D40: NMDC | E40: Buy | F40: 178.25 | G40: 173 | H40: 182.5 | I40: 188-190 | J40: Profit of Rs.4.25/- | K40: =H40-F40 -> 4.25 | L40: =(F40*-0.07)/100 -> -0.12 | M40: =(K40+L40)/F40 -> 2.31% | N40: Successful | O40: 2021-08-03 | R40: H
A41: 9 | B41: 2021-08-04 | D41: RATNAMANI | E41: Buy | F41: 2159 | G41: 2085 | H41: 2085 | I41: 2220-2250 | J41: Loss of Rs.74/- | K41: -74 | L41: =(F41*-0.7)/100 -> -15.11 | M41: -4.13% | N41: Unsuccessful | O41: 2021-08-05 | R41: H
A42: 10 | B42: 2021-08-04 | D42: MAXHEALTH | E42: Buy | F42: 284 | G42: 274 | H42: 275 | I42: 295-300 | J42: Loss of Rs.9/- | K42: -9 | L42: =(F42*-0.7)/100 -> -1.99 | M42: -3.87% | N42: Unsuccessful | O42: 2021-08-05 | R42: H
A43: 11 | B43: 2021-08-05 | D43: SAIL | E43: Buy | F43: 135.5 | G43: 131.8 | H43: 138.5 | I43: 140-142 | J43: Profit of Rs.3/- | K43: =H43-F43 -> 3 | L43: =(F43*-0.07)/100 -> -0.09 | M43: =(K43+L43)/F43 -> 2.14% | N43: Successful | O43: 2021-08-05 | R43: H
A44: 12 | B44: 2021-08-06 | D44: MUTHOOTFIN | E44: Buy | F44: 1515 | G44: 1470 | H44: 1550 | I44: 1600-1620 | J44: Profit of Rs.35/- | K44: =H44-F44 -> 35 | L44: =(F44*-0.07)/100 -> -1.06 | M44: =(K44+L44)/F44 -> 2.24% | N44: Successful | O44: 2021-08-06 | R44: H
A45: 13 | B45: 2021-08-09 | D45: INDUSINDBK | E45: Buy | F45: 1035 | G45: 1005 | H45: 1005 | I45: 1100 | J45: Loss of Rs.30/- | K45: -30 | L45: =(F45*-0.7)/100 -> -7.25 | M45: -3.60% | N45: Unsuccessful | O45: 2021-08-17 | R45: N
A46: 14 | B46: 2021-08-09 | D46: NMDC | E46: Buy | F46: 178 | G46: 173 | H46: 172.5 | I46: 187-190 | J46: Loss of Rs.5.5/- | K46: =H46-F46 -> -5.5 | L46: =(F46*-0.7)/100 -> -1.25 | M46: =(K46+L46)/F46 -> -3.79% | N46: Unsuccessful | O46: 2021-08-10 | R46: H
A47: 15 | B47: 2021-08-09 | D47: LAURUSLABS | E47: Buy | F47: 701 | G47: 685 | H47: 715 | I47: 720-730 | J47: Profit of Rs.14/- | K47: 14 | L47: =(F47*-0.7)/100 -> -4.91 | M47: 1.30% | N47: Successful | O47: 2021-08-10 | R47: H
A48: 16 | B48: 2021-08-10 | D48: TATACHEM | E48: Buy | F48: 854.5 | G48: 832 | H48: 876 | I48: 880-890 | J48: Profit of Rs.21.5/- | K48: =H48-F48 -> 21.5 | L48: =(F48*-0.7)/100 -> -5.98 | M48: =(K48+L48)/F48 -> 1.82% | N48: Successful | O48: 2021-08-12 | R48: N
A49: 17 | B49: 2021-08-11 | D49: IEX | E49: Buy | F49: 401 | G49: 388 | H49: 388 | I49: 415-425 | J49: Loss of Rs.13/- | K49: =H49-F49 -> -13 | L49: =(F49*-0.07)/100 -> -0.28 | M49: =(K49+L49)/F49 -> -3.31% | N49: Unsuccessful | O49: 2021-08-11 | R49: H
A50: 18 | B50: 2021-08-11 | D50: JBCHEPHARM | E50: Buy | F50: 1695 | G50: 1645 | H50: 1730 | I50: 1770-1800 | J50: Profit of Rs.35/- | K50: 35 | L50: =(F50*-0.07)/100 -> -1.19 | M50: 1.99% | N50: Successful | O50: 2021-08-11 | R50: H
A51: 19 | B51: 2021-08-13 | D51: INDIGO | E51: Buy | F51: 1672 | G51: 1615 | H51: 1717.5 | I51: 1740-1760 | J51: Profit of Rs.45.5/- | K51: 45.5 | L51: =(F51*-0.7)/100 -> -11.70 | M51: 2.02% | N51: Successful | O51: 2021-08-17 | R51: H
A52: 20 | B52: 2021-08-13 | D52: ICICIGI | E52: Buy | F52: 1446 | G52: 1395 | H52: 1486.5 | I52: 1550 | J52: Profit of Rs.40.5/- | K52: =H52-F52 -> 40.5 | L52: =(F52*-0.7)/100 -> -10.12 | M52: =(K52+L52)/F52 -> 2.10% | N52: Successful | O52: 2021-08-20 | R52: H
A53: 21 | B53: 2021-08-16 | D53: JYOTHYLAB | E53: Buy | F53: 168.5 | G53: 163 | H53: 163 | I53: 180 | J53: Loss of Rs.5.5/- | K53: -5.5 | L53: -1.18 | M53: -3.96% | N53: Unsuccessful | O53: 2021-08-20 | R53: H
A54: 22 | B54: 2021-08-17 | D54: ZYDUSWELL | E54: Buy | F54: 2215 | G54: 2170 | H54: 2170 | I54: 2280-2300 | J54: Loss of Rs.45/- | K54: -45 | L54: -15.51 | M54: -2.73% | N54: Unsuccessful | O54: 2021-08-20 | R54: N
A55: 23 | B55: 2021-08-18 | D55: GRANULES | E55: Buy | F55: 347.5 | G55: 337 | H55: 337 | I55: 360-365 | J55: Loss of Rs.10.5/- | K55: -10.5 | L55: -2.43 | M55: -3.72% | N55: Unsuccessful | O55: 2021-08-20 | R55: H
A56: 24 | B56: 2021-08-20 | D56: AARTIIND | E56: Buy | F56: 930-938 | G56: 899 | I56: 980-1000 | J56: Open | R56: H
A57: 25 | B57: 2021-08-23 | D57: BANKBARODA | E57: Sell | F57: 75.25 | G57: 77.5 | H57: 73.9 | I57: 72-70 | J57: Profit of Rs.1.35/- | K57: =F57-H57 -> 1.35 | L57: =(F57*-0.07)/100 -> -0.05 | M57: =(K57+L57)/F57 -> 1.72% | N57: Successful | O57: 2021-08-23 | R57: H
A58: 26 | B58: 2021-08-23 | D58: MCDOWELL-N | E58: Buy | F58: 700-703 | G58: 680 | I58: 735-745 | J58: Open | R58: H
A64: CLBS = Closing Basis *** | H64: *
A65: Dividend adjusted <> | F65: Reinitiated $
F66: Revised stoploss #
A68: Master Trade High Risk
A69: Sr.no | B69: Date | D69: Company | E69: Rec | F69: Rec Price | G69: Stop Loss | H69: Call Closed At | I69: Target | J69: Remark | K69: Profit / Loss per share | L69: All charges | M69: Gain / Loss per Lot | N69: Lot | O69: Status | P69: Closed Date
A70: 1 | B70: 2021-07-28 | D70: ICICIGI AUG FUT | E70: Buy | F70: 1501 | G70: 1470 | H70: 1470 | I70: 1550-1560 | J70: Loss of Rs.31/- | K70: =H70-F70 -> -31 | L70: =(H70*N70)*0.07% -> 437.33 | M70: =(K70*N70)-L70 -> -13612.3 | N70: 425 | O70: Unsuccessful | P70: 2021-08-02 | R70: N
A71: 2 | B71: 2021-07-29 | D71: HINDUNILVR AUG FUT | E71: Buy | F71: 2340 | G71: 2295 | H71: 2366.5 | I71: 2430-2450 | J71: Profit of Rs.26.5/- | K71: 26.5 | L71: 496.97 | M71: 7453.0 | N71: 300 | O71: Successful | P71: 2021-08-03 | R71: H
A72: 3 | B72: 2021-07-30 | D72: SBIN AUG FUT | E72: Buy | F72: 433 | G72: 425 | H72: 438.5 | I72: 445 | J72: Profit of Rs.5.5/- | K72: =H72-F72 -> 5.5 | L72: =(H72*N72)*0.07% -> 460.43 | M72: =(K72*N72)-L72 -> 7789.6 | N72: 1500 | O72: Successful | P72: 2021-08-02 | R72: H
A73: 4 | B73: 2021-07-30 | D73: LT AUG FUT | E73: Buy | F73: 1616.5 | G73: 1595 | H73: 1639 | I73: 1650-1660 | J73: Profit of Rs.22.5/- | K73: 22.5 | L73: 659.70 | M73: 12277.8 | N73: 575 | O73: Successful | P73: 2021-08-03 | R73: N
A74: 5 | B74: 2021-07-30 | D74: BERGEPAINT AUG FUT | E74: Buy | F74: 849 | G74: 836 | H74: 856 | I74: 870 | J74: Profit of Rs.7/- | K74: =H74-F74 -> 7 | L74: =(H74*N74)*0.07% -> 659.12 | M74: =(K74*N74)-L74 -> 7040.9 | N74: 1100 | O74: Successful | P74: 2021-08-03 | R74: N
A75: 6 | B75: 2021-08-03 | D75: COLPAL AUG FUT | E75: Buy | F75: 1692 | G75: 1655 | H75: 1655 | I75: 1750-1770 | J75: Loss of Rs.37/- | K75: -37 | L75: 405.48 | M75: -13355.5 | N75: 350 | O75: Unsuccessful | P75: 2021-08-06 | R75: N
A76: 7 | B76: 2021-08-03 | D76: TVSMOTOR AUG FUT | E76: Buy | F76: 571 | G76: 560 | H76: 577 | I76: 590 | J76: Profit of Rs.6/- | K76: =H76-F76 -> 6 | L76: =(H76*N76)*0.07% -> 565.46 | M76: =(K76*N76)-L76 -> 7834.5 | N76: 1400 | O76: Successful | P76: 2021-08-04 | R76: N
A77: 8 | B77: 2021-08-03 | D77: PEL AUG FUT | E77: Buy | F77: 2534 | G77: 2490 | H77: 2567.5 | I77: 2600-2630 | J77: Profit of Rs.33.5/- | K77: 33.5 | L77: 494.24 | M77: 8718.3 | N77: 275 | O77: Successful | P77: 2021-08-04 | R77: N
A78: 9 | B78: 2021-08-03 | D78: HDFCBANK AUG FUT | E78: Buy | F78: 1438 | G78: 1414 | H78: 1454 | I78: 1470-1480 | J78: Profit of Rs.16/- | K78: =H78-F78 -> 16 | L78: =(H78*N78)*0.07% -> 559.79 | M78: =(K78*N78)-L78 -> 8240.2 | N78: 550 | O78: Successful | P78: 2021-08-04 | R78: H
A79: 10 | B79: 2021-08-04 | D79: ACC AUG FUT | E79: Buy | F79: 2441 | G79: 2416 | H79: 2416 | I79: 2480-2490 | J79: Loss of Rs.25/- | K79: -25 | L79: 845.60 | M79: -13345.6 | N79: 500 | O79: Unsuccessful | P79: 2021-08-04 | R79: N
A80: 11 | B80: 2021-08-05 | D80: NAM-INDIA AUG FUT | E80: Buy | F80: 407 | G80: 397 | H80: 397 | I80: 425-430 | J80: Loss of Rs.10/- | K80: =H80-F80 -> -10 | L80: =(H80*N80)*0.07% -> 444.64 | M80: =(K80*N80)-L80 -> -16444.6 | N80: 1600 | O80: Unsuccessful | P80: 2021-08-09 | R80: N
A81: 12 | B81: 2021-08-05 | D81: HDFCLIFE AUG FUT | E81: Buy | F81: 671.5 | G81: 660 | H81: 679 | I81: 688-692 | J81: Profit of Rs.7.5/- | K81: 7.5 | L81: 522.83 | M81: 7727.2 | N81: 1100 | O81: Successful | P81: 2021-08-09 | R81: H
A82: 13 | B82: 2021-08-06 | D82: TVSMOTOR AUG FUT | E82: Buy | F82: 569.5 | G82: 560 | H82: 575.5 | I82: 590 | J82: Profit of Rs.6/- | K82: =H82-F82 -> 6 | L82: =(H82*N82)*0.07% -> 563.99 | M82: =(K82*N82)-L82 -> 7836.0 | N82: 1400 | O82: Successful | P82: 2021-08-06 | R82: N
A83: 14 | B83: 2021-08-06 | D83: ITC AUG FUT | E83: Buy | F83: 214.5 | G83: 210 | H83: 217.75 | I83: 222 | J83: Profit of Rs.3.25/- | K83: 3.25 | L83: 487.76 | M83: 9912.2 | N83: 3200 | O83: Successful | P83: 2021-08-09 | R83: H
A84: 15 | B84: 2021-08-06 | D84: CHOLAFIN AUG FUT | E84: Buy | F84: 538.5 | G84: 528 | H84: 528 | I84: 560 | J84: Loss of Rs.10.5/- | K84: =H84-F84 -> -10.5 | L84: =(H84*N84)*0.07% -> 462.00 | M84: =(K84*N84)-L84 -> -13587.0 | N84: 1250 | O84: Unsuccessful | P84: 2021-08-06 | R84: N
A85: 16 | B85: 2021-08-09 | D85: LUPIN AUG FUT | E85: Buy | F85: 1143 | G85: 1127 | H85: 1127 | I85: 1175 | J85: Loss of Rs.16/- | K85: =H85-F85 -> -16 | L85: =(H85*N85)*0.07% -> 670.57 | M85: =(K85*N85)-L85 -> -14270.6 | N85: 850 | O85: Unsuccessful | P85: 2021-08-09 | R85: N
A86: 17 | B86: 2021-08-09 | D86: HDFC AUG FUT | E86: Buy | F86: 2632 | G86: 2595 | H86: 2664 | I86: 2680-2700 | J86: Profit of Rs.13/- | K86: 32 | L86: 559.44 | M86: 9040.6 | N86: 300 | O86: Successful | P86: 2021-08-10 | R86: H
A87: 18 | B87: 2021-08-09 | D87: HDFCLIFE AUG FUT | E87: Buy | F87: 669 | G87: 658 | H87: 676 | I87: 685-690 | J87: Profit of Rs.8/- | K87: 7 | L87: 520.52 | M87: 7179.5 | N87: 1100 | O87: Successful | P87: 2021-08-12 | R87: H
A88: 19 | B88: 2021-08-09 | D88: AARTIIND AUG FUT | E88: Buy | F88: 941 | G88: 926 | H88: 952 | I88: 975 | J88: Profit of Rs.11/- | K88: =H88-F88 -> 11 | L88: =(H88*N88)*0.07% -> 566.44 | M88: =(K88*N88)-L88 -> 8783.6 | N88: 850 | O88: Successful | P88: 2021-08-09 | R88: N
A89: 20 | B89: 2021-08-10 | D89: AARTIIND AUG FUT | E89: Buy | F89: 941 | G89: 926 | H89: 954 | I89: 975 | J89: Profit of Rs.13/- | K89: =H89-F89 -> 13 | L89: =(H89*N89)*0.07% -> 567.63 | M89: =(K89*N89)-L89 -> 10482.4 | N89: 850 | O89: Successful | P89: 2021-08-10 | R89: N
A90: 21 | B90: 2021-08-10 | D90: ITC AUG FUT | E90: Buy | F90: 212.75 | G90: 208.5 | H90: 209.25 | I90: 220 | J90: Loss of Rs.3.5/- | K90: -3.5 | L90: 468.72 | M90: -11668.7 | N90: 3200 | O90: Unsuccessful | P90: 2021-08-10 | R90: H
A91: 22 | B91: 2021-08-11 | D91: IGL AUG FUT | E91: Buy | F91: 519 | G91: 509.5 | H91: 527 | I91: 535 | J91: Profit of Rs.8/- | K91: =H91-F91 -> 8 | L91: =(H91*N91)*0.07% -> 516.46 | M91: =(K91*N91)-L91 -> 10683.5 | N91: 1400 | O91: Successful | P91: 2021-08-12 | R91: H
A92: 23 | B92: 2021-08-11 | D92: AARTIIND AUG FUT | E92: Buy | F92: 911 | G92: 896 | H92: 921 | I92: 930-935 | J92: Profit of Rs.10/- | K92: =H92-F92 -> 10 | L92: =(H92*N92)*0.07% -> 548.00 | M92: =(K92*N92)-L92 -> 7952.0 | N92: 850 | O92: Successful | P92: 2021-08-11 | R92: N
A93: 24 | B93: 2021-08-12 | D93: TATASTEEL AUG FUT | E93: Buy | F93: 1440 | G93: 1424 | H93: 1424 | I93: 1465-1475 | J93: Loss of Rs.16/- | K93: -16 | L93: 847.28 | M93: -14447.3 | N93: 850 | O93: Unsuccessful | P93: 2021-08-13 | R93: H
A94: 25 | B94: 2021-08-13 | D94: HDFCLIFE AUG FUT | E94: Buy | F94: 672.5 | G94: 657 | H94: 657 | I94: 690 | J94: Loss of Rs.11.9/- | K94: -15.50 | L94: 505.89 | M94: =(-1100*11.9)-606 -> -13696 | N94: 1100 | O94: Unsuccessful | P94: 2021-08-20 | R94: H
D95: HDFCLIFE AUG 690 CE | E95: Sell | F95: 4.5 | H95: 0.9 | K95: 3.60 | R95: H
A96: 26 | B96: 2021-08-16 | D96: HCLTECH AUG FUT | E96: Buy | F96: 1115.5 | G96: 1100 | H96: 1128 | I96: 1150 | J96: Profit of Rs.12.5/- | K96: =H96-F96 -> 12.5 | L96: =(H96*N96)*0.07% -> 552.72 | M96: =(K96*N96)-L96 -> 8197.3 | N96: 700 | O96: Successful | P96: 2021-08-16 | R96: N
A97: 27 | B97: 2021-08-16 | D97: HDFCAMC AUG FUT | E97: Buy | F97: 2925 | G97: 2885 | H97: 2960 | I97: 3000 | J97: Profit of Rs.35/- | K97: =H97-F97 -> 35 | L97: =(H97*N97)*0.07% -> 414.40 | M97: =(K97*N97)-L97 -> 6585.6 | N97: 200 | O97: Successful | P97: 2021-08-16 | R97: N
A98: 28 | B98: 2021-08-16 | D98: SBIN AUG FUT | E98: Buy | F98: 429 | G98: 419.5 | H98: 421 | I98: 445-450 | J98: Loss of Rs.8/- | K98: -8 | L98: 442.05 | M98: -12442.1 | N98: 1500 | O98: Unsuccessful | P98: 2021-08-17 | R98: H
A99: 29 | B99: 2021-08-17 | D99: PEL AUG FUT | E99: Buy | F99: 2775 | G99: 2730 | H99: 2730 | I99: 2850-2875 | J99: Loss of Rs.45/- | K99: =H99-F99 -> -45 | L99: =(H99*N99)*0.07% -> 525.53 | M99: =(K99*N99)-L99 -> -12900.5 | N99: 275 | O99: Unsuccessful | P99: 2021-08-17 | R99: N
A100: 30 | B100: 2021-08-17 | D100: LT AUG FUT | E100: Buy | F100: 1642 | G100: 1618 | H100: 1659 | I100: 1680-1700 | J100: Profit of Rs.17/- | K100: 17 | L100: 667.75 | M100: 9107.3 | N100: 575 | O100: Successful | P100: 2021-08-17 | R100: H
A101: 31 | B101: 2021-08-17 | D101: M&M AUG FUT | E101: Buy | F101: 789 | G101: 770 | H101: 789.5 | I101: 820-830 | J101: Profit of Rs.0.5/- | K101: =H101-F101 -> 0.5 | L101: =(H101*N101)*0.07% -> 386.86 | M101: =(K101*N101)-L101 -> -36.9 | N101: 700 | O101: Successful | P101: 2021-08-23 | R101: H
A102: 32 | B102: 2021-08-18 | D102: ESCORTS AUG FUT | E102: Buy | F102: 1236 | G102: 1214 | H102: 1216 | I102: 1270-1275 | J102: Loss of Rs.20/- | K102: -20 | L102: 468.16 | M102: -11468.2 | N102: 550 | O102: Unsuccessful | P102: 2021-08-23 | R102: H
A103: 33 | B103: 2021-08-20 | D103: GODREJCP AUG FUT | E103: Buy | F103: 1037 | G103: 1025 | H103: 1045.5 | I103: 1065-1070 | J103: Profit of Rs.8.5/- | K103: =H103-F103 -> 8.5 | L103: =(H103*N103)*0.07% -> 731.85 | M103: =(K103*N103)-L103 -> 7768.2 | N103: 1000 | O103: Successful | P103: 2021-08-20 | R103: N
A104: 34 | B104: 2021-08-20 | D104: IRCTC AUG FUT | E104: Buy | F104: 2652 | G104: 2610 | H104: 2680 | I104: 2700-2730 | J104: Profit of Rs.28/- | K104: 28 | L104: 609.70 | M104: 8490.3 | N104: 325 | O104: Successful | P104: 2021-08-23 | R104: N
A105: 35 | B105: 2021-08-23 | D105: HDFCAMC AUG FUT | E105: Buy | F105: 2890-2900 | G105: 2835 | I105: 3000-3010 | J105: Open | R105: N
A106: 36 | B106: 2021-08-23 | D106: COLPAL SEP FUT | E106: Buy | F106: 1680-1684 | G106: 1645 | I106: 1750-1760 | J106: Open | R106: N
A113: Master Trade Medium Risk
A114: Sr.no | B114: Date | D114: Company | E114: Rec | F114: Rec Price | G114: Stop Loss | H114: Call Closed At | I114: Target | J114: Remark | K114: Profit/ Loss per lot | L114: All charges | M114: Gain / Loss per Lot | N114: Lot | O114: Status | P114: Closed Date
A115: 1 | B115: 2021-07-26 | D115: ITC 225 CE AUG | E115: Buy | F115: 2.1 | G115: 0.75 | H115: 0.75 | I115: 4-4.50 | J115: Loss of Rs.1.35/- | K115: =H115-F115 -> -1.35 | L115: 100.00 | M115: =(K115*N115)-100 -> -4420 | N115: 3200 | O115: Unsuccessful | P115: 2021-08-13 | R115: H
A116: 2 | B116: 2021-08-03 | D116: NIFTY 15900 PE 5-AUG | E116: Buy | F116: 66.5 | G116: 19 | H116: 26 | I116: 110-120 | J116: Loss of Rs.40.5/- | K116: =H116-F116 -> -40.50 | L116: 100.00 | M116: =(K116*N116)-100 -> -2125 | N116: 50 | O116: Unsuccessful | P116: 2021-08-03 | R116: H
A117: 3 | B117: 2021-08-03 | D117: BANKNIFTY 34700 PE 5-AUG | E117: Buy | F117: 150 | G117: 35 | H117: 35 | I117: 250-300 | J117: Loss of Rs.115/- | K117: =H117-F117 -> -115.00 | L117: 100.00 | M117: =(K117*N117)-100 -> -2975 | N117: 25 | O117: Unsuccessful | P117: 2021-08-04 | R117: N
A118: 4 | B118: 2021-08-04 | D118: COLPAL 1700 CE AUG | E118: Buy | F118: 26.5 | G118: 14 | H118: 14 | I118: 45-50 | J118: Loss of Rs.12.5/- | K118: -12.50 | L118: 100.00 | M118: -4475 | N118: 350 | O118: Unsuccessful | P118: 2021-08-13 | R118: H
A119: 5 | B119: 2021-08-04 | D119: NIFTY 16250 PE 5-AUG | E119: Buy | F119: 51 | G119: 8 | H119: 8 | I119: 100-120 | J119: Loss of Rs.43/- | K119: =H119-F119 -> -43.00 | L119: 100.00 | M119: =(K119*N119)-100 -> -2250 | N119: 50 | O119: Unsuccessful | P119: 2021-08-05 | R119: N
A120: 6 | B120: 2021-08-10 | D120: EXIDEIND 175 CE AUG | E120: Buy | F120: 2.75 | G120: 1.3 | H120: 1.3 | I120: 4.5-5 | J120: Loss of Rs.1.45/- | K120: -1.45 | L120: 100.00 | M120: -3870 | N120: 2600 | O120: Unsuccessful | P120: 2021-08-13 | R120: H
A121: 7 | B121: 2021-08-10 | D121: NIFTY 16500 CE AUG | E121: Sell | F121: 80 | G121: 140 | H121: 62 | I121: 0.1 | J121: Profit of Rs.18/- | K121: =F121-H121 -> 18.00 | L121: 100.00 | M121: =(K121*N121)-100 -> 800 | N121: 50 | O121: Successful | P121: 2021-08-10 | R121: H
A122: 8 | B122: 2021-08-11 | D122: HDFC 2700 CE AUG | E122: Buy | F122: 23 | G122: 10 | H122: 33.5 | I122: 45-50 | J122: Profit of Rs.10.5/- | K122: =H122-F122 -> 10.50 | L122: 100.00 | M122: 3050 | N122: 300 | O122: Successful | P122: 2021-08-13 | R122: N
A123: 9 | B123: 2021-08-11 | D123: ASIANPAINT 3000 CE AUG | E123: Buy | F123: 47 | G123: 34 | H123: 53.5 | I123: 80 | J123: Profit of Rs.6.5/- | K123: =H123-F123 -> 6.50 | L123: 100.00 | M123: =(K123*N123)-100 -> 1850 | N123: 300 | O123: Successful | P123: 2021-08-13 | R123: N
A124: 10 | B124: 2021-08-12 | D124: IGL 500 PE AUG | E124: Sell | F124: 5.75 | G124: 9 | H124: 3.75 | I124: 0.1 | J124: Profit of Rs.2/- | K124: =F124-H124 -> 2.00 | L124: 100.00 | M124: =(K124*N124)-100 -> 2700 | N124: 1400 | O124: Successful | P124: 2021-08-12 | R124: H
A125: 11 | B125: 2021-08-12 | D125: BANKNIFTY 35900 CE 12-AUG | E125: Buy | F125: 62 | H125: 22.5 | I125: 120-150 | J125: Loss of Rs.39.5/- | K125: =H125-F125 -> -39.50 | L125: 100.00 | M125: -1087.5 | N125: 25 | O125: Unsuccessful | P125: 2021-08-12 | R125: N
A126: 12 | B126: 2021-08-12 | D126: NIFTY 16500 CE 26-AUG | E126: Sell | F126: 72 | G126: 130 | H126: 125 | I126: 0.1 | J126: Loss of Rs.53/- | K126: =F126-H126 -> -53.00 | L126: 100.00 | M126: -2750 | N126: 50 | O126: Unsuccessful | P126: 2021-08-13 | R126: H
A127: 13 | B127: 2021-08-12 | D127: HINDUNILVR 2400 CE AUG | E127: Buy | F127: 31 | G127: 15 | H127: 38 | I127: 50-60 | J127: Profit of Rs.7/- | K127: =H127-F127 -> 7.00 | L127: 100.00 | M127: =(K127*N127)-100 -> 2000 | N127: 300 | O127: Successful | P127: 2021-08-13 | R127: N
A128: 14 | B128: 2021-08-13 | D128: LT 1640 CE AUG | E128: Buy | F128: 26.5 | G128: 18 | H128: 31.5 | I128: 45-50 | J128: Profit of Rs.5/- | K128: 5.00 | L128: 100.00 | M128: 2775 | N128: 575 | O128: Successful | P128: 2021-08-13 | R128: N
A129: 15 | B129: 2021-08-13 | D129: TATASTEEL 1600 CE AUG | E129: Sell | F129: 6.1 | G129: 10.1 | H129: 10.1 | I129: 0.1 | J129: Loss of Rs.4/- | K129: =F129-H129 -> -4.00 | L129: 100.00 | M129: -3300 | N129: 800 | O129: Unsuccessful | P129: 2021-08-13 | R129: N
A130: 16 | B130: 2021-08-13 | D130: ASIANPAINT 3000 CE AUG | E130: Buy | F130: 44.5 | G130: 30 | H130: 53.5 | I130: 70-75 | J130: Profit of Rs.9/- | K130: =H130-F130 -> 9.00 | L130: 100.00 | M130: 2600 | N130: 300 | O130: Successful | P130: 2021-08-17 | R130: N
A131: 17 | B131: 2021-08-16 | D131: PFC 135 CE AUG | E131: Sell | F131: 1.2 | G131: 2.05 | H131: 1.2 | I131: 0.1 | J131: Nuetral | K131: =H131-F131 -> 0.00 | L131: 100.00 | M131: =(K131*N131)-100 -> -100 | N131: 6200 | O131: Neutral | P131: 2021-08-17 | R131: H
A132: 18 | B132: 2021-08-16 | D132: LT 1660 CE AUG | E132: Buy | F132: 25.5 | G132: 17 | H132: 17 | I132: 45 | J132: Loss of Rs.8.5/- | K132: =H132-F132 -> -8.50 | L132: 100.00 | M132: =(K132*N132)-100 -> -4987.5 | N132: 575 | O132: Unsuccessful | P132: 2021-08-17 | R132: N
A133: 19 | B133: 2021-08-17 | D133: LT 1640 CE AUG | E133: Buy | F133: 21.5 | G133: 14 | H133: 25.5 | I133: 30-35 | J133: Profit of Rs.4/- | K133: 4.00 | L133: 100.00 | M133: 2200 | N133: 575 | O133: Successful | P133: 2021-08-18 | R133: H
A134: 20 | B134: 2021-08-18 | D134: RELIANCE 2180 CE AUG | E134: Buy | F134: 24-26 | G134: 7 | I134: 45-50 | J134: Open | R134: H
A135: 21 | B135: 2021-08-18 | D135: ASIANPAINT 3020 CE AUG | E135: Buy | F135: 41 | G135: 28 | H135: 48 | I135: 70-75 | J135: Profit of Rs.7/- | K135: =H135-F135 -> 7.00 | L135: 100.00 | M135: =(K135*N135)-100 -> 2000 | N135: 300 | O135: Successful | P135: 2021-08-20 | R135: N
A136: 22 | B136: 2021-08-20 | D136: NIFTY 16600 CE AUG | E136: Sell | F136: 52 | G136: 85 | H136: 31 | I136: 0.1 | J136: Profit of Rs.21/- | K136: =F136-H136 -> 21.00 | L136: 100.00 | M136: =(K136*N136)-100 -> 950 | N136: 50 | O136: Successful | P136: 2021-08-20 | R136: H
A137: 23 | B137: 2021-08-20 | D137: M&M 790 CE AUG | E137: Buy | F137: 9.5 | G137: 4 | H137: 4 | I137: 20-22 | J137: Loss of Rs.5.5/- | K137: =H137-F137 -> -5.50 | L137: 100.00 | M137: -3950 | N137: 700 | O137: Successful | P137: 2021-08-20 | R137: H
A138: 24 | B138: 2021-08-20 | D138: BATAINDIA 1760 CE AUG | E138: Buy | F138: 27.5 | G138: 17 | H138: 32.5 | I138: 45 | J138: Profit of Rs.5/- | K138: =H138-F138 -> 5.00 | L138: 100.00 | M138: =(K138*N138)-100 -> 2650 | N138: 550 | O138: Successful | P138: 2021-08-20 | R138: N
A139: 25 | B139: 2021-08-20 | D139: HDFC 2700 PE AUG | E139: Buy | F139: 17 | H139: 21.5 | I139: 40-45 | J139: Profit of Rs.4.5/- | K139: 4.50 | L139: 100.00 | M139: 1250 | N139: 300 | O139: Successful | P139: 2021-08-20 | R139: H
A140: 26 | B140: 2021-08-20 | D140: HINDUNILVR 2620 CE AUG | E140: Sell | F140: 15 | G140: 26 | H140: 26 | I140: 0.1 | J140: Loss of Rs.11/- | K140: 11.00 | L140: 100.00 | M140: 3200 | N140: 300 | O140: Unsuccessful | P140: 2021-08-20 | R140: H
A141: 27 | B141: 2021-08-20 | D141: HDFC 2700 PE AUG | E141: Buy | F141: 15.5 | H141: 15.5 | I141: 40-45 | J141: Nuetral | K141: =H141-F141 -> 0.00 | L141: 100.00 | M141: =(K141*N141)-100 -> -100 | N141: 300 | O141: Neutral | P141: 2021-08-20 | R141: H
A142: 28 | B142: 2021-08-20 | D142: LT 1600 CE AUG | E142: Buy | F142: 18.5-19.5 | G142: 10 | I142: 30-35 | J142: Open | R142: N
A143: 29 | B143: 2021-08-20 | D143: NIFTY 16400 PE AUG | E143: Buy | F143: 62 | G143: 14 | H143: 77.5 | I143: 120 | J143: Profit of Rs.15.5/- | K143: =H143-F143 -> 15.50 | L143: 100.00 | M143: =(K143*N143)-100 -> 675 | N143: 50 | O143: Successful | P143: 2021-08-20 | R143: H
A144: 30 | B144: 2021-08-20 | D144: HDFC 2700 PE AUG | E144: Buy | F144: 13-14 | I144: 40 | J144: Open | R144: H
A145: 31 | B145: 2021-08-23 | D145: NIFTY 16500 PE AUG | E145: Buy | F145: 62 | G145: 14 | H145: 80 | I145: 120 | J145: Profit of Rs.18/- | K145: =H145-F145 -> 18.00 | L145: 100.00 | M145: =(K145*N145)-100 -> 800 | N145: 50 | O145: Successful | P145: 2021-08-23 | R145: H
A146: 32 | B146: 2021-08-23 | D146: TVSMOTOR 510 CE AUG | E146: Buy | F146: 5.75 | G146: 2.5 | H146: 7.75 | I146: 14 | J146: Profit of Rs.2/- | K146: =H146-F146 -> 2.00 | L146: 100.00 | M146: =(K146*N146)-100 -> 2700 | N146: 1400 | O146: Successful | P146: 2021-08-23 | R146: N
A147: 33 | B147: 2021-08-23 | D147: LT 1600 CE AUG | E147: Buy | F147: 14 | G147: 5 | H147: 18 | I147: 25 | J147: Profit of Rs.4/- | K147: =H147-F147 -> 4.00 | L147: 100.00 | M147: =(K147*N147)-100 -> 2100 | N147: 550 | O147: Successful | P147: 2021-08-23 | R147: N
A148: 34 | B148: 2021-08-23 | D148: BATAINDIA 1760 CE AUG | E148: Buy | F148: 17 | G148: 8.5 | I148: 30-35 | J148: Open | R148: N
A149: 35 | B149: 2021-08-23 | D149: PIDILITIND 2200 PE AUG | E149: Sell | F149: 11.5-12.5 | G149: 20 | I149: 0.1 | J149: Open | R149: H
A156: Techno -Funda (positional)
A157: Sr.no | B157: Date | D157: Company | E157: Rec | F157: Rec Price | G157: Stop Loss*** | H157: Call Closed At | I157: Target | J157: Remark | K157: Profit / Loss per Share/Lot | L157: All charges | M157: Net Gain / Loss % | N157: Status | O157: Closed Date
A158: 1 | B158: 2021-06-16 | D158: WHIRLPOOL | E158: Buy<> | F158: 2275 | G158: 2070 | H158: 2,070.00 | I158: 2600-2700 | J158: Loss of Rs.205/- | K158: =H158-F158 -> -205 | L158: =(F158*-0.8)/100 -> -18.20 | M158: =(K158+L158)/F158 -> -9.81% | N158: Unsuccessful | O158: 2021-08-11 | R158: H
A159: 2 | B159: 2021-08-12 | D159: SHARDACROP | E159: Buy | F159: 310-318 | G159: 284 | I159: 380-390 | J159: Open | R159: H
A161: CLBS = Closing Basis *** | F161: Reinitiated $
A162: Dividend adjusted <> | F162: Revised stoploss # | H162: .................
B164: Intrday Call
A165: Sr.no | B165: Date | D165: Company | E165: Rec | F165: Rec Price | G165: Stop Loss | H165: Call Closed At | I165: Target | J165: Remark | K165: Profit / Loss per Share/Lot | L165: Gain / Loss per Lot | M165: Lot | N165: All charges | O165: Net Gain / Loss % | P165: Status | Q165: Closed Date
B178: Investment Idea
A179: Sr.no | B179: Date | D179: Company | E179: Rec | F179: Rec Price | G179: Point of Review | H179: Close Rate | I179: Target | J179: Remark | K179: Profit / Loss per Share | L179: Gain / Loss % | M179: Status | N179: Closed Date
A180: 1 | B180: 2013-11-01 | D180: L&T Finance Holding | E180: Accu | F180: 82.00 | G180: - | H180: 100 | I180: 100.00 | J180: Target Achieved | K180: =H180-F180 -> 18.00 | L180: =K180/F180 -> 21.95% | M180: Successful | N180: 2016-10-14
A181: 2 | B181: 2014-06-04 | D181: Finolex Inds | E181: Buy | F181: 257.00 | G181: - | H181: 300 | I181: 300.00 | J181: Target Achieved | K181: 43.00 | L181: 16.73% | M181: Successful | N181: 2014-07-02
A182: 3 | B182: 2014-07-08 | D182: JK Cement | E182: Buy | F182: 393.00 | G182: - | H182: 468 | I182: 468.00 | J182: Target Achieved | K182: 75.00 | L182: 19.08% | M182: Successful | N182: 2014-08-12
A183: 4 | B183: 2014-08-06 | D183: Finolex Cables | E183: Buy | F183: 205.00 | G183: - | H183: 275 | I183: 250.00 | J183: Target Achieved | K183: 70.00 | L183: 34.15% | M183: Successful | N183: 2014-11-19
A184: 5 | B184: 2014-09-04 | D184: Exide Inds | E184: Buy | F184: 162.00 | G184: - | H184: 190 | I184: 190.00 | J184: Target Achieved | K184: 28.00 | L184: 17.28% | M184: Successful | N184: 2015-01-02
A185: 6 | B185: 2014-09-04 | D185: Deepak Nitrite | E185: Buy | F185: 75.00 | G185: - | H185: 91.5 | I185: 95-100 | J185: Profit of Rs.16.50/- | K185: 16.50 | L185: 22.00% | M185: Successful | N185: 2014-11-11
A186: 7 | B186: 2014-10-01 | D186: Mercks | E186: Buy | F186: 850.00 | G186: - | H186: 982.5 | I186: 1050.00 | J186: Profit of Rs.132.50/- | K186: 132.50 | L186: 15.59% | M186: Successful | N186: 2015-02-04
A187: 8 | B187: 2014-10-01 | D187: Grindwell Norton | E187: Buy | F187: 475.00 | G187: - | H187: 515 | I187: 600.00 | J187: Profit of Rs.40/- | K187: 40.00 | L187: 8.42% | M187: Successful | N187: 2014-10-27
A188: 9 | B188: 2014-10-01 | D188: Snowman Logistics | E188: Buy | F188: 86.00 | G188: - | H188: 99 | I188: 140.00 | J188: Profit of Rs.13.00/- | K188: 13.00 | L188: 15.12% | M188: Successful | N188: 2014-10-27
A189: 10 | B189: 2014-10-14 | D189: Birla Corp | E189: Buy | F189: 496.60 | G189: - | H189: 621 | I189: 580.00 | J189: Target Achieved | K189: 124.40 | L189: 25.05% | M189: Successful | N189: 2016-08-23
A190: 11 | B190: 2014-10-14 | D190: Ultratech Cem | E190: Buy | F190: 2481.90 | G190: - | H190: 2840 | I190: 2870.00 | J190: Profit of Rs.358.10/- | K190: 358.10 | L190: 14.43% | M190: Successful | N190: 2015-01-13
A191: 12 | B191: 2014-10-16 | D191: Sintex Inds | E191: Buy | F191: 84.50 | G191: - | H191: 93 | I191: 110.00 | J191: Profit of Rs.8.50/- | K191: 8.50 | L191: 10.06% | M191: Successful | N191: 2014-10-27
A192: 13 | B192: 2014-10-16 | D192: HSIL | E192: Buy | F192: 401.00 | G192: - | H192: 428 | I192: 450.00 | J192: Profit of Rs.27.00/- | K192: 27.00 | L192: 6.73% | M192: Successful | N192: 2015-01-16
A193: 14 | B193: 2014-10-16 | D193: Eveready Inds | E193: Buy | F193: 101.00 | G193: - | H193: 112 | I193: 120.00 | J193: Profit of Rs.11.00/- | K193: 11.00 | L193: 10.89% | M193: Successful | N193: 2014-10-27
A194: 15 | B194: 2014-11-11 | D194: Pennar Inds | E194: Buy | F194: 59.00 | G194: - | H194: 76 | I194: 76.00 | J194: Target Achieved | K194: 17.00 | L194: 28.81% | M194: Successful | N194: 2017-10-24
A195: 16 | B195: 2014-11-11 | D195: Snowman Logistics | E195: Buy | F195: 99.00 | G195: - | H195: 120 | I195: 120.00 | J195: Profit of Rs.21/- | K195: 21.00 | L195: 21.21% | M195: Successful | N195: 2014-11-17
A196: 17 | B196: 2014-11-13 | D196: Dharamsi Morarji Chem | E196: Buy | F196: 22.00 | G196: - | H196: 33.55 | I196: 32.00 | J196: Profit of Rs 11.55/- | K196: 11.55 | L196: 52.50% | M196: Successful | N196: 2015-07-03
A197: 18 | B197: 2014-12-03 | D197: Tatachem | E197: Buy | F197: 440.00 | G197: - | H197: 520 | I197: 520.00 | J197: Profit of Rs 80.00/- | K197: 80.00 | L197: 18.18% | M197: Successful | N197: 2015-07-23
A198: 19 | B198: 2014-12-03 | D198: Advanta | E198: Buy | F198: 360.00 | G198: - | H198: 427 | I198: 425.00 | J198: Profit of Rs.67.00/- | K198: 67.00 | L198: 18.61% | M198: Successful | N198: 2015-02-23
A199: 20 | B199: 2015-01-08 | D199: GDL | E199: Buy | F199: 360.00 | G199: - | H199: 455 | I199: 420.00 | J199: Profit of Rs.95.00/- | K199: 95.00 | L199: 26.39% | M199: Successful | N199: 2015-01-20
A200: 21 | B200: 2015-01-08 | D200: NRB Bearing | E200: Buy | F200: 130.00 | H200: 175.5 | I200: 165.00 | J200: Profit of Rs 45.50/- | K200: 45.50 | L200: 35.00% | M200: Successful | N200: 2017-12-19
A201: 22 | B201: 2015-02-05 | D201: GSFC | E201: Accu | F201: 98.00 | H201: 120 | I201: 120.00 | J201: Target Achieved | K201: 22.00 | L201: 22.45% | M201: Successful | N201: 2017-01-18
A202: 23 | B202: 2015-02-05 | D202: Sundrmfast | E202: Accu | F202: 196.00 | H202: 262 | I202: 255.00 | J202: Target Achieved | K202: 66.00 | L202: 33.67% | M202: Successful | N202: 2016-08-17
A203: 24 | B203: 2015-03-04 | D203: GPPL | E203: Accu | F203: 235 | H203: 77.00 | I203: 280-285 | J203: Loss of Rs.158/- | K203: -158.00 | L203: -67.23% | M203: Unsuccessful | N203: 2019-02-26
A204: 25 | B204: 2015-03-04 | D204: ORIENTCEM | E204: Accu | F204: 185.00 | H204: 224 | I204: 220-225 | J204: Target Achieved | K204: 39.00 | L204: 21.08% | M204: Successful | N204: 2016-10-04
A205: 26 | B205: 2015-03-27 | D205: PFS | E205: Accu | F205: 49.5 | H205: 15.85 | I205: 67.00 | J205: Loss of Rs.33.65/- | K205: -33.65 | L205: -68% | M205: Unsuccessful | N205: 2019-06-11
A206: 27 | B206: 2015-03-30 | D206: Walchandnagar Ind Ltd | E206: Accu | F206: 183.50 | H206: 219 | I206: 218.00 | J206: Profit of Rs.35.50/- | K206: 35.50 | L206: 19.35% | M206: Successful | N206: 2015-04-09
A207: 28 | B207: 2015-04-20 | D207: Kalpataru Power Transmission Ltd | E207: Accu | F207: =(227+237)/2 -> 232.00 | H207: 298 | I207: 298.00 | J207: Target Achieved | K207: 66.00 | L207: 28.45% | M207: Successful | N207: 2017-03-29
A208: 29 | B208: 2015-05-04 | D208: Mastek Ltd | E208: Buy | F208: 385.00 | H208: =212.5+331 -> 543.5 | I208: 510.00 | J208: Profit of Rs 158.50/- | K208: 158.50 | L208: 41.17% | M208: Successful | N208: 2015-08-19
A209: 30 | B209: 2015-05-04 | D209: Suprajit Eng | E209: Buy | F209: 115.50 | H209: 146 | I209: 142.00 | J209: Profit of Rs 30.50/- | K209: 30.50 | L209: 26.41% | M209: Successful | N209: 2015-07-17
A210: 31 | B210: 2015-05-27 | D210: TCI | E210: Buy | F210: 237.50 | H210: 279.5 | I210: 278.00 | J210: Target Achieved | K210: 42.00 | L210: 17.68% | M210: Successful | N210: 2015-08-06
A211: 32 | B211: 2015-06-19 | D211: HSIL | E211: Accu | F211: 340.00 | H211: 448 | I211: 448.00 | J211: Target Achieved | K211: 108.00 | L211: 31.76% | M211: Successful | N211: 2017-10-10
A212: 33 | B212: 2015-07-06 | D212: Capital First | E212: Accu | F212: 390.00 | H212: 460 | I212: 460.00 | J212: Target Achieved | K212: 70.00 | L212: 17.95% | M212: Successful | N212: 2016-04-18
A213: 34 | B213: 2015-07-10 | D213: Dolphin OffShore | E213: Accu | F213: 122.5 | H213: 61.00 | I213: 172.00 | J213: Loss of Rs.61.50/- | K213: -61.50 | L213: -50.20% | M213: Unsuccessful | N213: 2018-08-21
A214: 35 | B214: 2015-08-03 | D214: Allcargo logistics | E214: Accu | F214: 297.50 | H214: 350 | I214: 360.00 | J214: Profit of Rs 52.50/- | K214: 52.50 | L214: 17.65% | M214: Successful | N214: 2015-08-16
A215: 36 | B215: 2015-08-03 | D215: Camline Fine | E215: Accu | F215: 115.50 | H215: 149 | I215: 140.00 | J215: Profit of Rs 33.50/- | K215: 33.50 | L215: 29.00% | M215: Successful | N215: 2017-01-05
A216: 37 | B216: 2015-09-04 | D216: TCI | E216: Accu | F216: 226.00 | H216: 292 | I216: 292.00 | J216: Target Achieved | K216: 66.00 | L216: 29.20% | M216: Successful | N216: 2015-10-09
A217: 38 | B217: 2015-09-07 | D217: Kalpataru Power Transmission Ltd | E217: Accu | F217: 232.50 | H217: 312.5 | I217: 310.00 | J217: Target Achieved | K217: 80.00 | L217: 34.41% | M217: Successful | N217: 2017-03-29
A218: 39 | B218: 2015-09-21 | D218: LLOYD ELECTRIC & ENG LTD | E218: Accu | F218: 196.50 | H218: 238 | I218: 238.00 | J218: Target Achieved | K218: 41.50 | L218: 21.12% | M218: Successful | N218: 2015-10-14
A219: 40 | B219: 2015-09-24 | D219: L&T Finance Holding | E219: Accu | F219: 65.00 | H219: 82 | I219: 82.00 | J219: Target Achieved | K219: 17.00 | L219: 26.15% | M219: Successful | N219: 2016-07-27
A220: 41 | B220: 2015-10-14 | D220: KEC International ltd | E220: Accu | F220: 144.00 | H220: 182.5 | I220: 181.00 | J220: Target Achieved | K220: 38.50 | L220: 26.74% | M220: Successful | N220: 2017-03-23
A221: 42 | B221: 2015-10-14 | D221: Gruh Finance | E221: Accu | F221: 264.00 | H221: 311 | I221: 311.00 | J221: Target Achieved | K221: 47.00 | L221: 17.80% | M221: Successful | N221: 2016-08-22
A222: 43 | B222: 2015-11-10 | D222: Pidilitind | E222: Buy | F222: 549.50 | H222: 630 | I222: 630.00 | J222: Target Achieved | K222: 80.50 | L222: 14.65% | M222: Successful | N222: 2016-02-19
A223: 44 | B223: 2015-12-04 | D223: Zensar Technology | E223: Accu | F223: 1027.50 | H223: 1315 | I223: 1250.00 | J223: Target Achieved | K223: 287.50 | L223: 27.98% | M223: Successful | N223: 2018-05-24
A224: 45 | B224: 2015-12-29 | D224: Vinati Organics Ltd | E224: Accu | F224: 465.00 | H224: 540 | I224: 540.00 | J224: Target Achieved | K224: 75.00 | L224: 16.13% | M224: Successful | N224: 2016-06-09
A225: 46 | B225: 2016-01-11 | D225: GSFC | E225: Buy | F225: 81.00 | H225: 110 | I225: 110.00 | J225: Target Achieved | K225: 29.00 | L225: 35.80% | M225: Successful | N225: 2017-01-10
A226: 47 | B226: 2016-01-13 | D226: SSWL | E226: Buy | F226: 417.50 | H226: 547 | I226: 535.00 | J226: Target Achieved | K226: 129.50 | L226: 31.02% | M226: Successful | N226: 2016-07-27
A227: 48 | B227: 2016-02-08 | D227: Persistent System Ltd | E227: Accu | F227: 650.00 | H227: 800 | I227: 800.00 | J227: Target Achieved | K227: 150.00 | L227: 23.08% | M227: Successful | N227: 2018-02-23
A228: 49 | B228: 2016-03-04 | D228: UPL | E228: Accu | F228: 437.50 | H228: 504.5 | I228: 522.00 | J228: Profit of Rs.67/- | K228: 67.00 | L228: 15.31% | M228: Successful | N228: 2016-04-20
A229: 50 | B229: 2016-03-09 | D229: Ashoka Buildcon Ltd | E229: Accu | F229: 189.50 | H229: 218 | I229: 218.00 | J229: Target Achieved | K229: 28.50 | L229: 15.04% | M229: Successful | N229: 2017-10-26
A230: 51 | B230: 2016-04-11 | D230: PTC INDIA FIN SERV LTD | E230: Accu | F230: 36.5 | H230: 15.85 | I230: 60.00 | J230: Loss of Rs.20.65/- | K230: -20.65 | L230: -56.58% | M230: Unsuccessful | N230: 2019-06-11
A231: 52 | B231: 2016-04-12 | D231: CAMLINFINE $ | E231: Accu | F231: 93.00 | H231: 149 | I231: 140.00 | J231: Profit of Rs 56/- | K231: 56.00 | L231: 60.22% | M231: Successful | N231: 2017-01-05
A232: 53 | B232: 2016-04-12 | D232: Greaves Cotton Ltd. | E232: Accu | F232: 130.00 | H232: 150 | I232: 150-155 | J232: Target Achieved | K232: 20.00 | L232: 15.38% | M232: Successful | N232: 2016-07-13
A233: 54 | B233: 2016-04-13 | D233: DHFL | E233: Accu | F233: 196.00 | H233: 299 | I233: 299.00 | J233: Target Achieved | K233: 103.00 | L233: 52.55% | M233: Successful | N233: 2016-09-07
A234: 55 | B234: 2016-04-13 | D234: Magma | E234: Accu | F234: 88.00 | H234: 103 | I234: 103.00 | J234: Target Achieved | K234: 15.00 | L234: 17.05% | M234: Successful | N234: 2016-06-09
A235: 56 | B235: 2016-05-02 | D235: KEC International ltd $ | E235: Accu | F235: 127.50 | H235: 148 | I235: 148-150 | J235: Target Achieved | K235: =H235-F235 -> 20.50 | L235: =K235/F235 -> 16.08% | M235: Successful | N235: 2016-07-13
A236: 57 | B236: 2016-05-03 | D236: Mindtree | E236: Accu | F236: 675.00 | H236: 815 | I236: 790-800 | J236: Target Achieved | K236: 140.00 | L236: 20.74% | M236: Successful | N236: 2018-02-23
A237: 58 | B237: 2016-06-01 | D237: Atulauto | E237: Accu | F237: 500 | H237: 232.50 | I237: 565-570 | J237: Loss of Rs.267.50 /- | K237: -267.50 | L237: -53.50% | M237: Unsuccessful | N237: 2019-09-27
A238: 59 | B238: 2016-06-06 | D238: TRITURBINE | E238: Accu | F238: 110.00 | H238: 126.5 | I238: 125.00 | J238: Profit of Rs.16.50/- | K238: 16.50 | L238: 15.00% | M238: Successful | N238: 2016-07-01
A239: 60 | B239: 2016-06-17 | D239: Pennar Industries Ltd | E239: Accu | F239: 44.00 | H239: 69.5 | I239: 69.50 | J239: Profit of Rs.25.50/- | K239: 25.50 | L239: 57.95% | M239: Successful | N239: 2017-08-30
A240: 61 | B240: 2016-06-28 | D240: EVEREADY | E240: Accu | F240: 262.50 | H240: 340 | I240: 333.00 | J240: Profit of Rs.77.50/- | K240: 77.50 | L240: 29.52% | M240: Successful | N240: 2017-10-09
A241: 62 | B241: 2016-06-28 | D241: FIEMIND | E241: Accu | F241: 840.00 | H241: 1230 | I241: 1230.00 | J241: Target Achieved | K241: 390.00 | L241: 46.43% | M241: Successful | N241: 2016-10-06
A242: 63 | B242: 2016-07-05 | D242: Bajaj Corp Ltd | E242: Accu | F242: 395 | H242: =(468.5+342.5)/2 -> 405.50 | I242: 510.00 | J242: Profit of Rs.10.50/- | K242: =H242-F242 -> 10.50 | L242: =K242/F242 -> 3% | M242: Neutral | N242: 2019-05-21
... 106 more rows
